Ref No,Fund Type,Dept,Cost Centre Description    ,Description    ,Creditor Name    ,GL Code Net Amount,Payment date        
2,Revenue,CAHD,Central - Commissioned Services,Permanent Residential,1 St Georges House,13333.52, 26-Jul-2022
3,Revenue,CAHD,Central - Commissioned Services,Fees & Charges Income - General,1 St Georges House,-481.70, 26-Jul-2022
4,Revenue,CAHD,Early Years High Needs Support,Other Private Contractors,100 Acre Wood Day Nursery,910.07, 22-Jul-2022
5,Revenue,CAHD,CSC - LAC Housing Support Grants,Grants to Voluntary Bodies,1625 Independent People,3343.00, 04-Jul-2022
6,Revenue,CAHD,CSC - LAC Housing Support Grants,Grants to Voluntary Bodies,1625 Independent People,3343.00, 05-Jul-2022
7,Revenue,CAHD,CSC - LAC Housing Support Grants,Grants to Voluntary Bodies,1625 Independent People,3343.00, 04-Jul-2022
8,Revenue,CAHD,Supporting People Programme,Grants to Voluntary Bodies,1625 Independent People,15622.00, 01-Jul-2022
9,Revenue,CAHD,Supporting People Programme,Grants to Voluntary Bodies,1625 Independent People,15629.08, 01-Jul-2022
10,Revenue,CAHD,CSC - Asylum Seekers - Unaccompanied,Independent Living,16Pluscare Support Solutions,18274.20, 21-Jul-2022
11,Revenue,CAHD,CSC - Care Leavers Independent Living,Independent Living,16Pluscare Support Solutions,11650.20, 21-Jul-2022
12,Revenue,CAHD,South - Commissioned Services,Permanent Residential,2Nd Floor Building,5630.76, 26-Jul-2022
13,Revenue,CAHD,South - Commissioned Services,Fees & Charges Income - General,2Nd Floor Building,-438.80, 26-Jul-2022
14,Revenue,CAHD,North - Community based support,Permanent Residential,2Nd Floor Building,4938.12, 26-Jul-2022
15,Revenue,CAHD,North - Community based support,Fees & Charges Income - General,2Nd Floor Building,-438.80, 26-Jul-2022
16,Revenue,CAHD,Central - Commissioned Services,Other Small Contracts,3 Trees Community Support Ltd,8051.01, 19-Jul-2022
17,Revenue,CAHD,Central - Commissioned Services,Supported Living,3 Trees Community Support Ltd,3188.66, 19-Jul-2022
18,Revenue,CAHD,Central - Commissioned Services,Other Small Contracts,3 Trees Community Support Ltd,8051.01, 19-Jul-2022
19,Revenue,CAHD,Central - Commissioned Services,Supported Living,3 Trees Community Support Ltd,3188.66, 19-Jul-2022
20,Revenue,CAHD,Central - Commissioned Services,Other Small Contracts,3 Trees Community Support Ltd,8051.01, 19-Jul-2022
21,Revenue,CAHD,Central - Commissioned Services,Supported Living,3 Trees Community Support Ltd,3188.66, 19-Jul-2022
22,Revenue,CAHD,Central - Commissioned Services,Other Small Contracts,3 Trees Community Support Ltd,8051.01, 21-Jul-2022
23,Revenue,CAHD,Central - Commissioned Services,Supported Living,3 Trees Community Support Ltd,3188.66, 21-Jul-2022
24,Revenue,CAHD,Central - Commissioned Services,Other Small Contracts,3 Trees Community Support Ltd,8051.01, 21-Jul-2022
25,Revenue,CAHD,Central - Commissioned Services,Supported Living,3 Trees Community Support Ltd,3188.66, 21-Jul-2022
26,Revenue,CAHD,South - Commissioned Services,Permanent Residential,5Th Floor Harlech Court,12291.40, 26-Jul-2022
27,Revenue,CAHD,South - Commissioned Services,Permanent Residential,5Th Floor Harlech Court,17913.24, 26-Jul-2022
28,Revenue,CAHD,South - Commissioned Services,Permanent Residential,5Th Floor Harlech Court,18839.56, 26-Jul-2022
29,Revenue,CAHD,South - Commissioned Services,Fees & Charges Income - General,5Th Floor Harlech Court,-582.88, 26-Jul-2022
30,Revenue,CAHD,South - Commissioned Services,Fees & Charges Income - General,5Th Floor Harlech Court,-438.80, 26-Jul-2022
31,Revenue,CAHD,South - Commissioned Services,Fees & Charges Income - General,5Th Floor Harlech Court,-418.80, 26-Jul-2022
32,Revenue,CAHD,S28A cases,Permanent Residential,5Th Floor Harlech Court,11719.96, 26-Jul-2022
33,Revenue,CAHD,S28A cases,Fees & Charges Income - General,5Th Floor Harlech Court,-399.80, 26-Jul-2022
34,Revenue,CAHD,North - Community based support,Permanent Residential,5Th Floor Harlech Court,12498.56, 26-Jul-2022
35,Revenue,CAHD,North - Community based support,Fees & Charges Income - General,5Th Floor Harlech Court,-450.80, 26-Jul-2022
36,Revenue,CAHD,Central - Commissioned Services,Permanent Residential,5Th Floor Harlech Court,14891.36, 26-Jul-2022
37,Revenue,CAHD,Central - Commissioned Services,Fees & Charges Income - General,5Th Floor Harlech Court,-438.80, 26-Jul-2022
38,Revenue,CAHD,North - Community based support,Permanent Residential,5Th Floor Harlech Court,9071.12, 26-Jul-2022
39,Revenue,CAHD,North - Community based support,Permanent Residential,5Th Floor Harlech Court,10537.24, 26-Jul-2022
40,Revenue,CAHD,North - Community based support,Fees & Charges Income - General,5Th Floor Harlech Court,-438.80, 26-Jul-2022
41,Revenue,CAHD,Central - Commissioned Services,Non Residential Care Income,A4E Management Ltd,-112.74, 08-Jul-2022
42,Revenue,CAHD,Central - Commissioned Services,Non Residential Care Income,A4E Management Ltd,-112.74, 22-Jul-2022
43,Revenue,CAHD,CSC - Vinney Green Secure Unit,R & M by Departments,Abbey Fire Protection Limited,2477.06, 22-Jul-2022
44,Revenue,CAHD,South - Commissioned Services,Permanent Nursing,Acacia House,3085.88, 26-Jul-2022
45,Revenue,CAHD,South - Commissioned Services,Fees & Charges Income - General,Acacia House,-1074.60, 26-Jul-2022
46,Revenue,CAHD,Central - Commissioned Services,Permanent Nursing,Acacia House,3777.92, 26-Jul-2022
47,Revenue,CAHD,Central - Commissioned Services,Permanent Residential,Acer House Care Home.,3800.00, 26-Jul-2022
48,Revenue,CAHD,Central - Commissioned Services,Fees & Charges Income - General,Acer House Care Home.,-1093.68, 26-Jul-2022
49,Revenue,CAHD,MH Purchasing - Younger,Permanent Residential,Acorn Care Providers,6920.56, 26-Jul-2022
50,Revenue,CAHD,MH Purchasing - Younger,Permanent Residential,Acorn Care Providers,6795.68, 26-Jul-2022
51,Revenue,CAHD,North - S117,Permanent Residential,Acorn Care Providers,4311.40, 26-Jul-2022
52,Revenue,CAHD,Section 117 Placements MH Younger,Permanent Residential,Acorn Care Providers,5941.40, 26-Jul-2022
53,Revenue,CAHD,Jointly Funded H&SC Packages,Permanent Residential,Acorn Care Providers,3515.52, 26-Jul-2022
54,Revenue,CAHD,Jointly Funded H&SC Packages,Permanent Residential,Acorn Care Providers,2366.36, 26-Jul-2022
55,Revenue,CAHD,Jointly Funded H&SC Packages,Permanent Residential,Acorn Care Providers,2193.40, 26-Jul-2022
56,Revenue,CAHD,Training - Adult Services,Training Expenses,Acorn Health & Safety Limited,1350.00, 19-Jul-2022
57,Revenue,CAHD,Training - Adult Services,Training Expenses,Acorn Health & Safety Limited,418.00, 14-Jul-2022
58,Revenue,CAHD,CSC - Agency Fostering,Foster Parent Allowances,Action for Children,3702.90, 15-Jul-2022
59,Revenue,CAHD,CSC - Agency Fostering,Foster Parent Allowances,Action for Children,3702.90, 15-Jul-2022
60,Revenue,CAHD,CSC - Agency Fostering,Foster Parent Allowances,Action for Children,3771.30, 15-Jul-2022
61,Revenue,CAHD,Independent Special Placements - Pre 16,Other Private Contractors,Action for Children,56245.00, 26-Jul-2022
62,Revenue,CAHD,CSC - Age Related Allowances,"Holidays, Outings & Visits",Individual,207.00, 01-Jul-2022
63,Revenue,CAHD,CSC - Age Related Allowances,Foster Parent Allowances,Individual,207.00, 01-Jul-2022
64,Revenue,CAHD,CSC - Professional Fees Foster Carers,Band 3 Foster Care,Individual,243.00, 01-Jul-2022
65,Revenue,CAHD,Research & Conferences,Membership Fees,ADASS,2484.00, 04-Jul-2022
66,Revenue,CAHD,CSC - Asylum Seekers - Unaccompanied,Independent Living,Adolescent Support Home Services Ltd,6473.40, 26-Jul-2022
67,Revenue,CAHD,Central - Commissioned Services,Other Small Contracts,Afya Care Ltd,763.53, 13-Jul-2022
68,Revenue,CAHD,Central - Commissioned Services,Day Care / Social Activities,Age Concern,340.80, 26-Jul-2022
69,Revenue,CAHD,Central - Commissioned Services,Day Care / Social Activities,Age Concern,324.32, 26-Jul-2022
70,Revenue,CAHD,South - Commissioned Services,Day Care / Social Activities,Age Concern,-566.60, 26-Jul-2022
71,Revenue,CAHD,South - Commissioned Services,Day Care / Social Activities,Age Concern,-566.60, 26-Jul-2022
72,Revenue,CAHD,South - Commissioned Services,Day Care / Social Activities,Age Concern,360.10, 26-Jul-2022
73,Revenue,CAHD,North - Community based support,Day Care / Social Activities,Age Concern,340.80, 26-Jul-2022
74,Revenue,CAHD,North - Community based support,Day Care / Social Activities,Age Concern,288.08, 26-Jul-2022
75,Revenue,CAHD,Central - Commissioned Services,Day Care / Social Activities,Age UK - Grace Court,288.08, 26-Jul-2022
76,Revenue,CAHD,South - Commissioned Services,Day Care / Social Activities,Age UK - Grace Court,226.48, 26-Jul-2022
77,Revenue,CAHD,South - Commissioned Services,Day Care / Social Activities,Age UK - Grace Court,288.08, 26-Jul-2022
78,Revenue,CAHD,South - Commissioned Services,Day Care / Social Activities,Age UK - Grace Court,288.08, 26-Jul-2022
79,Revenue,CAHD,South - Commissioned Services,Day Care / Social Activities,Age UK - Grace Court,288.08, 26-Jul-2022
80,Revenue,CAHD,South - Commissioned Services,Day Care / Social Activities,Age UK - Grace Court,226.48, 26-Jul-2022
81,Revenue,CAHD,South - Commissioned Services,Day Care / Social Activities,Age UK - Grace Court,288.08, 26-Jul-2022
82,Revenue,CAHD,South - Commissioned Services,Day Care / Social Activities,Age UK - Grace Court,288.08, 26-Jul-2022
83,Revenue,CAHD,North - Community based support,Day Care / Social Activities,Age UK - Grace Court,288.08, 26-Jul-2022
84,Revenue,CAHD,North - Community based support,Day Care / Social Activities,Age UK South Gloucestershire,4175.15, 15-Jul-2022
85,Revenue,CAHD,Mental Health and Community Engagement,Grants to Voluntary Bodies,Age UK South Gloucestershire,13725.00, 04-Jul-2022
86,Revenue,CAHD,Extra Care Housing,Private & Voluntary Home Care,Agincare UK Limited,25937.78, 01-Jul-2022
87,Revenue,CAHD,Extra Care Housing,Private & Voluntary Home Care,Agincare UK Limited,12479.78, 01-Jul-2022
88,Revenue,CAHD,Extra Care Housing,Private & Voluntary Home Care,Agincare UK Limited,30860.93, 04-Jul-2022
89,Revenue,CAHD,Extra Care Housing,Private & Voluntary Home Care,Agincare UK Limited,5458.37, 04-Jul-2022
90,Revenue,CAHD,Extra Care Housing,Private & Voluntary Home Care,Agincare UK Limited,5458.37, 11-Jul-2022
91,Revenue,CAHD,Extra Care Housing,Private & Voluntary Home Care,Agincare UK Limited,5458.37, 18-Jul-2022
92,Revenue,CAHD,Extra Care Housing,Private & Voluntary Home Care,Agincare UK Limited,5458.37, 25-Jul-2022
93,Revenue,CAHD,South - Commissioned Services,Day Care / Social Activities,Agincare UK Limited,543.28, 19-Jul-2022
94,Revenue,CAHD,South - Commissioned Services,Day Care / Social Activities,Agincare UK Limited,543.28, 19-Jul-2022
95,Revenue,CAHD,South - Commissioned Services,Day Care / Social Activities,Agincare UK Limited,543.28, 19-Jul-2022
96,Revenue,CAHD,South - Commissioned Services,Day Care / Social Activities,Agincare UK Limited,543.28, 21-Jul-2022
97,Revenue,CAHD,South - Commissioned Services,Day Care / Social Activities,Agincare UK Limited,543.28, 21-Jul-2022
98,Revenue,CAHD,Extra Care Housing,Private & Voluntary Home Care,Agincare UK Limited,1537.34, 18-Jul-2022
99,Revenue,CAHD,CSC - Special Guardianship Orders,"Holidays, Outings & Visits",Individual,119.20, 01-Jul-2022
100,Revenue,CAHD,CSC - Special Guardianship Orders,Xmas / Birthday Allowances,Individual,119.20, 01-Jul-2022
101,Revenue,CAHD,CSC - Special Guardianship Orders,Special Payments,Individual,119.20, 01-Jul-2022
102,Revenue,CAHD,CSC - Special Guardianship Orders,Band 1 Foster Care,Individual,170.00, 01-Jul-2022
103,Revenue,CAHD,Statemented Support Payments to OLAs,Other L.A.s - General,Air Balloon Hill Primary School,801.92, 22-Jul-2022
104,Revenue,CAHD,South - Commissioned Services,Other Small Contracts,AliMo Care Ltd,676.95, 19-Jul-2022
105,Revenue,CAHD,South - Commissioned Services,Other Small Contracts,AliMo Care Ltd,676.95, 19-Jul-2022
106,Revenue,CAHD,South - Commissioned Services,Other Small Contracts,AliMo Care Ltd,676.95, 19-Jul-2022
107,Revenue,CAHD,South - Commissioned Services,Other Small Contracts,AliMo Care Ltd,676.95, 21-Jul-2022
108,Revenue,CAHD,South - Commissioned Services,Other Small Contracts,AliMo Care Ltd,676.95, 21-Jul-2022
109,Revenue,CAHD,Mental Capacity Act / DOLS,Legal Fees,Alison Harvey,1750.00, 28-Jul-2022
110,Revenue,CAHD,CSC - Age Related Allowances,"Holidays, Outings & Visits",Individual,363.00, 01-Jul-2022
111,Revenue,CAHD,CSC - Age Related Allowances,Foster Parent Allowances,Individual,363.00, 01-Jul-2022
112,Revenue,CAHD,CSC - Professional Fees Foster Carers,Band 3 Foster Care,Individual,486.00, 01-Jul-2022
113,Revenue,CAHD,CSC - Age Related Allowances,Foster Parent Allowances,Individual,363.00, 08-Jul-2022
114,Revenue,CAHD,CSC - Professional Fees Foster Carers,Band 3 Foster Care,Individual,486.00, 08-Jul-2022
115,Revenue,CAHD,CSC - Age Related Allowances,Foster Parent Allowances,Individual,363.00, 15-Jul-2022
116,Revenue,CAHD,CSC - Professional Fees Foster Carers,Band 3 Foster Care,Individual,486.00, 15-Jul-2022
117,Revenue,CAHD,CSC - Age Related Allowances,Foster Parent Allowances,Individual,363.00, 22-Jul-2022
118,Revenue,CAHD,CSC - Professional Fees Foster Carers,Band 3 Foster Care,Individual,486.00, 22-Jul-2022
119,Revenue,CAHD,CSC - Age Related Allowances,Foster Parent Allowances,Individual,363.00, 29-Jul-2022
120,Revenue,CAHD,CSC - Fostering Carer Support,Advertising - General,Individual,35.00, 29-Jul-2022
121,Revenue,CAHD,CSC - Professional Fees Foster Carers,Band 3 Foster Care,Individual,486.00, 29-Jul-2022
122,Revenue,CAHD,Adult & Community Learning Growth Funding 21/22,Furniture & Fittings Loose,All About Safes,449.00, 27-Jul-2022
123,Revenue,CAHD,South - Commissioned Services,Permanent Nursing,Allambie Court,2734.44, 26-Jul-2022
124,Revenue,CAHD,South - Commissioned Services,Fees & Charges Income - General,Allambie Court,-823.52, 26-Jul-2022
125,Revenue,CAHD,Mental Health and Community Engagement,Grants to Voluntary Bodies,Alzheimers Society,11143.00, 04-Jul-2022
126,Revenue,CAHD,CSC - Residential Placements,Permanent Residential,Amberleigh Care Ltd,16771.00, 25-Jul-2022
127,Revenue,CAHD,CSC - Vinney Green Secure Unit,Ground Maintenance - Extra Work,Ambience Landscapes Limited,1200.00, 14-Jul-2022
128,Revenue,CAHD,CSC - Residential Placements,Permanent Residential,Ambito Care and Education,19920.87, 01-Jul-2022
129,Revenue,CAHD,CSC - Residential Placements,Permanent Residential,Ambito Care and Education,19930.88, 01-Jul-2022
130,Revenue,CAHD,CSC - Agency Fostering,Foster Parent Allowances,Amicus Foster Care Ltd,4721.61, 04-Jul-2022
131,Revenue,CAHD,CSC - Agency Fostering,Foster Parent Allowances,Amicus Foster Care Ltd,3906.90, 04-Jul-2022
132,Revenue,CAHD,CSC - Agency Fostering,Foster Parent Allowances,Amicus Foster Care Ltd,4641.72, 04-Jul-2022
133,Revenue,CAHD,Supporting People Programme,Grants to Voluntary Bodies,Anchor Hanover Group,1070.50, 01-Jul-2022
134,Revenue,CAHD,Supporting People Programme,Grants to Voluntary Bodies,Anchor Hanover Group,873.08, 01-Jul-2022
135,Revenue,CAHD,Post 16 LDD Transport to college,Bus & Rail Passes (not one off tickets),Individual,927.00, 14-Jul-2022
136,Revenue,CAHD,Post 16 LDD Transport to college,Bus & Rail Passes (not one off tickets),Individual,927.00, 14-Jul-2022
137,Revenue,CAHD,Post 16 LDD Transport to college,Bus & Rail Passes (not one off tickets),Individual,927.00, 14-Jul-2022
138,Revenue,CAHD,CSC - Special Guardianship Orders,Special Payments,Individual,692.85, 08-Jul-2022
139,Revenue,CAHD,CSC - Special Guardianship Orders,Special Payments,Individual,500.30, 15-Jul-2022
140,Revenue,CAHD,CSC - Special Guardianship Orders,Special Payments,Individual,500.30, 22-Jul-2022
141,Revenue,CAHD,CSC - Special Guardianship Orders,Special Payments,Individual,500.30, 29-Jul-2022
142,Revenue,CAHD,South - Commissioned Services,Non Residential Care Income,Individual,-2203.43, 08-Jul-2022
143,Revenue,CAHD,Social Lettings Agency,Rent,Individual,822.73, 20-Jul-2022
144,Revenue,CAHD,Social Lettings Agency,Fees & Charges Income - General,Individual,-65.82, 20-Jul-2022
145,Revenue,CAHD,Social Lettings Agency,Rent,Individual,822.73, 01-Jul-2022
146,Revenue,CAHD,Social Lettings Agency,Fees & Charges Income - General,Individual,-65.82, 01-Jul-2022
147,Revenue,CAHD,Other Alternative Provision Services,Other Private Contractors,Apricot Online Limited,1950.00, 08-Jul-2022
148,Revenue,CAHD,CSC - Residential Placements,Permanent Residential,ARC HD Services Ltd,731.20, 04-Jul-2022
149,Revenue,CAHD,CSC - Residential Placements,Permanent Residential,ARC HD Services Ltd,22667.33, 27-Jul-2022
150,Revenue,CAHD,South - S117,Supported Living,Archcare Rehab Limited,2062.52, 26-Jul-2022
151,Revenue,CAHD,Younger MH non-res purchasing,Respite Care,Archcare Rehab Limited,0.00, 26-Jul-2022
152,Revenue,CAHD,South - Commissioned Services,Permanent Residential,Ash Lea House,5551.92, 26-Jul-2022
153,Revenue,CAHD,South - Commissioned Services,Fees & Charges Income - General,Ash Lea House,-438.80, 26-Jul-2022
154,Revenue,CAHD,North - Community based support,Permanent Residential,Ash View House,7525.48, 26-Jul-2022
155,Revenue,CAHD,North - Community based support,Permanent Residential,Ash View House,7547.20, 26-Jul-2022
156,Revenue,CAHD,North - Community based support,Fees & Charges Income - General,Ash View House,-438.80, 26-Jul-2022
157,Revenue,CAHD,North - Community based support,Fees & Charges Income - General,Ash View House,-438.80, 26-Jul-2022
158,Revenue,CAHD,South - Commissioned Services,Permanent Residential,Ash View House,7317.24, 26-Jul-2022
159,Revenue,CAHD,South - Commissioned Services,Permanent Residential,Ash View House,5994.80, 26-Jul-2022
160,Revenue,CAHD,South - Commissioned Services,Fees & Charges Income - General,Ash View House,-438.80, 26-Jul-2022
161,Revenue,CAHD,South - Commissioned Services,Fees & Charges Income - General,Ash View House,-387.80, 26-Jul-2022
162,Revenue,CAHD,South - S117,Permanent Residential,Ash View House,7402.64, 26-Jul-2022
163,Revenue,CAHD,Section 117 Placements MH Younger,Permanent Residential,Ash View House,5444.12, 26-Jul-2022
164,Revenue,CAHD,Jointly Funded H&SC Packages,Permanent Residential,Ash View House,1160.84, 26-Jul-2022
165,Revenue,CAHD,Jointly Funded H&SC Packages,Permanent Residential,Ash View House,2204.28, 26-Jul-2022
166,Revenue,CAHD,S117 Placements PCT,Permanent Residential,Ash View House,8357.80, 26-Jul-2022
167,Revenue,CAHD,Supporting People Programme,Grants to Voluntary Bodies,Aspects and Milestones Trust,1777.17, 01-Jul-2022
168,Revenue,CAHD,Supporting People Programme,Grants to Voluntary Bodies,Aspects and Milestones Trust,3544.83, 01-Jul-2022
169,Revenue,CAHD,North - Community based support,Other Small Contracts,Aspirations,3651.11, 06-Jul-2022
170,Revenue,CAHD,South - Commissioned Services,Other Small Contracts,Aspirations,1566.38, 06-Jul-2022
171,Revenue,CAHD,South - Commissioned Services,Supported Living,Aspirations,15205.36, 06-Jul-2022
172,Revenue,CAHD,Central - Commissioned Services,Other Small Contracts,Aspirations,3263.78, 06-Jul-2022
173,Revenue,CAHD,18-25 Year Olds,Other Small Contracts,Aspirations,4294.62, 06-Jul-2022
174,Revenue,CAHD,North - Community based support,Other Small Contracts,Aspirations,3651.11, 06-Jul-2022
175,Revenue,CAHD,South - Commissioned Services,Other Small Contracts,Aspirations,1566.38, 06-Jul-2022
176,Revenue,CAHD,South - Commissioned Services,Supported Living,Aspirations,15205.36, 06-Jul-2022
177,Revenue,CAHD,Central - Commissioned Services,Other Small Contracts,Aspirations,3263.78, 06-Jul-2022
178,Revenue,CAHD,18-25 Year Olds,Other Small Contracts,Aspirations,4294.62, 06-Jul-2022
179,Revenue,CAHD,North - Community based support,Other Small Contracts,Aspirations,3651.11, 19-Jul-2022
180,Revenue,CAHD,South - Commissioned Services,Other Small Contracts,Aspirations,1566.38, 19-Jul-2022
181,Revenue,CAHD,South - Commissioned Services,Supported Living,Aspirations,15205.36, 19-Jul-2022
182,Revenue,CAHD,Central - Commissioned Services,Other Small Contracts,Aspirations,3263.78, 19-Jul-2022
183,Revenue,CAHD,18-25 Year Olds,Other Small Contracts,Aspirations,4294.62, 19-Jul-2022
184,Revenue,CAHD,North - Community based support,Other Small Contracts,Aspirations,3651.11, 21-Jul-2022
185,Revenue,CAHD,South - Commissioned Services,Other Small Contracts,Aspirations,1566.38, 21-Jul-2022
186,Revenue,CAHD,South - Commissioned Services,Supported Living,Aspirations,15205.36, 21-Jul-2022
187,Revenue,CAHD,Central - Commissioned Services,Other Small Contracts,Aspirations,3263.78, 21-Jul-2022
188,Revenue,CAHD,18-25 Year Olds,Other Small Contracts,Aspirations,4294.62, 21-Jul-2022
189,Revenue,CAHD,North - Community based support,Other Small Contracts,Aspirations,3651.11, 21-Jul-2022
190,Revenue,CAHD,South - Commissioned Services,Other Small Contracts,Aspirations,1566.38, 21-Jul-2022
191,Revenue,CAHD,South - Commissioned Services,Supported Living,Aspirations,15205.36, 21-Jul-2022
192,Revenue,CAHD,Central - Commissioned Services,Other Small Contracts,Aspirations,3263.78, 21-Jul-2022
193,Revenue,CAHD,18-25 Year Olds,Other Small Contracts,Aspirations,4294.62, 21-Jul-2022
194,Revenue,CAHD,CSC - Direct Payments - Disabled Chi,Adults - Family Support,Ategi Limited,2806.24, 26-Jul-2022
195,Revenue,CAHD,CSC - Direct Payments - Disabled Chi,Adults - Family Support,Ategi Limited,1695.36, 26-Jul-2022
196,Revenue,CAHD,CSC - Direct Payments - Disabled Chi,Adults - Family Support,Ategi Limited,-865.94, 26-Jul-2022
197,Revenue,CAHD,18-25 Year Olds,Adults - Family Support,Ategi Limited,74.88, 26-Jul-2022
198,Revenue,CAHD,18-25 Year Olds,Respite Care,Ategi Limited,0.00, 26-Jul-2022
199,Revenue,CAHD,18-25 Year Olds,Respite Care,Ategi Limited,0.00, 26-Jul-2022
200,Revenue,CAHD,18-25 Year Olds,Respite Care,Ategi Limited,0.00, 26-Jul-2022
201,Revenue,CAHD,18-25 Year Olds,Respite Care,Ategi Limited,0.00, 26-Jul-2022
202,Revenue,CAHD,Central - Commissioned Services,Adults - Family Support,Ategi Limited,414.86, 26-Jul-2022
203,Revenue,CAHD,South - Commissioned Services,Adults - Family Support,Ategi Limited,1695.36, 26-Jul-2022
204,Revenue,CAHD,South - Commissioned Services,Adults - Family Support,Ategi Limited,2424.64, 26-Jul-2022
205,Revenue,CAHD,South - Commissioned Services,Adults - Family Support,Ategi Limited,213.14, 26-Jul-2022
206,Revenue,CAHD,South - Commissioned Services,Adults - Family Support,Ategi Limited,2424.64, 26-Jul-2022
207,Revenue,CAHD,South - Commissioned Services,Adults - Family Support,Ategi Limited,1695.36, 26-Jul-2022
208,Revenue,CAHD,South - Commissioned Services,Adults - Family Support,Ategi Limited,440.00, 26-Jul-2022
209,Revenue,CAHD,South - Commissioned Services,Respite Care,Ategi Limited,0.00, 26-Jul-2022
210,Revenue,CAHD,South - Commissioned Services,Respite Care,Ategi Limited,0.00, 26-Jul-2022
211,Revenue,CAHD,South - Commissioned Services,Respite Care,Ategi Limited,0.00, 26-Jul-2022
212,Revenue,CAHD,North - Community based support,Adults - Family Support,Ategi Limited,88.00, 26-Jul-2022
213,Revenue,CAHD,North - Community based support,Adults - Family Support,Ategi Limited,1695.36, 26-Jul-2022
214,Revenue,CAHD,North - Community based support,Adults - Family Support,Ategi Limited,1695.36, 26-Jul-2022
215,Revenue,CAHD,North - Community based support,Adults - Family Support,Ategi Limited,74.88, 26-Jul-2022
216,Revenue,CAHD,North - Community based support,Adults - Family Support,Ategi Limited,-1212.32, 26-Jul-2022
217,Revenue,CAHD,North - Community based support,Respite Care,Ategi Limited,0.00, 26-Jul-2022
218,Revenue,CAHD,North - Community based support,Respite Care,Ategi Limited,0.00, 26-Jul-2022
219,Revenue,CAHD,Schools Specific Grant Income,Other Public Bodies,Athelstan Trust,500.00, 08-Jul-2022
220,Revenue,CAHD,Schools Specific Grant Income,Other Public Bodies,Athelstan Trust,500.00, 08-Jul-2022
221,Revenue,CAHD,Schools Specific Grant Income,Other Public Bodies,Athelstan Trust,500.00, 08-Jul-2022
222,Revenue,CAHD,Statemented Support Academies,Other Public Bodies,Athelstan Trust,718.08, 22-Jul-2022
223,Revenue,CAHD,Statemented Support Academies,Other Public Bodies,Athelstan Trust,526.83, 22-Jul-2022
224,Revenue,CAHD,Statemented Support Academies,Other Public Bodies,Athelstan Trust,722.42, 22-Jul-2022
225,Revenue,CAHD,Statemented Support Academies,Other Public Bodies,Athelstan Trust,1342.25, 22-Jul-2022
226,Revenue,CAHD,Statemented Support Academies,Other Public Bodies,Athelstan Trust,1367.64, 22-Jul-2022
227,Revenue,CAHD,Statemented Support Academies,Other Public Bodies,Athelstan Trust,771.42, 22-Jul-2022
228,Revenue,CAHD,Statemented Support Academies,Other Public Bodies,Athelstan Trust,1436.25, 22-Jul-2022
229,Revenue,CAHD,Statemented Support Academies,Other Public Bodies,Athelstan Trust,588.75, 22-Jul-2022
230,Revenue,CAHD,Statemented Support Academies,Other Public Bodies,Athelstan Trust,3514.12, 22-Jul-2022
231,Revenue,CAHD,CSC - LAC - Counselling & Therapy,Supported Living,Athelstan Trust,934.13, 22-Jul-2022
232,Revenue,CAHD,Statemented Support Academies,Other Public Bodies,Athelstan Trust,926.58, 22-Jul-2022
233,Revenue,CAHD,Statemented Support Academies,Other Public Bodies,Athelstan Trust,1066.65, 22-Jul-2022
234,Revenue,CAHD,Academy Resource Base Funding,Other Public Bodies,Athelstan Trust,1698.64, 25-Jul-2022
235,Revenue,CAHD,Academy Resource Base Funding,Other Public Bodies,Athelstan Trust,2513.88, 25-Jul-2022
236,Revenue,CAHD,Academy Resource Base Funding,Other Public Bodies,Athelstan Trust,2513.88, 25-Jul-2022
237,Revenue,CAHD,Academy Resource Base Funding,Other Public Bodies,Athelstan Trust,2513.88, 25-Jul-2022
238,Revenue,CAHD,Academy Resource Base Funding,Other Public Bodies,Athelstan Trust,2513.88, 25-Jul-2022
239,Revenue,CAHD,Academy Resource Base Funding,Other Public Bodies,Athelstan Trust,2513.88, 25-Jul-2022
240,Revenue,CAHD,Academy Resource Base Funding,Other Public Bodies,Athelstan Trust,2513.88, 25-Jul-2022
241,Revenue,CAHD,Academy Resource Base Funding,Other Public Bodies,Athelstan Trust,2513.88, 25-Jul-2022
242,Revenue,CAHD,Academy Resource Base Funding,Other Public Bodies,Athelstan Trust,2513.88, 25-Jul-2022
243,Revenue,CAHD,Academy Resource Base Funding,Other Public Bodies,Athelstan Trust,2513.88, 25-Jul-2022
244,Revenue,CAHD,Academy Resource Base Funding,Other Public Bodies,Athelstan Trust,2513.88, 25-Jul-2022
245,Revenue,CAHD,Academy Resource Base Funding,Other Public Bodies,Athelstan Trust,2513.88, 25-Jul-2022
246,Revenue,CAHD,Academy Resource Base Funding,Other Public Bodies,Athelstan Trust,2513.88, 25-Jul-2022
247,Revenue,CAHD,South - Commissioned Services,Permanent Residential,Autism Specialised Care Homes,6506.88, 26-Jul-2022
248,Revenue,CAHD,South - Commissioned Services,Fees & Charges Income - General,Autism Specialised Care Homes,-438.80, 26-Jul-2022
249,Revenue,CAHD,Younger Adult Mental Health,Agency Staff (Admin/Support Staff) Pay,Avon & Wiltshire Mental Health,6080.00, 15-Jul-2022
250,Revenue,CAHD,Younger Adult Mental Health,Agency Staff (Admin/Support Staff) Pay,Avon & Wiltshire Mental Health,5790.00, 15-Jul-2022
251,Revenue,CAHD,South Glos Users in South Glos Homes,Permanent Nursing,Avon Lodge Care Centre,836.76, 26-Jul-2022
252,Revenue,CAHD,South Glos Users in South Glos Homes,Permanent Nursing,Avon Lodge Care Centre,836.76, 26-Jul-2022
253,Revenue,CAHD,South Glos Users in South Glos Homes,Permanent Nursing,Avon Lodge Care Centre,836.76, 26-Jul-2022
254,Revenue,CAHD,South Glos Users in South Glos Homes,Permanent Nursing,Avon Lodge Care Centre,836.76, 26-Jul-2022
255,Revenue,CAHD,South Glos Users in South Glos Homes,Permanent Nursing,Avon Lodge Care Centre,836.76, 26-Jul-2022
256,Revenue,CAHD,South Glos Users in South Glos Homes,Permanent Nursing,Avon Lodge Care Centre,836.76, 26-Jul-2022
257,Revenue,CAHD,South Glos Users in South Glos Homes,Permanent Nursing,Avon Lodge Care Centre,836.76, 26-Jul-2022
258,Revenue,CAHD,South Glos Users in South Glos Homes,Permanent Nursing,Avon Lodge Care Centre,836.76, 26-Jul-2022
259,Revenue,CAHD,South Glos Users in South Glos Homes,Permanent Nursing,Avon Lodge Care Centre,836.76, 26-Jul-2022
260,Revenue,CAHD,South Glos Users in South Glos Homes,Permanent Nursing,Avon Lodge Care Centre,-965.55, 26-Jul-2022
261,Revenue,CAHD,South Glos Users in South Glos Homes,Permanent Nursing,Avon Lodge Care Centre,836.76, 26-Jul-2022
262,Revenue,CAHD,South Glos Users in South Glos Homes,Permanent Nursing,Avon Lodge Care Centre,836.76, 26-Jul-2022
263,Revenue,CAHD,South Glos Users in South Glos Homes,Permanent Nursing,Avon Lodge Care Centre,836.76, 26-Jul-2022
264,Revenue,CAHD,South Glos Users in South Glos Homes,Permanent Nursing,Avon Lodge Care Centre,836.76, 26-Jul-2022
265,Revenue,CAHD,South Glos Users in South Glos Homes,Permanent Nursing,Avon Lodge Care Centre,836.76, 26-Jul-2022
266,Revenue,CAHD,South Glos Users in South Glos Homes,Permanent Nursing,Avon Lodge Care Centre,836.76, 26-Jul-2022
267,Revenue,CAHD,South Glos Users in South Glos Homes,Permanent Nursing,Avon Lodge Care Centre,836.76, 26-Jul-2022
268,Revenue,CAHD,South Glos Users in South Glos Homes,Permanent Nursing,Avon Lodge Care Centre,836.76, 26-Jul-2022
269,Revenue,CAHD,South Glos Users in South Glos Homes,Permanent Nursing,Avon Lodge Care Centre,836.76, 26-Jul-2022
270,Revenue,CAHD,South Glos Users in South Glos Homes,Permanent Nursing,Avon Lodge Care Centre,836.76, 26-Jul-2022
271,Revenue,CAHD,South Glos Users in South Glos Homes,Permanent Nursing,Avon Lodge Care Centre,836.76, 26-Jul-2022
272,Revenue,CAHD,South Glos Users in South Glos Homes,Permanent Nursing,Avon Lodge Care Centre,836.76, 26-Jul-2022
273,Revenue,CAHD,South Glos Users in South Glos Homes,Permanent Nursing,Avon Lodge Care Centre,-1464.33, 26-Jul-2022
274,Revenue,CAHD,South Glos Users in South Glos Homes,Permanent Nursing,Avon Lodge Care Centre,5087.87, 26-Jul-2022
275,Revenue,CAHD,South Glos Users in South Glos Homes,Permanent Nursing,Avon Lodge Care Centre,836.76, 26-Jul-2022
276,Revenue,CAHD,South Glos Users in South Glos Homes,Permanent Nursing,Avon Lodge Care Centre,836.76, 26-Jul-2022
277,Revenue,CAHD,South Glos Users in South Glos Homes,Permanent Nursing,Avon Lodge Care Centre,836.76, 26-Jul-2022
278,Revenue,CAHD,South Glos Users in South Glos Homes,Permanent Nursing,Avon Lodge Care Centre,836.76, 26-Jul-2022
279,Revenue,CAHD,South Glos Users in South Glos Homes,Permanent Nursing,Avon Lodge Care Centre,-1503.47, 26-Jul-2022
280,Revenue,CAHD,South Glos Users in South Glos Homes,Permanent Nursing,Avon Lodge Care Centre,836.76, 26-Jul-2022
281,Revenue,CAHD,South Glos Users in South Glos Homes,Permanent Nursing,Avon Lodge Care Centre,-905.78, 26-Jul-2022
282,Revenue,CAHD,South Glos Users in South Glos Homes,Permanent Nursing,Avon Lodge Care Centre,836.76, 26-Jul-2022
283,Revenue,CAHD,South Glos Users in South Glos Homes,Permanent Nursing,Avon Lodge Care Centre,59.56, 26-Jul-2022
284,Revenue,CAHD,South Glos Users in South Glos Homes,Permanent Nursing,Avon Lodge Care Centre,836.76, 26-Jul-2022
285,Revenue,CAHD,South Glos Users in South Glos Homes,Permanent Nursing,Avon Lodge Care Centre,836.76, 26-Jul-2022
286,Revenue,CAHD,South Glos Users in South Glos Homes,Permanent Nursing,Avon Lodge Care Centre,836.76, 26-Jul-2022
287,Revenue,CAHD,Central - Commissioned Services,Permanent Nursing,Avon Lodge Care Centre,7979.18, 26-Jul-2022
288,Revenue,CAHD,Central - Commissioned Services,Permanent Nursing,Avon Lodge Care Centre,4120.64, 26-Jul-2022
289,Revenue,CAHD,Central - Commissioned Services,Fees & Charges Income - General,Avon Lodge Care Centre,-2248.48, 26-Jul-2022
290,Revenue,CAHD,Central - Commissioned Services,Fees & Charges Income - General,Avon Lodge Care Centre,-956.96, 26-Jul-2022
291,Revenue,CAHD,South - Commissioned Services,Permanent Residential,Avon Lodge Care Centre,3318.24, 26-Jul-2022
292,Revenue,CAHD,South - Commissioned Services,Permanent Residential,Avon Lodge Care Centre,3816.00, 26-Jul-2022
293,Revenue,CAHD,South - Commissioned Services,Permanent Residential,Avon Lodge Care Centre,4028.00, 26-Jul-2022
294,Revenue,CAHD,South - Commissioned Services,Permanent Residential,Avon Lodge Care Centre,4296.00, 26-Jul-2022
295,Revenue,CAHD,South - Commissioned Services,Permanent Residential,Avon Lodge Care Centre,4296.48, 26-Jul-2022
296,Revenue,CAHD,South - Commissioned Services,Permanent Residential,Avon Lodge Care Centre,3667.60, 26-Jul-2022
297,Revenue,CAHD,South - Commissioned Services,Permanent Nursing,Avon Lodge Care Centre,4028.00, 26-Jul-2022
298,Revenue,CAHD,South - Commissioned Services,Permanent Nursing,Avon Lodge Care Centre,4296.48, 26-Jul-2022
299,Revenue,CAHD,South - Commissioned Services,Permanent Nursing,Avon Lodge Care Centre,5349.68, 26-Jul-2022
300,Revenue,CAHD,South - Commissioned Services,Permanent Nursing,Avon Lodge Care Centre,3539.44, 26-Jul-2022
301,Revenue,CAHD,South - Commissioned Services,Permanent Nursing,Avon Lodge Care Centre,-5692.20, 26-Jul-2022
302,Revenue,CAHD,South - Commissioned Services,Permanent Nursing,Avon Lodge Care Centre,3751.96, 26-Jul-2022
303,Revenue,CAHD,South - Commissioned Services,Permanent Nursing,Avon Lodge Care Centre,4714.76, 26-Jul-2022
304,Revenue,CAHD,South - Commissioned Services,Permanent Nursing,Avon Lodge Care Centre,4775.44, 26-Jul-2022
305,Revenue,CAHD,South - Commissioned Services,Permanent Nursing,Avon Lodge Care Centre,4674.92, 26-Jul-2022
306,Revenue,CAHD,South - Commissioned Services,Permanent Nursing,Avon Lodge Care Centre,4664.00, 26-Jul-2022
307,Revenue,CAHD,South - Commissioned Services,Permanent Nursing,Avon Lodge Care Centre,4120.64, 26-Jul-2022
308,Revenue,CAHD,South - Commissioned Services,Permanent Nursing,Avon Lodge Care Centre,4554.28, 26-Jul-2022
309,Revenue,CAHD,South - Commissioned Services,Permanent Nursing,Avon Lodge Care Centre,4554.28, 26-Jul-2022
310,Revenue,CAHD,South - Commissioned Services,Permanent Nursing,Avon Lodge Care Centre,9973.97, 26-Jul-2022
311,Revenue,CAHD,South - Commissioned Services,Permanent Nursing,Avon Lodge Care Centre,-5263.15, 26-Jul-2022
312,Revenue,CAHD,South - Commissioned Services,Respite Planned - Nursing,Avon Lodge Care Centre,8625.00, 26-Jul-2022
313,Revenue,CAHD,South - Commissioned Services,Fees & Charges Income - General,Avon Lodge Care Centre,-679.80, 26-Jul-2022
314,Revenue,CAHD,South - Commissioned Services,Fees & Charges Income - General,Avon Lodge Care Centre,-725.24, 26-Jul-2022
315,Revenue,CAHD,South - Commissioned Services,Fees & Charges Income - General,Avon Lodge Care Centre,-1066.12, 26-Jul-2022
316,Revenue,CAHD,South - Commissioned Services,Fees & Charges Income - General,Avon Lodge Care Centre,-1393.76, 26-Jul-2022
317,Revenue,CAHD,South - Commissioned Services,Fees & Charges Income - General,Avon Lodge Care Centre,-1525.00, 26-Jul-2022
318,Revenue,CAHD,South - Commissioned Services,Fees & Charges Income - General,Avon Lodge Care Centre,-438.80, 26-Jul-2022
319,Revenue,CAHD,South - Commissioned Services,Fees & Charges Income - General,Avon Lodge Care Centre,-1280.20, 26-Jul-2022
320,Revenue,CAHD,South - Commissioned Services,Fees & Charges Income - General,Avon Lodge Care Centre,-1017.44, 26-Jul-2022
321,Revenue,CAHD,South - Commissioned Services,Fees & Charges Income - General,Avon Lodge Care Centre,-852.32, 26-Jul-2022
322,Revenue,CAHD,South - Commissioned Services,Fees & Charges Income - General,Avon Lodge Care Centre,-1056.84, 26-Jul-2022
323,Revenue,CAHD,South - Commissioned Services,Fees & Charges Income - General,Avon Lodge Care Centre,-1889.12, 26-Jul-2022
324,Revenue,CAHD,South - Commissioned Services,Fees & Charges Income - General,Avon Lodge Care Centre,-2319.64, 26-Jul-2022
325,Revenue,CAHD,South - Commissioned Services,Fees & Charges Income - General,Avon Lodge Care Centre,-635.48, 26-Jul-2022
326,Revenue,CAHD,South - Commissioned Services,Fees & Charges Income - General,Avon Lodge Care Centre,-627.80, 26-Jul-2022
327,Revenue,CAHD,South - Commissioned Services,Fees & Charges Income - General,Avon Lodge Care Centre,-650.48, 26-Jul-2022
328,Revenue,CAHD,South - Commissioned Services,Fees & Charges Income - General,Avon Lodge Care Centre,-3081.38, 26-Jul-2022
329,Revenue,CAHD,South - Commissioned Services,Fees & Charges Income - General,Avon Lodge Care Centre,-1032.28, 26-Jul-2022
330,Revenue,CAHD,South - Commissioned Services,Fees & Charges Income - General,Avon Lodge Care Centre,722.98, 26-Jul-2022
331,Revenue,CAHD,South - Commissioned Services,Fees & Charges Income - General,Avon Lodge Care Centre,-627.80, 26-Jul-2022
332,Revenue,CAHD,North - Community based support,Permanent Residential,Avon Lodge Care Centre,3751.96, 26-Jul-2022
333,Revenue,CAHD,North - Community based support,Permanent Nursing,Avon Lodge Care Centre,4553.76, 26-Jul-2022
334,Revenue,CAHD,North - Community based support,Permanent Nursing,Avon Lodge Care Centre,4296.00, 26-Jul-2022
335,Revenue,CAHD,North - Community based support,Permanent Nursing,Avon Lodge Care Centre,487.90, 26-Jul-2022
336,Revenue,CAHD,North - Community based support,Permanent Nursing,Avon Lodge Care Centre,4120.64, 26-Jul-2022
337,Revenue,CAHD,North - Community based support,Respite Planned - Nursing,Avon Lodge Care Centre,2907.85, 26-Jul-2022
338,Revenue,CAHD,North - Community based support,Fees & Charges Income - General,Avon Lodge Care Centre,-627.80, 26-Jul-2022
339,Revenue,CAHD,North - Community based support,Fees & Charges Income - General,Avon Lodge Care Centre,-1177.64, 26-Jul-2022
340,Revenue,CAHD,North - Community based support,Fees & Charges Income - General,Avon Lodge Care Centre,-1493.16, 26-Jul-2022
341,Revenue,CAHD,North - Community based support,Fees & Charges Income - General,Avon Lodge Care Centre,-794.36, 26-Jul-2022
342,Revenue,CAHD,South - S117,Permanent Nursing,Avon Lodge Care Centre,4213.32, 26-Jul-2022
343,Revenue,CAHD,Central - Commissioned Services,Permanent Residential,Avon Valley Care Home,4337.52, 26-Jul-2022
344,Revenue,CAHD,Central - Commissioned Services,Fees & Charges Income - General,Avon Valley Care Home,-644.20, 26-Jul-2022
345,Revenue,CAHD,South - Commissioned Services,Permanent Residential,Avon Valley Care Home,4337.52, 26-Jul-2022
346,Revenue,CAHD,South - Commissioned Services,Permanent Residential,Avon Valley Care Home,4526.20, 26-Jul-2022
347,Revenue,CAHD,South - Commissioned Services,Permanent Residential,Avon Valley Care Home,4526.20, 26-Jul-2022
348,Revenue,CAHD,South - Commissioned Services,Permanent Residential,Avon Valley Care Home,4294.16, 26-Jul-2022
349,Revenue,CAHD,South - Commissioned Services,Permanent Residential,Avon Valley Care Home,4483.80, 26-Jul-2022
350,Revenue,CAHD,South - Commissioned Services,Permanent Residential,Avon Valley Care Home,4294.16, 26-Jul-2022
351,Revenue,CAHD,South - Commissioned Services,Permanent Residential,Avon Valley Care Home,4526.20, 26-Jul-2022
352,Revenue,CAHD,South - Commissioned Services,Permanent Residential,Avon Valley Care Home,3214.08, 26-Jul-2022
353,Revenue,CAHD,South - Commissioned Services,Permanent Residential,Avon Valley Care Home,4483.80, 26-Jul-2022
354,Revenue,CAHD,South - Commissioned Services,Permanent Residential,Avon Valley Care Home,4570.00, 26-Jul-2022
355,Revenue,CAHD,South - Commissioned Services,Permanent Residential,Avon Valley Care Home,17899.92, 26-Jul-2022
356,Revenue,CAHD,South - Commissioned Services,Permanent Residential,Avon Valley Care Home,3860.40, 26-Jul-2022
357,Revenue,CAHD,South - Commissioned Services,Permanent Residential,Avon Valley Care Home,4429.64, 26-Jul-2022
358,Revenue,CAHD,South - Commissioned Services,Permanent Residential,Avon Valley Care Home,3980.00, 26-Jul-2022
359,Revenue,CAHD,South - Commissioned Services,Permanent Residential,Avon Valley Care Home,4483.80, 26-Jul-2022
360,Revenue,CAHD,South - Commissioned Services,Permanent Residential,Avon Valley Care Home,3980.00, 26-Jul-2022
361,Revenue,CAHD,South - Commissioned Services,Fees & Charges Income - General,Avon Valley Care Home,-628.16, 26-Jul-2022
362,Revenue,CAHD,South - Commissioned Services,Fees & Charges Income - General,Avon Valley Care Home,-1111.12, 26-Jul-2022
363,Revenue,CAHD,South - Commissioned Services,Fees & Charges Income - General,Avon Valley Care Home,-1009.24, 26-Jul-2022
364,Revenue,CAHD,South - Commissioned Services,Fees & Charges Income - General,Avon Valley Care Home,-1285.52, 26-Jul-2022
365,Revenue,CAHD,South - Commissioned Services,Fees & Charges Income - General,Avon Valley Care Home,-1040.32, 26-Jul-2022
366,Revenue,CAHD,South - Commissioned Services,Fees & Charges Income - General,Avon Valley Care Home,0.00, 26-Jul-2022
367,Revenue,CAHD,South - Commissioned Services,Fees & Charges Income - General,Avon Valley Care Home,-1972.56, 26-Jul-2022
368,Revenue,CAHD,South - Commissioned Services,Fees & Charges Income - General,Avon Valley Care Home,-2512.96, 26-Jul-2022
369,Revenue,CAHD,South - Commissioned Services,Fees & Charges Income - General,Avon Valley Care Home,-1202.56, 26-Jul-2022
370,Revenue,CAHD,South - Commissioned Services,Fees & Charges Income - General,Avon Valley Care Home,-1100.24, 26-Jul-2022
371,Revenue,CAHD,South - Commissioned Services,Fees & Charges Income - General,Avon Valley Care Home,-627.80, 26-Jul-2022
372,Revenue,CAHD,South - Commissioned Services,Fees & Charges Income - General,Avon Valley Care Home,-1175.92, 26-Jul-2022
373,Revenue,CAHD,South - Commissioned Services,Fees & Charges Income - General,Avon Valley Care Home,-793.84, 26-Jul-2022
374,Revenue,CAHD,South - S117,Permanent Residential,Avon Valley Care Home,4337.52, 26-Jul-2022
375,Revenue,CAHD,North - Community based support,Permanent Residential,Avonmere Care Home,4960.80, 26-Jul-2022
376,Revenue,CAHD,North - Community based support,Permanent Residential,Avonmere Care Home,-17199.28, 26-Jul-2022
377,Revenue,CAHD,North - Community based support,Permanent Residential,Avonmere Care Home,4680.00, 26-Jul-2022
378,Revenue,CAHD,North - Community based support,Permanent Residential,Avonmere Care Home,4793.00, 26-Jul-2022
379,Revenue,CAHD,North - Community based support,Permanent Residential,Avonmere Care Home,4876.00, 26-Jul-2022
380,Revenue,CAHD,North - Community based support,Permanent Residential,Avonmere Care Home,5003.20, 26-Jul-2022
381,Revenue,CAHD,North - Community based support,Respite Emergency - Residential,Avonmere Care Home,4140.00, 26-Jul-2022
382,Revenue,CAHD,North - Community based support,Fees & Charges Income - General,Avonmere Care Home,-1090.32, 26-Jul-2022
383,Revenue,CAHD,North - Community based support,Fees & Charges Income - General,Avonmere Care Home,-1883.76, 26-Jul-2022
384,Revenue,CAHD,North - Community based support,Fees & Charges Income - General,Avonmere Care Home,-1002.96, 26-Jul-2022
385,Revenue,CAHD,North - Community based support,Fees & Charges Income - General,Avonmere Care Home,-1111.72, 26-Jul-2022
386,Revenue,CAHD,North - Community based support,Fees & Charges Income - General,Avonmere Care Home,-1170.96, 26-Jul-2022
387,Revenue,CAHD,Adult & Community Learning Growth Funding 21/22,Premises Hire,BAC Trading Limited,3374.90, 29-Jul-2022
388,Revenue,CAHD,South Glos Users in South Glos Homes,Permanent Nursing,Badminton Place,5195.07, 26-Jul-2022
389,Revenue,CAHD,South Glos Users in South Glos Homes,Permanent Nursing,Badminton Place,836.76, 26-Jul-2022
390,Revenue,CAHD,South Glos Users in South Glos Homes,Permanent Nursing,Badminton Place,836.76, 26-Jul-2022
391,Revenue,CAHD,South Glos Users in South Glos Homes,Permanent Nursing,Badminton Place,836.76, 26-Jul-2022
392,Revenue,CAHD,South Glos Users in South Glos Homes,Permanent Nursing,Badminton Place,836.76, 26-Jul-2022
393,Revenue,CAHD,South Glos Users in South Glos Homes,Permanent Nursing,Badminton Place,836.76, 26-Jul-2022
394,Revenue,CAHD,South Glos Users in South Glos Homes,Permanent Nursing,Badminton Place,836.76, 26-Jul-2022
395,Revenue,CAHD,Central - Commissioned Services,Permanent Residential,Badminton Place,5400.00, 26-Jul-2022
396,Revenue,CAHD,Central - Commissioned Services,Permanent Residential,Badminton Place,14857.14, 26-Jul-2022
397,Revenue,CAHD,Central - Commissioned Services,Permanent Nursing,Badminton Place,6352.00, 26-Jul-2022
398,Revenue,CAHD,Central - Commissioned Services,Fees & Charges Income - General,Badminton Place,-1211.60, 26-Jul-2022
399,Revenue,CAHD,Central - Commissioned Services,Fees & Charges Income - General,Badminton Place,-1242.15, 26-Jul-2022
400,Revenue,CAHD,South - Commissioned Services,Permanent Residential,Badminton Place,3136.52, 26-Jul-2022
401,Revenue,CAHD,South - Commissioned Services,Fees & Charges Income - General,Badminton Place,-1502.80, 26-Jul-2022
402,Revenue,CAHD,North - Community based support,Permanent Residential,Badminton Place,4480.00, 26-Jul-2022
403,Revenue,CAHD,North - Community based support,Permanent Nursing,Badminton Place,5156.16, 26-Jul-2022
404,Revenue,CAHD,North - Community based support,Permanent Nursing,Badminton Place,5974.00, 26-Jul-2022
405,Revenue,CAHD,North - Community based support,Fees & Charges Income - General,Badminton Place,-689.68, 26-Jul-2022
406,Revenue,CAHD,North - Community based support,Fees & Charges Income - General,Badminton Place,-991.64, 26-Jul-2022
407,Revenue,CAHD,Adult & Community Learning Growth Funding 21/22,Premises Hire,Banjo Island Community & Sports Association,486.00, 27-Jul-2022
408,Revenue,CAHD,Adult & Community Learning Employability 21/22,Premises Hire,Banjo Island Community & Sports Association,60.00, 27-Jul-2022
409,Revenue,CAHD,Healthy Foundations,Other Small Contracts,Barnardos,7650.00, 13-Jul-2022
410,Revenue,CAHD,Pensions - Non DSG,Unfunded Annual Pension,Bath & North East Somerset Council,100754.69, 04-Jul-2022
411,Revenue,CAHD,CSC - Adoption Support Fund,Post Adoption,Individual,1155.00, 04-Jul-2022
412,Revenue,CAHD,South Glos Users in South Glos Homes,Permanent Nursing,Beaufort Grange Care Home,836.76, 26-Jul-2022
413,Revenue,CAHD,South Glos Users in South Glos Homes,Permanent Nursing,Beaufort Grange Care Home,836.76, 26-Jul-2022
414,Revenue,CAHD,South Glos Users in South Glos Homes,Permanent Nursing,Beaufort Grange Care Home,836.76, 26-Jul-2022
415,Revenue,CAHD,South Glos Users in South Glos Homes,Permanent Nursing,Beaufort Grange Care Home,836.76, 26-Jul-2022
416,Revenue,CAHD,South Glos Users in South Glos Homes,Permanent Nursing,Beaufort Grange Care Home,836.76, 26-Jul-2022
417,Revenue,CAHD,South Glos Users in South Glos Homes,Permanent Nursing,Beaufort Grange Care Home,836.76, 26-Jul-2022
418,Revenue,CAHD,South Glos Users in South Glos Homes,Permanent Nursing,Beaufort Grange Care Home,836.76, 26-Jul-2022
419,Revenue,CAHD,South Glos Users in South Glos Homes,Permanent Nursing,Beaufort Grange Care Home,836.76, 26-Jul-2022
420,Revenue,CAHD,South Glos Users in South Glos Homes,Permanent Nursing,Beaufort Grange Care Home,836.76, 26-Jul-2022
421,Revenue,CAHD,South Glos Users in South Glos Homes,Permanent Nursing,Beaufort Grange Care Home,836.76, 26-Jul-2022
422,Revenue,CAHD,South Glos Users in South Glos Homes,Permanent Nursing,Beaufort Grange Care Home,836.76, 26-Jul-2022
423,Revenue,CAHD,South Glos Users in South Glos Homes,Permanent Nursing,Beaufort Grange Care Home,836.76, 26-Jul-2022
424,Revenue,CAHD,South Glos Users in South Glos Homes,Permanent Nursing,Beaufort Grange Care Home,836.76, 26-Jul-2022
425,Revenue,CAHD,South Glos Users in South Glos Homes,Permanent Nursing,Beaufort Grange Care Home,836.76, 26-Jul-2022
426,Revenue,CAHD,South Glos Users in South Glos Homes,Permanent Nursing,Beaufort Grange Care Home,836.76, 26-Jul-2022
427,Revenue,CAHD,South Glos Users in South Glos Homes,Permanent Nursing,Beaufort Grange Care Home,836.76, 26-Jul-2022
428,Revenue,CAHD,South Glos Users in South Glos Homes,Permanent Nursing,Beaufort Grange Care Home,836.76, 26-Jul-2022
429,Revenue,CAHD,South Glos Users in South Glos Homes,Permanent Nursing,Beaufort Grange Care Home,836.76, 26-Jul-2022
430,Revenue,CAHD,South Glos Users in South Glos Homes,Permanent Nursing,Beaufort Grange Care Home,836.76, 26-Jul-2022
431,Revenue,CAHD,South Glos Users in South Glos Homes,Permanent Nursing,Beaufort Grange Care Home,836.76, 26-Jul-2022
432,Revenue,CAHD,South Glos Users in South Glos Homes,Permanent Nursing,Beaufort Grange Care Home,836.76, 26-Jul-2022
433,Revenue,CAHD,South Glos Users in South Glos Homes,Permanent Nursing,Beaufort Grange Care Home,836.76, 26-Jul-2022
434,Revenue,CAHD,South Glos Users in South Glos Homes,Permanent Nursing,Beaufort Grange Care Home,836.76, 26-Jul-2022
435,Revenue,CAHD,South Glos Users in South Glos Homes,Permanent Nursing,Beaufort Grange Care Home,836.76, 26-Jul-2022
436,Revenue,CAHD,South Glos Users in South Glos Homes,Permanent Nursing,Beaufort Grange Care Home,836.76, 26-Jul-2022
437,Revenue,CAHD,South Glos Users in South Glos Homes,Permanent Nursing,Beaufort Grange Care Home,836.76, 26-Jul-2022
438,Revenue,CAHD,South Glos Users in South Glos Homes,Permanent Nursing,Beaufort Grange Care Home,836.76, 26-Jul-2022
439,Revenue,CAHD,South Glos Users in South Glos Homes,Permanent Nursing,Beaufort Grange Care Home,836.76, 26-Jul-2022
440,Revenue,CAHD,South Glos Users in South Glos Homes,Permanent Nursing,Beaufort Grange Care Home,836.76, 26-Jul-2022
441,Revenue,CAHD,South Glos Users in South Glos Homes,Permanent Nursing,Beaufort Grange Care Home,836.76, 26-Jul-2022
442,Revenue,CAHD,South Glos Users in South Glos Homes,Permanent Nursing,Beaufort Grange Care Home,836.76, 26-Jul-2022
443,Revenue,CAHD,South Glos Users in South Glos Homes,Permanent Nursing,Beaufort Grange Care Home,836.76, 26-Jul-2022
444,Revenue,CAHD,South Glos Users in South Glos Homes,Permanent Nursing,Beaufort Grange Care Home,836.76, 26-Jul-2022
445,Revenue,CAHD,South Glos Users in South Glos Homes,Permanent Nursing,Beaufort Grange Care Home,836.76, 26-Jul-2022
446,Revenue,CAHD,South Glos Users in South Glos Homes,Permanent Nursing,Beaufort Grange Care Home,836.76, 26-Jul-2022
447,Revenue,CAHD,South Glos Users in South Glos Homes,Permanent Nursing,Beaufort Grange Care Home,836.76, 26-Jul-2022
448,Revenue,CAHD,South Glos Users in South Glos Homes,Permanent Nursing,Beaufort Grange Care Home,836.76, 26-Jul-2022
449,Revenue,CAHD,South Glos Users in South Glos Homes,Permanent Nursing,Beaufort Grange Care Home,836.76, 26-Jul-2022
450,Revenue,CAHD,Central - Commissioned Services,Permanent Residential,Beaufort Grange Care Home,7200.00, 26-Jul-2022
451,Revenue,CAHD,Central - Commissioned Services,Permanent Nursing,Beaufort Grange Care Home,5500.00, 26-Jul-2022
452,Revenue,CAHD,Central - Commissioned Services,Permanent Nursing,Beaufort Grange Care Home,11684.00, 26-Jul-2022
453,Revenue,CAHD,Central - Commissioned Services,Permanent Nursing,Beaufort Grange Care Home,5400.00, 26-Jul-2022
454,Revenue,CAHD,Central - Commissioned Services,Permanent Nursing,Beaufort Grange Care Home,5500.00, 26-Jul-2022
455,Revenue,CAHD,Central - Commissioned Services,Permanent Nursing,Beaufort Grange Care Home,5449.60, 26-Jul-2022
456,Revenue,CAHD,Central - Commissioned Services,Fees & Charges Income - General,Beaufort Grange Care Home,-607.80, 26-Jul-2022
457,Revenue,CAHD,Central - Commissioned Services,Fees & Charges Income - General,Beaufort Grange Care Home,-627.80, 26-Jul-2022
458,Revenue,CAHD,South - Commissioned Services,Permanent Nursing,Beaufort Grange Care Home,6400.00, 26-Jul-2022
459,Revenue,CAHD,North - Community based support,Permanent Nursing,Beaufort Grange Care Home,4369.60, 26-Jul-2022
460,Revenue,CAHD,North - Community based support,Permanent Nursing,Beaufort Grange Care Home,10620.00, 26-Jul-2022
461,Revenue,CAHD,North - Community based support,Fees & Charges Income - General,Beaufort Grange Care Home,-627.80, 26-Jul-2022
462,Revenue,CAHD,North - Community based support,Fees & Charges Income - General,Beaufort Grange Care Home,-438.80, 26-Jul-2022
463,Revenue,CAHD,Central Team - S117,Permanent Nursing,Beaufort Grange Care Home,6686.36, 26-Jul-2022
464,Revenue,CAHD,Central - Commissioned Services,Permanent Residential,Beaufort House,3171.36, 26-Jul-2022
465,Revenue,CAHD,Central - Commissioned Services,Permanent Residential,Beaufort House,3070.00, 26-Jul-2022
466,Revenue,CAHD,Central - Commissioned Services,Permanent Residential,Beaufort House,4000.00, 26-Jul-2022
467,Revenue,CAHD,Central - Commissioned Services,Permanent Residential,Beaufort House,4028.00, 26-Jul-2022
468,Revenue,CAHD,Central - Commissioned Services,Permanent Residential,Beaufort House,3582.80, 26-Jul-2022
469,Revenue,CAHD,Central - Commissioned Services,Permanent Residential,Beaufort House,3392.00, 26-Jul-2022
470,Revenue,CAHD,Central - Commissioned Services,Permanent Residential,Beaufort House,4240.00, 26-Jul-2022
471,Revenue,CAHD,Central - Commissioned Services,Permanent Residential,Beaufort House,3816.00, 26-Jul-2022
472,Revenue,CAHD,Central - Commissioned Services,Permanent Residential,Beaufort House,3816.00, 26-Jul-2022
473,Revenue,CAHD,Central - Commissioned Services,Fees & Charges Income - General,Beaufort House,-821.12, 26-Jul-2022
474,Revenue,CAHD,Central - Commissioned Services,Fees & Charges Income - General,Beaufort House,-938.32, 26-Jul-2022
475,Revenue,CAHD,Central - Commissioned Services,Fees & Charges Income - General,Beaufort House,-1642.08, 26-Jul-2022
476,Revenue,CAHD,Central - Commissioned Services,Fees & Charges Income - General,Beaufort House,-731.44, 26-Jul-2022
477,Revenue,CAHD,Central - Commissioned Services,Fees & Charges Income - General,Beaufort House,-1448.48, 26-Jul-2022
478,Revenue,CAHD,Central - Commissioned Services,Fees & Charges Income - General,Beaufort House,-751.32, 26-Jul-2022
479,Revenue,CAHD,Central - Commissioned Services,Fees & Charges Income - General,Beaufort House,-627.80, 26-Jul-2022
480,Revenue,CAHD,North - Community based support,Permanent Residential,Beaufort House,4240.00, 26-Jul-2022
481,Revenue,CAHD,North - Community based support,Permanent Residential,Beaufort House,2986.32, 26-Jul-2022
482,Revenue,CAHD,North - Community based support,Permanent Residential,Beaufort House,4240.00, 26-Jul-2022
483,Revenue,CAHD,North - Community based support,Fees & Charges Income - General,Beaufort House,-1166.52, 26-Jul-2022
484,Revenue,CAHD,North - Community based support,Fees & Charges Income - General,Beaufort House,-627.80, 26-Jul-2022
485,Revenue,CAHD,North - Community based support,Fees & Charges Income - General,Beaufort House,-663.80, 26-Jul-2022
486,Revenue,CAHD,Ukranian Refugees,Other Small Contracts,Individual,658.26, 08-Jul-2022
487,Revenue,CAHD,South Glos Users in South Glos Homes,Permanent Nursing,Beech House,836.76, 26-Jul-2022
488,Revenue,CAHD,South Glos Users in South Glos Homes,Permanent Nursing,Beech House,836.76, 26-Jul-2022
489,Revenue,CAHD,South Glos Users in South Glos Homes,Permanent Nursing,Beech House,1742.00, 26-Jul-2022
490,Revenue,CAHD,South Glos Users in South Glos Homes,Permanent Nursing,Beech House,836.76, 26-Jul-2022
491,Revenue,CAHD,South Glos Users in South Glos Homes,Permanent Nursing,Beech House,836.76, 26-Jul-2022
492,Revenue,CAHD,South Glos Users in South Glos Homes,Permanent Nursing,Beech House,836.76, 26-Jul-2022
493,Revenue,CAHD,South Glos Users in South Glos Homes,Permanent Nursing,Beech House,5570.27, 26-Jul-2022
494,Revenue,CAHD,South Glos Users in South Glos Homes,Permanent Nursing,Beech House,836.76, 26-Jul-2022
495,Revenue,CAHD,South Glos Users in South Glos Homes,Permanent Nursing,Beech House,836.76, 26-Jul-2022
496,Revenue,CAHD,South Glos Users in South Glos Homes,Permanent Nursing,Beech House,836.76, 26-Jul-2022
497,Revenue,CAHD,South Glos Users in South Glos Homes,Permanent Nursing,Beech House,836.76, 26-Jul-2022
498,Revenue,CAHD,South Glos Users in South Glos Homes,Permanent Nursing,Beech House,836.76, 26-Jul-2022
499,Revenue,CAHD,South Glos Users in South Glos Homes,Permanent Nursing,Beech House,836.76, 26-Jul-2022
500,Revenue,CAHD,South Glos Users in South Glos Homes,Permanent Nursing,Beech House,836.76, 26-Jul-2022
501,Revenue,CAHD,South Glos Users in South Glos Homes,Permanent Nursing,Beech House,836.76, 26-Jul-2022
502,Revenue,CAHD,South Glos Users in South Glos Homes,Permanent Nursing,Beech House,836.76, 26-Jul-2022
503,Revenue,CAHD,South Glos Users in South Glos Homes,Permanent Nursing,Beech House,5838.27, 26-Jul-2022
504,Revenue,CAHD,South Glos Users in South Glos Homes,Permanent Nursing,Beech House,836.76, 26-Jul-2022
505,Revenue,CAHD,South Glos Users in South Glos Homes,Permanent Nursing,Beech House,836.76, 26-Jul-2022
506,Revenue,CAHD,South Glos Users in South Glos Homes,Permanent Nursing,Beech House,836.76, 26-Jul-2022
507,Revenue,CAHD,South Glos Users in South Glos Homes,Permanent Nursing,Beech House,836.76, 26-Jul-2022
508,Revenue,CAHD,South Glos Users in South Glos Homes,Permanent Nursing,Beech House,5623.87, 26-Jul-2022
509,Revenue,CAHD,South - Commissioned Services,Permanent Residential,Beech House,4748.80, 26-Jul-2022
510,Revenue,CAHD,South - Commissioned Services,Fees & Charges Income - General,Beech House,-789.36, 26-Jul-2022
511,Revenue,CAHD,North - Community based support,Permanent Residential,Beech House,4727.88, 26-Jul-2022
512,Revenue,CAHD,North - Community based support,Permanent Residential,Beech House,4748.80, 26-Jul-2022
513,Revenue,CAHD,North - Community based support,Permanent Residential,Beech House,4748.80, 26-Jul-2022
514,Revenue,CAHD,North - Community based support,Permanent Residential,Beech House,4772.80, 26-Jul-2022
515,Revenue,CAHD,North - Community based support,Permanent Residential,Beech House,4748.80, 26-Jul-2022
516,Revenue,CAHD,North - Community based support,Permanent Residential,Beech House,4664.00, 26-Jul-2022
517,Revenue,CAHD,North - Community based support,Permanent Nursing,Beech House,-29929.43, 26-Jul-2022
518,Revenue,CAHD,North - Community based support,Permanent Nursing,Beech House,6657.14, 26-Jul-2022
519,Revenue,CAHD,North - Community based support,Permanent Nursing,Beech House,4641.16, 26-Jul-2022
520,Revenue,CAHD,North - Community based support,Permanent Nursing,Beech House,5848.30, 26-Jul-2022
521,Revenue,CAHD,North - Community based support,Permanent Nursing,Beech House,4671.56, 26-Jul-2022
522,Revenue,CAHD,North - Community based support,Permanent Nursing,Beech House,836.76, 26-Jul-2022
523,Revenue,CAHD,North - Community based support,Fees & Charges Income - General,Beech House,6778.24, 26-Jul-2022
524,Revenue,CAHD,North - Community based support,Fees & Charges Income - General,Beech House,-627.80, 26-Jul-2022
525,Revenue,CAHD,North - Community based support,Fees & Charges Income - General,Beech House,-2720.86, 26-Jul-2022
526,Revenue,CAHD,North - Community based support,Fees & Charges Income - General,Beech House,-1356.72, 26-Jul-2022
527,Revenue,CAHD,North - Community based support,Fees & Charges Income - General,Beech House,-1601.04, 26-Jul-2022
528,Revenue,CAHD,North - Community based support,Fees & Charges Income - General,Beech House,-1856.44, 26-Jul-2022
529,Revenue,CAHD,North - Community based support,Fees & Charges Income - General,Beech House,-629.00, 26-Jul-2022
530,Revenue,CAHD,North - Community based support,Fees & Charges Income - General,Beech House,-1428.72, 26-Jul-2022
531,Revenue,CAHD,North - Community based support,Fees & Charges Income - General,Beech House,-840.16, 26-Jul-2022
532,Revenue,CAHD,North - Community based support,Fees & Charges Income - General,Beech House,-1304.60, 26-Jul-2022
533,Revenue,CAHD,South Glos Users in South Glos Homes,Permanent Nursing,Beechwood Care Home,1122.40, 26-Jul-2022
534,Revenue,CAHD,Central - Commissioned Services,Permanent Nursing,Begbrook House Nursing Home,3400.00, 26-Jul-2022
535,Revenue,CAHD,Central - Commissioned Services,Fees & Charges Income - General,Begbrook House Nursing Home,-643.04, 26-Jul-2022
536,Revenue,CAHD,South - Commissioned Services,Permanent Residential,Begbrook House Nursing Home,3400.00, 26-Jul-2022
537,Revenue,CAHD,South - Commissioned Services,Permanent Nursing,Begbrook House Nursing Home,3593.88, 26-Jul-2022
538,Revenue,CAHD,South - Commissioned Services,Fees & Charges Income - General,Begbrook House Nursing Home,-1081.52, 26-Jul-2022
539,Revenue,CAHD,South - Commissioned Services,Fees & Charges Income - General,Begbrook House Nursing Home,-895.20, 26-Jul-2022
540,Revenue,CAHD,Schools Specific Grant Income,Other Public Bodies,Begbrook Primary Academy,500.00, 08-Jul-2022
541,Revenue,CAHD,Schools Specific Grant Income,Other Public Bodies,Begbrook Primary Academy,500.00, 08-Jul-2022
542,Revenue,CAHD,CSC - Age Related Allowances,Foster Parent Allowances,Individual,156.00, 15-Jul-2022
543,Revenue,CAHD,CSC - Age Related Allowances,Respite Care,Individual,808.72, 15-Jul-2022
544,Revenue,CAHD,CSC - Professional Fees Foster Carers,Respite Care,Individual,825.72, 15-Jul-2022
545,Revenue,CAHD,CSC - Professional Fees Foster Carers,Band 1 Foster Care,Individual,170.00, 15-Jul-2022
546,Revenue,CAHD,South - S117,Permanent Residential,Bidna House,3774.24, 26-Jul-2022
547,Revenue,CAHD,Schools Specific Grant Income,Other Public Bodies,Blaise High School,500.00, 08-Jul-2022
548,Revenue,CAHD,Schools Specific Grant Income,Other Public Bodies,Blaise High School,500.00, 08-Jul-2022
549,Revenue,CAHD,Schools Specific Grant Income,Other Public Bodies,Blaise High School,500.00, 08-Jul-2022
550,Revenue,CAHD,Schools Specific Grant Income,Other Public Bodies,Blaise High School,2320.00, 08-Jul-2022
551,Revenue,CAHD,Placements OLA Special Schools and RB,Other L.A.s - General,Blaise High School,792.40, 22-Jul-2022
552,Revenue,CAHD,Placements OLA Special Schools and RB,Other L.A.s - General,Blaise High School,792.40, 22-Jul-2022
553,Revenue,CAHD,Statemented Support Payments to OLAs,Other L.A.s - General,Blaise High School,907.83, 22-Jul-2022
554,Revenue,CAHD,Placements OLA Special Schools and RB,Other L.A.s - General,Blaise High School,792.40, 22-Jul-2022
555,Revenue,CAHD,North - Community based support,Other Small Contracts,Blakehill Healthcare Ltd,4579.08, 19-Jul-2022
556,Revenue,CAHD,South - Commissioned Services,Other Small Contracts,Blakehill Healthcare Ltd,4720.99, 19-Jul-2022
557,Revenue,CAHD,Central - Commissioned Services,Other Small Contracts,Blakehill Healthcare Ltd,6229.27, 19-Jul-2022
558,Revenue,CAHD,North - Community based support,Other Small Contracts,Blakehill Healthcare Ltd,4579.08, 19-Jul-2022
559,Revenue,CAHD,South - Commissioned Services,Other Small Contracts,Blakehill Healthcare Ltd,4720.99, 19-Jul-2022
560,Revenue,CAHD,Central - Commissioned Services,Other Small Contracts,Blakehill Healthcare Ltd,6229.27, 19-Jul-2022
561,Revenue,CAHD,North - Community based support,Other Small Contracts,Blakehill Healthcare Ltd,4579.08, 19-Jul-2022
562,Revenue,CAHD,South - Commissioned Services,Other Small Contracts,Blakehill Healthcare Ltd,4720.99, 19-Jul-2022
563,Revenue,CAHD,Central - Commissioned Services,Other Small Contracts,Blakehill Healthcare Ltd,6229.27, 19-Jul-2022
564,Revenue,CAHD,North - Community based support,Other Small Contracts,Blakehill Healthcare Ltd,4579.08, 21-Jul-2022
565,Revenue,CAHD,South - Commissioned Services,Other Small Contracts,Blakehill Healthcare Ltd,4720.99, 21-Jul-2022
566,Revenue,CAHD,Central - Commissioned Services,Other Small Contracts,Blakehill Healthcare Ltd,6229.27, 21-Jul-2022
567,Revenue,CAHD,North - Community based support,Other Small Contracts,Blakehill Healthcare Ltd,4579.08, 21-Jul-2022
568,Revenue,CAHD,South - Commissioned Services,Other Small Contracts,Blakehill Healthcare Ltd,4720.99, 21-Jul-2022
569,Revenue,CAHD,Central - Commissioned Services,Other Small Contracts,Blakehill Healthcare Ltd,6229.27, 21-Jul-2022
570,Revenue,CAHD,South Glos Users in South Glos Homes,Permanent Nursing,Blossom Fields Nursing Home,836.76, 26-Jul-2022
571,Revenue,CAHD,South Glos Users in South Glos Homes,Permanent Nursing,Blossom Fields Nursing Home,-597.69, 26-Jul-2022
572,Revenue,CAHD,South Glos Users in South Glos Homes,Permanent Nursing,Blossom Fields Nursing Home,836.76, 26-Jul-2022
573,Revenue,CAHD,South Glos Users in South Glos Homes,Permanent Nursing,Blossom Fields Nursing Home,2420.63, 26-Jul-2022
574,Revenue,CAHD,South Glos Users in South Glos Homes,Permanent Nursing,Blossom Fields Nursing Home,836.76, 26-Jul-2022
575,Revenue,CAHD,South Glos Users in South Glos Homes,Permanent Nursing,Blossom Fields Nursing Home,-956.30, 26-Jul-2022
576,Revenue,CAHD,South Glos Users in South Glos Homes,Permanent Nursing,Blossom Fields Nursing Home,-418.38, 26-Jul-2022
577,Revenue,CAHD,South Glos Users in South Glos Homes,Permanent Nursing,Blossom Fields Nursing Home,836.76, 26-Jul-2022
578,Revenue,CAHD,South Glos Users in South Glos Homes,Permanent Nursing,Blossom Fields Nursing Home,836.76, 26-Jul-2022
579,Revenue,CAHD,South Glos Users in South Glos Homes,Permanent Nursing,Blossom Fields Nursing Home,836.76, 26-Jul-2022
580,Revenue,CAHD,South Glos Users in South Glos Homes,Permanent Nursing,Blossom Fields Nursing Home,836.76, 26-Jul-2022
581,Revenue,CAHD,South Glos Users in South Glos Homes,Permanent Nursing,Blossom Fields Nursing Home,836.76, 26-Jul-2022
582,Revenue,CAHD,South Glos Users in South Glos Homes,Permanent Nursing,Blossom Fields Nursing Home,836.76, 26-Jul-2022
583,Revenue,CAHD,South Glos Users in South Glos Homes,Permanent Nursing,Blossom Fields Nursing Home,836.76, 26-Jul-2022
584,Revenue,CAHD,South Glos Users in South Glos Homes,Permanent Nursing,Blossom Fields Nursing Home,836.76, 26-Jul-2022
585,Revenue,CAHD,South Glos Users in South Glos Homes,Permanent Nursing,Blossom Fields Nursing Home,836.76, 26-Jul-2022
586,Revenue,CAHD,South Glos Users in South Glos Homes,Permanent Nursing,Blossom Fields Nursing Home,9.25, 26-Jul-2022
587,Revenue,CAHD,South Glos Users in South Glos Homes,Permanent Nursing,Blossom Fields Nursing Home,836.76, 26-Jul-2022
588,Revenue,CAHD,South Glos Users in South Glos Homes,Permanent Nursing,Blossom Fields Nursing Home,836.76, 26-Jul-2022
589,Revenue,CAHD,South Glos Users in South Glos Homes,Permanent Nursing,Blossom Fields Nursing Home,836.76, 26-Jul-2022
590,Revenue,CAHD,South Glos Users in South Glos Homes,Permanent Nursing,Blossom Fields Nursing Home,836.76, 26-Jul-2022
591,Revenue,CAHD,South Glos Users in South Glos Homes,Permanent Nursing,Blossom Fields Nursing Home,836.76, 26-Jul-2022
592,Revenue,CAHD,South Glos Users in South Glos Homes,Permanent Nursing,Blossom Fields Nursing Home,836.76, 26-Jul-2022
593,Revenue,CAHD,South Glos Users in South Glos Homes,Permanent Nursing,Blossom Fields Nursing Home,836.76, 26-Jul-2022
594,Revenue,CAHD,South Glos Users in South Glos Homes,Permanent Nursing,Blossom Fields Nursing Home,836.76, 26-Jul-2022
595,Revenue,CAHD,South Glos Users in South Glos Homes,Permanent Nursing,Blossom Fields Nursing Home,836.76, 26-Jul-2022
596,Revenue,CAHD,South Glos Users in South Glos Homes,Permanent Nursing,Blossom Fields Nursing Home,-26.80, 26-Jul-2022
597,Revenue,CAHD,South Glos Users in South Glos Homes,Permanent Nursing,Blossom Fields Nursing Home,836.76, 26-Jul-2022
598,Revenue,CAHD,South Glos Users in South Glos Homes,Permanent Nursing,Blossom Fields Nursing Home,836.76, 26-Jul-2022
599,Revenue,CAHD,Central - Commissioned Services,Respite Planned - Residential,Blossom Fields Nursing Home,2400.00, 26-Jul-2022
600,Revenue,CAHD,Central - Commissioned Services,Permanent Nursing,Blossom Fields Nursing Home,430.77, 26-Jul-2022
601,Revenue,CAHD,Central - Commissioned Services,Permanent Nursing,Blossom Fields Nursing Home,-2190.02, 26-Jul-2022
602,Revenue,CAHD,South - Commissioned Services,Permanent Nursing,Blossom Fields Nursing Home,5088.00, 26-Jul-2022
603,Revenue,CAHD,South - Commissioned Services,Permanent Nursing,Blossom Fields Nursing Home,4664.00, 26-Jul-2022
604,Revenue,CAHD,South - Commissioned Services,Permanent Nursing,Blossom Fields Nursing Home,4337.08, 26-Jul-2022
605,Revenue,CAHD,South - Commissioned Services,Fees & Charges Income - General,Blossom Fields Nursing Home,-1482.92, 26-Jul-2022
606,Revenue,CAHD,South - Commissioned Services,Fees & Charges Income - General,Blossom Fields Nursing Home,-997.40, 26-Jul-2022
607,Revenue,CAHD,South - Commissioned Services,Fees & Charges Income - General,Blossom Fields Nursing Home,-750.52, 26-Jul-2022
608,Revenue,CAHD,North - Community based support,Permanent Nursing,Blossom Fields Nursing Home,3036.76, 26-Jul-2022
609,Revenue,CAHD,North - Community based support,Permanent Nursing,Blossom Fields Nursing Home,5204.88, 26-Jul-2022
610,Revenue,CAHD,North - Community based support,Permanent Nursing,Blossom Fields Nursing Home,836.76, 26-Jul-2022
611,Revenue,CAHD,North - Community based support,Permanent Nursing,Blossom Fields Nursing Home,-3302.54, 26-Jul-2022
612,Revenue,CAHD,North - Community based support,Permanent Nursing,Blossom Fields Nursing Home,5300.00, 26-Jul-2022
613,Revenue,CAHD,North - Community based support,Permanent Nursing,Blossom Fields Nursing Home,4664.00, 26-Jul-2022
614,Revenue,CAHD,North - Community based support,Permanent Nursing,Blossom Fields Nursing Home,4380.04, 26-Jul-2022
615,Revenue,CAHD,North - Community based support,Permanent Nursing,Blossom Fields Nursing Home,4664.00, 26-Jul-2022
616,Revenue,CAHD,North - Community based support,Permanent Nursing,Blossom Fields Nursing Home,4379.92, 26-Jul-2022
617,Revenue,CAHD,North - Community based support,Permanent Nursing,Blossom Fields Nursing Home,4380.04, 26-Jul-2022
618,Revenue,CAHD,North - Community based support,Fees & Charges Income - General,Blossom Fields Nursing Home,-375.65, 26-Jul-2022
619,Revenue,CAHD,North - Community based support,Fees & Charges Income - General,Blossom Fields Nursing Home,-627.80, 26-Jul-2022
620,Revenue,CAHD,North - Community based support,Fees & Charges Income - General,Blossom Fields Nursing Home,556.60, 26-Jul-2022
621,Revenue,CAHD,North - Community based support,Fees & Charges Income - General,Blossom Fields Nursing Home,-663.80, 26-Jul-2022
622,Revenue,CAHD,North - Community based support,Fees & Charges Income - General,Blossom Fields Nursing Home,-1665.84, 26-Jul-2022
623,Revenue,CAHD,North - Community based support,Fees & Charges Income - General,Blossom Fields Nursing Home,-939.56, 26-Jul-2022
624,Revenue,CAHD,South Glos Users in South Glos Homes,Permanent Nursing,Blossom Fields Nursing Home,5972.27, 26-Jul-2022
625,Revenue,CAHD,South Glos Users in South Glos Homes,Permanent Nursing,Blossom Fields Nursing Home,836.76, 26-Jul-2022
626,Revenue,CAHD,South Glos Users in South Glos Homes,Permanent Nursing,Blossom Fields Nursing Home,836.76, 26-Jul-2022
627,Revenue,CAHD,South Glos Users in South Glos Homes,Permanent Nursing,Blossom Fields Nursing Home,836.76, 26-Jul-2022
628,Revenue,CAHD,South Glos Users in South Glos Homes,Permanent Nursing,Blossom Fields Nursing Home,836.76, 26-Jul-2022
629,Revenue,CAHD,South Glos Users in South Glos Homes,Permanent Nursing,Blossom Fields Nursing Home,2211.44, 26-Jul-2022
630,Revenue,CAHD,South Glos Users in South Glos Homes,Permanent Nursing,Blossom Fields Nursing Home,836.76, 26-Jul-2022
631,Revenue,CAHD,South Glos Users in South Glos Homes,Permanent Nursing,Blossom Fields Nursing Home,9.25, 26-Jul-2022
632,Revenue,CAHD,South Glos Users in South Glos Homes,Permanent Nursing,Blossom Fields Nursing Home,836.76, 26-Jul-2022
633,Revenue,CAHD,South Glos Users in South Glos Homes,Permanent Nursing,Blossom Fields Nursing Home,836.76, 26-Jul-2022
634,Revenue,CAHD,South Glos Users in South Glos Homes,Permanent Nursing,Blossom Fields Nursing Home,836.76, 26-Jul-2022
635,Revenue,CAHD,South Glos Users in South Glos Homes,Permanent Nursing,Blossom Fields Nursing Home,836.76, 26-Jul-2022
636,Revenue,CAHD,South Glos Users in South Glos Homes,Permanent Nursing,Blossom Fields Nursing Home,836.76, 26-Jul-2022
637,Revenue,CAHD,South Glos Users in South Glos Homes,Permanent Nursing,Blossom Fields Nursing Home,836.76, 26-Jul-2022
638,Revenue,CAHD,South Glos Users in South Glos Homes,Permanent Nursing,Blossom Fields Nursing Home,836.76, 26-Jul-2022
639,Revenue,CAHD,South Glos Users in South Glos Homes,Permanent Nursing,Blossom Fields Nursing Home,-717.23, 26-Jul-2022
640,Revenue,CAHD,South Glos Users in South Glos Homes,Permanent Nursing,Blossom Fields Nursing Home,2062.02, 26-Jul-2022
641,Revenue,CAHD,South Glos Users in South Glos Homes,Permanent Nursing,Blossom Fields Nursing Home,836.76, 26-Jul-2022
642,Revenue,CAHD,South Glos Users in South Glos Homes,Permanent Nursing,Blossom Fields Nursing Home,836.76, 26-Jul-2022
643,Revenue,CAHD,South Glos Users in South Glos Homes,Permanent Nursing,Blossom Fields Nursing Home,836.76, 26-Jul-2022
644,Revenue,CAHD,South Glos Users in South Glos Homes,Permanent Nursing,Blossom Fields Nursing Home,836.76, 26-Jul-2022
645,Revenue,CAHD,South Glos Users in South Glos Homes,Permanent Nursing,Blossom Fields Nursing Home,836.76, 26-Jul-2022
646,Revenue,CAHD,South Glos Users in South Glos Homes,Permanent Nursing,Blossom Fields Nursing Home,836.76, 26-Jul-2022
647,Revenue,CAHD,South Glos Users in South Glos Homes,Permanent Nursing,Blossom Fields Nursing Home,836.76, 26-Jul-2022
648,Revenue,CAHD,South Glos Users in South Glos Homes,Permanent Nursing,Blossom Fields Nursing Home,836.76, 26-Jul-2022
649,Revenue,CAHD,South Glos Users in South Glos Homes,Permanent Nursing,Blossom Fields Nursing Home,836.76, 26-Jul-2022
650,Revenue,CAHD,South Glos Users in South Glos Homes,Permanent Nursing,Blossom Fields Nursing Home,836.76, 26-Jul-2022
651,Revenue,CAHD,South Glos Users in South Glos Homes,Permanent Nursing,Blossom Fields Nursing Home,836.76, 26-Jul-2022
652,Revenue,CAHD,South Glos Users in South Glos Homes,Permanent Nursing,Blossom Fields Nursing Home,836.76, 26-Jul-2022
653,Revenue,CAHD,South Glos Users in South Glos Homes,Permanent Nursing,Blossom Fields Nursing Home,836.76, 26-Jul-2022
654,Revenue,CAHD,South Glos Users in South Glos Homes,Permanent Nursing,Blossom Fields Nursing Home,836.76, 26-Jul-2022
655,Revenue,CAHD,South Glos Users in South Glos Homes,Permanent Nursing,Blossom Fields Nursing Home,836.76, 26-Jul-2022
656,Revenue,CAHD,South Glos Users in South Glos Homes,Permanent Nursing,Blossom Fields Nursing Home,836.76, 26-Jul-2022
657,Revenue,CAHD,South Glos Users in South Glos Homes,Permanent Nursing,Blossom Fields Nursing Home,836.76, 26-Jul-2022
658,Revenue,CAHD,South Glos Users in South Glos Homes,Permanent Nursing,Blossom Fields Nursing Home,836.76, 26-Jul-2022
659,Revenue,CAHD,South Glos Users in South Glos Homes,Permanent Nursing,Blossom Fields Nursing Home,836.76, 26-Jul-2022
660,Revenue,CAHD,South Glos Users in South Glos Homes,Permanent Nursing,Blossom Fields Nursing Home,836.76, 26-Jul-2022
661,Revenue,CAHD,South Glos Users in South Glos Homes,Permanent Nursing,Blossom Fields Nursing Home,836.76, 26-Jul-2022
662,Revenue,CAHD,South Glos Users in South Glos Homes,Permanent Nursing,Blossom Fields Nursing Home,3347.04, 26-Jul-2022
663,Revenue,CAHD,South Glos Users in South Glos Homes,Permanent Nursing,Blossom Fields Nursing Home,-1165.49, 26-Jul-2022
664,Revenue,CAHD,South Glos Users in South Glos Homes,Permanent Nursing,Blossom Fields Nursing Home,836.76, 26-Jul-2022
665,Revenue,CAHD,South Glos Users in South Glos Homes,Permanent Nursing,Blossom Fields Nursing Home,836.76, 26-Jul-2022
666,Revenue,CAHD,South Glos Users in South Glos Homes,Permanent Nursing,Blossom Fields Nursing Home,836.76, 26-Jul-2022
667,Revenue,CAHD,South Glos Users in South Glos Homes,Permanent Nursing,Blossom Fields Nursing Home,836.76, 26-Jul-2022
668,Revenue,CAHD,South Glos Users in South Glos Homes,Permanent Nursing,Blossom Fields Nursing Home,-1165.49, 26-Jul-2022
669,Revenue,CAHD,South Glos Users in South Glos Homes,Permanent Nursing,Blossom Fields Nursing Home,836.76, 26-Jul-2022
670,Revenue,CAHD,South Glos Users in South Glos Homes,Permanent Nursing,Blossom Fields Nursing Home,836.76, 26-Jul-2022
671,Revenue,CAHD,South Glos Users in South Glos Homes,Permanent Nursing,Blossom Fields Nursing Home,836.76, 26-Jul-2022
672,Revenue,CAHD,South Glos Users in South Glos Homes,Permanent Nursing,Blossom Fields Nursing Home,836.76, 26-Jul-2022
673,Revenue,CAHD,South Glos Users in South Glos Homes,Permanent Nursing,Blossom Fields Nursing Home,9.25, 26-Jul-2022
674,Revenue,CAHD,South Glos Users in South Glos Homes,Permanent Nursing,Blossom Fields Nursing Home,836.76, 26-Jul-2022
675,Revenue,CAHD,South Glos Users in South Glos Homes,Permanent Nursing,Blossom Fields Nursing Home,4364.27, 26-Jul-2022
676,Revenue,CAHD,Central - Commissioned Services,Permanent Residential,Blossom Fields Nursing Home,4028.00, 26-Jul-2022
677,Revenue,CAHD,Central - Commissioned Services,Permanent Residential,Blossom Fields Nursing Home,3816.00, 26-Jul-2022
678,Revenue,CAHD,Central - Commissioned Services,Permanent Nursing,Blossom Fields Nursing Home,5431.24, 26-Jul-2022
679,Revenue,CAHD,Central - Commissioned Services,Permanent Nursing,Blossom Fields Nursing Home,4380.04, 26-Jul-2022
680,Revenue,CAHD,Central - Commissioned Services,Permanent Nursing,Blossom Fields Nursing Home,4380.04, 26-Jul-2022
681,Revenue,CAHD,Central - Commissioned Services,Permanent Nursing,Blossom Fields Nursing Home,5078.20, 26-Jul-2022
682,Revenue,CAHD,Central - Commissioned Services,Permanent Nursing,Blossom Fields Nursing Home,11335.71, 26-Jul-2022
683,Revenue,CAHD,Central - Commissioned Services,Permanent Nursing,Blossom Fields Nursing Home,5107.84, 26-Jul-2022
684,Revenue,CAHD,Central - Commissioned Services,Permanent Nursing,Blossom Fields Nursing Home,4380.04, 26-Jul-2022
685,Revenue,CAHD,Central - Commissioned Services,Permanent Nursing,Blossom Fields Nursing Home,4381.20, 26-Jul-2022
686,Revenue,CAHD,Central - Commissioned Services,Permanent Nursing,Blossom Fields Nursing Home,4600.00, 26-Jul-2022
687,Revenue,CAHD,Central - Commissioned Services,Permanent Nursing,Blossom Fields Nursing Home,9200.00, 26-Jul-2022
688,Revenue,CAHD,Central - Commissioned Services,Permanent Nursing,Blossom Fields Nursing Home,5421.92, 26-Jul-2022
689,Revenue,CAHD,Central - Commissioned Services,Permanent Nursing,Blossom Fields Nursing Home,4876.00, 26-Jul-2022
690,Revenue,CAHD,Central - Commissioned Services,Permanent Nursing,Blossom Fields Nursing Home,4600.00, 26-Jul-2022
691,Revenue,CAHD,Central - Commissioned Services,Fees & Charges Income - General,Blossom Fields Nursing Home,-978.56, 26-Jul-2022
692,Revenue,CAHD,Central - Commissioned Services,Fees & Charges Income - General,Blossom Fields Nursing Home,-627.80, 26-Jul-2022
693,Revenue,CAHD,Central - Commissioned Services,Fees & Charges Income - General,Blossom Fields Nursing Home,-1241.76, 26-Jul-2022
694,Revenue,CAHD,Central - Commissioned Services,Fees & Charges Income - General,Blossom Fields Nursing Home,-105.70, 26-Jul-2022
695,Revenue,CAHD,Central - Commissioned Services,Fees & Charges Income - General,Blossom Fields Nursing Home,-486.88, 26-Jul-2022
696,Revenue,CAHD,Central - Commissioned Services,Fees & Charges Income - General,Blossom Fields Nursing Home,-2999.72, 26-Jul-2022
697,Revenue,CAHD,Central - Commissioned Services,Fees & Charges Income - General,Blossom Fields Nursing Home,-1207.64, 26-Jul-2022
698,Revenue,CAHD,Central - Commissioned Services,Fees & Charges Income - General,Blossom Fields Nursing Home,-1186.12, 26-Jul-2022
699,Revenue,CAHD,Central - Commissioned Services,Fees & Charges Income - General,Blossom Fields Nursing Home,-635.80, 26-Jul-2022
700,Revenue,CAHD,Central - Commissioned Services,Fees & Charges Income - General,Blossom Fields Nursing Home,-1365.28, 26-Jul-2022
701,Revenue,CAHD,Central - Commissioned Services,Fees & Charges Income - General,Blossom Fields Nursing Home,-866.68, 26-Jul-2022
702,Revenue,CAHD,South - Commissioned Services,Permanent Nursing,Blossom Fields Nursing Home,4179.64, 26-Jul-2022
703,Revenue,CAHD,South - Commissioned Services,Permanent Nursing,Blossom Fields Nursing Home,4381.20, 26-Jul-2022
704,Revenue,CAHD,South - Commissioned Services,Permanent Nursing,Blossom Fields Nursing Home,5300.00, 26-Jul-2022
705,Revenue,CAHD,South - Commissioned Services,Permanent Nursing,Blossom Fields Nursing Home,3816.00, 26-Jul-2022
706,Revenue,CAHD,South - Commissioned Services,Respite Planned - Nursing,Blossom Fields Nursing Home,9200.00, 26-Jul-2022
707,Revenue,CAHD,South - Commissioned Services,Fees & Charges Income - General,Blossom Fields Nursing Home,530.00, 26-Jul-2022
708,Revenue,CAHD,South - Commissioned Services,Fees & Charges Income - General,Blossom Fields Nursing Home,-1146.60, 26-Jul-2022
709,Revenue,CAHD,South - Commissioned Services,Fees & Charges Income - General,Blossom Fields Nursing Home,-928.60, 26-Jul-2022
710,Revenue,CAHD,North - Community based support,Permanent Residential,Blossom Fields Nursing Home,3498.00, 26-Jul-2022
711,Revenue,CAHD,North - Community based support,Permanent Nursing,Blossom Fields Nursing Home,-11007.14, 26-Jul-2022
712,Revenue,CAHD,North - Community based support,Permanent Nursing,Blossom Fields Nursing Home,4381.20, 26-Jul-2022
713,Revenue,CAHD,North - Community based support,Fees & Charges Income - General,Blossom Fields Nursing Home,-1413.08, 26-Jul-2022
714,Revenue,CAHD,North - Community based support,Fees & Charges Income - General,Blossom Fields Nursing Home,2714.94, 26-Jul-2022
715,Revenue,CAHD,North - Community based support,Fees & Charges Income - General,Blossom Fields Nursing Home,-627.80, 26-Jul-2022
716,Revenue,CAHD,North - S117,Permanent Residential,Blossom Fields Nursing Home,5205.04, 26-Jul-2022
717,Revenue,CAHD,Statemented Support Payments to OLAs,Other L.A.s - General,Blue Coat CE VA Primary School,837.09, 22-Jul-2022
718,Revenue,CAHD,Statemented Support Payments to OLAs,Other L.A.s - General,Blue Coat CE VA Primary School,1292.50, 22-Jul-2022
719,Revenue,CAHD,Early Years High Needs Support,Other Private Contractors,Bluebells Pre School,546.04, 22-Jul-2022
720,Revenue,CAHD,North - Community based support,Other Small Contracts,Bluebird Care (South Gloucestershire),4935.79, 06-Jul-2022
721,Revenue,CAHD,South - Commissioned Services,Other Small Contracts,Bluebird Care (South Gloucestershire),4062.10, 06-Jul-2022
722,Revenue,CAHD,Central - Commissioned Services,Other Small Contracts,Bluebird Care (South Gloucestershire),13695.42, 06-Jul-2022
723,Revenue,CAHD,North - Community based support,Other Small Contracts,Bluebird Care (South Gloucestershire),4935.79, 06-Jul-2022
724,Revenue,CAHD,South - Commissioned Services,Other Small Contracts,Bluebird Care (South Gloucestershire),4062.10, 06-Jul-2022
725,Revenue,CAHD,Central - Commissioned Services,Other Small Contracts,Bluebird Care (South Gloucestershire),13695.42, 06-Jul-2022
726,Revenue,CAHD,North - Community based support,Other Small Contracts,Bluebird Care (South Gloucestershire),4935.79, 19-Jul-2022
727,Revenue,CAHD,South - Commissioned Services,Other Small Contracts,Bluebird Care (South Gloucestershire),4062.10, 19-Jul-2022
728,Revenue,CAHD,Central - Commissioned Services,Other Small Contracts,Bluebird Care (South Gloucestershire),13695.42, 19-Jul-2022
729,Revenue,CAHD,North - Community based support,Other Small Contracts,Bluebird Care (South Gloucestershire),4935.79, 21-Jul-2022
730,Revenue,CAHD,South - Commissioned Services,Other Small Contracts,Bluebird Care (South Gloucestershire),4062.10, 21-Jul-2022
731,Revenue,CAHD,Central - Commissioned Services,Other Small Contracts,Bluebird Care (South Gloucestershire),13695.42, 21-Jul-2022
732,Revenue,CAHD,North - Community based support,Other Small Contracts,Bluebird Care (South Gloucestershire),4935.79, 21-Jul-2022
733,Revenue,CAHD,South - Commissioned Services,Other Small Contracts,Bluebird Care (South Gloucestershire),4062.10, 21-Jul-2022
734,Revenue,CAHD,Central - Commissioned Services,Other Small Contracts,Bluebird Care (South Gloucestershire),13695.42, 21-Jul-2022
735,Revenue,CAHD,CSC - Asylum Seekers - Unaccompanied,Independent Living,Blueline Healthcare Solutions Ltd T/A Blueline Car,4207.14, 29-Jul-2022
736,Revenue,CAHD,CSC - Asylum Seekers - Unaccompanied,Independent Living,Blueline Healthcare Solutions Ltd T/A Blueline Car,4207.14, 29-Jul-2022
737,Revenue,CAHD,CSC - Asylum Seekers - Unaccompanied,Independent Living,Blueline Healthcare Solutions Ltd T/A Blueline Car,4207.14, 29-Jul-2022
738,Revenue,CAHD,CSC - Asylum Seekers - Unaccompanied,Independent Living,Blueline Healthcare Solutions Ltd T/A Blueline Car,4207.14, 29-Jul-2022
739,Revenue,CAHD,CSC - Asylum Seekers - Unaccompanied,Independent Living,Blueline Healthcare Solutions Ltd T/A Blueline Car,4342.72, 08-Jul-2022
740,Revenue,CAHD,Contain Outbreak Mgmt Fund,Personal Needs of Clients,Borderlands (South West) Ltd,25000.00, 20-Jul-2022
741,Revenue,CAHD,S28A cases,Permanent Residential,Bradbury House,6505.16, 26-Jul-2022
742,Revenue,CAHD,S28A cases,Fees & Charges Income - General,Bradbury House,-438.80, 26-Jul-2022
743,Revenue,CAHD,Central - Commissioned Services,Permanent Residential,Bradbury House,11342.80, 26-Jul-2022
744,Revenue,CAHD,North - S117,Permanent Residential,Bradbury House,7106.96, 26-Jul-2022
745,Revenue,CAHD,Jointly Funded H&SC Packages,Permanent Residential,Bradbury House,7106.96, 26-Jul-2022
746,Revenue,CAHD,Social Lettings Agency,Rent,Individual,822.73, 25-Jul-2022
747,Revenue,CAHD,Social Lettings Agency,Fees & Charges Income - General,Individual,-102.80, 25-Jul-2022
748,Revenue,CAHD,Social Lettings Agency,Rent,Individual,915.00, 01-Jul-2022
749,Revenue,CAHD,Social Lettings Agency,Fees & Charges Income - General,Individual,-73.20, 01-Jul-2022
750,Revenue,CAHD,Placements OLA Special Schools and RB,Other L.A.s - General,Briarwood School,2774.72, 22-Jul-2022
751,Revenue,CAHD,Placements OLA Special Schools and RB,Other L.A.s - General,Briarwood School,9267.99, 22-Jul-2022
752,Revenue,CAHD,Placements OLA Special Schools and RB,Other L.A.s - General,Briarwood School,792.40, 22-Jul-2022
753,Revenue,CAHD,Central - Commissioned Services,Respite Planned - Residential,Bridge House Care Home,860.00, 26-Jul-2022
754,Revenue,CAHD,North - Community based support,Permanent Residential,Bridge House Care Home,3286.00, 26-Jul-2022
755,Revenue,CAHD,North - Community based support,Permanent Residential,Bridge House Care Home,3440.00, 26-Jul-2022
756,Revenue,CAHD,North - Community based support,Permanent Residential,Bridge House Care Home,3088.32, 26-Jul-2022
757,Revenue,CAHD,North - Community based support,Permanent Nursing,Bridge House Care Home,3360.00, 26-Jul-2022
758,Revenue,CAHD,North - Community based support,Fees & Charges Income - General,Bridge House Care Home,-627.80, 26-Jul-2022
759,Revenue,CAHD,North - Community based support,Fees & Charges Income - General,Bridge House Care Home,-650.88, 26-Jul-2022
760,Revenue,CAHD,North - Community based support,Fees & Charges Income - General,Bridge House Care Home,-651.64, 26-Jul-2022
761,Revenue,CAHD,North - Community based support,Fees & Charges Income - General,Bridge House Care Home,-1679.52, 26-Jul-2022
762,Revenue,CAHD,North - Community based support,Permanent Residential,Bridgwater Court Care Home,10773.64, 26-Jul-2022
763,Revenue,CAHD,Afgan LES Refugees,Other Supplies & Services,Brighter Places,2781.85, 08-Jul-2022
764,Revenue,CAHD,Afgan LES Refugees,Council Tax,Brighter Places,604.75, 18-Jul-2022
765,Revenue,CAHD,Mental Health and Community Engagement,Grants to Voluntary Bodies,Bristol & Avon Chinese Womens Group,500.00, 04-Jul-2022
766,Revenue,CAHD,Older People`s Commissioned Se,Grants to Voluntary Bodies,Bristol Area Stroke Foundation,19052.75, 04-Jul-2022
767,Revenue,CAHD,SLA Grants - Support Serv,Grants to Voluntary Bodies,Bristol Area Stroke Foundation,4481.75, 07-Jul-2022
768,Revenue,CAHD,Statemented Support Payments to OLAs,Other L.A.s - General,Bristol Cathedral Choir School,942.58, 22-Jul-2022
769,Revenue,CAHD,Statemented Support Payments to OLAs,Other L.A.s - General,Bristol Cathedral Choir School,880.08, 22-Jul-2022
770,Revenue,CAHD,Schools Specific Grant Income,Other Public Bodies,Bristol Cathedral Choir School,500.00, 08-Jul-2022
771,Revenue,CAHD,Statemented Support Payments to OLAs,Other L.A.s - General,Bristol Cathedral Choir School,978.57, 22-Jul-2022
772,Revenue,CAHD,Schools Specific Grant Income,Other Public Bodies,Bristol City Council - Schools,500.00, 08-Jul-2022
773,Revenue,CAHD,Statemented Support Payments to OLAs,Other L.A.s - General,Bristol City Council Schools General,897.42, 22-Jul-2022
774,Revenue,CAHD,Statemented Support Payments to OLAs,Other L.A.s - General,Bristol City Council Schools General,635.33, 22-Jul-2022
775,Revenue,CAHD,Placements OLA Special Schools and RB,Other L.A.s - General,Bristol Hospital Education,887.53, 22-Jul-2022
776,Revenue,CAHD,Other Alternative Provision Services,Other Private Contractors,Bristol Tuition Limited,680.00, 14-Jul-2022
777,Revenue,CAHD,User Involvement,Membership Fees,British Youth Council,600.00, 05-Jul-2022
778,Revenue,CAHD,Statemented Support Payments to OLAs,Other L.A.s - General,Broadlands Academy,835.17, 22-Jul-2022
779,Revenue,CAHD,North - Community based support,Permanent Residential,Brockhills Farm,3200.00, 26-Jul-2022
780,Revenue,CAHD,North - Community based support,Fees & Charges Income - General,Brockhills Farm,-658.96, 26-Jul-2022
781,Revenue,CAHD,Supporting People Programme,Grants to Voluntary Bodies,Bromford  :  Merlin Housing Society,23628.83, 01-Jul-2022
782,Revenue,CAHD,Supporting People Programme,Grants to Voluntary Bodies,Bromford  :  Merlin Housing Society,2824.17, 01-Jul-2022
783,Revenue,CAHD,Supporting People Programme,Grants to Voluntary Bodies,Bromford  :  Merlin Housing Society,1146.92, 01-Jul-2022
784,Revenue,CAHD,Parent Partnership & Disagreement Resolutions,Fees - General,Individual,3864.00, 29-Jul-2022
785,Revenue,CAHD,South Glos Users in South Glos Homes,Permanent Nursing,Brunelcare,926.41, 25-Jul-2022
786,Revenue,CAHD,South Glos Users in South Glos Homes,Permanent Nursing,Brunelcare,926.41, 25-Jul-2022
787,Revenue,CAHD,South Glos Users in South Glos Homes,Permanent Nursing,Brunelcare,926.41, 25-Jul-2022
788,Revenue,CAHD,South Glos Users in South Glos Homes,Permanent Nursing,Brunelcare,926.41, 25-Jul-2022
789,Revenue,CAHD,South Glos Users in South Glos Homes,Permanent Nursing,Brunelcare,926.41, 25-Jul-2022
790,Revenue,CAHD,North - S117,Permanent Nursing,Brunelcare,4058.25, 25-Jul-2022
791,Revenue,CAHD,North - S117,Permanent Nursing,Brunelcare,4058.25, 25-Jul-2022
792,Revenue,CAHD,South - Commissioned Services,Permanent Nursing,Brunelcare,4984.67, 25-Jul-2022
793,Revenue,CAHD,South - Commissioned Services,Permanent Nursing,Brunelcare,2940.93, 25-Jul-2022
794,Revenue,CAHD,South - Commissioned Services,Permanent Nursing,Brunelcare,1440.03, 25-Jul-2022
795,Revenue,CAHD,South - Commissioned Services,Permanent Nursing,Brunelcare,2746.95, 25-Jul-2022
796,Revenue,CAHD,South - Commissioned Services,Permanent Nursing,Brunelcare,3353.98, 25-Jul-2022
797,Revenue,CAHD,South - Commissioned Services,Permanent Nursing,Brunelcare,3363.19, 25-Jul-2022
798,Revenue,CAHD,Central - Commissioned Services,Permanent Nursing,Brunelcare,3076.40, 25-Jul-2022
799,Revenue,CAHD,South - Commissioned Services,Respite Planned - Nursing,Brunelcare,4655.94, 25-Jul-2022
800,Revenue,CAHD,North - Community based support,Permanent Nursing,Brunelcare,2877.38, 25-Jul-2022
801,Revenue,CAHD,South - Commissioned Services,Other Small Contracts,Brunelcare,15360.39, 19-Jul-2022
802,Revenue,CAHD,South - Commissioned Services,Other Small Contracts,Brunelcare,15360.39, 19-Jul-2022
803,Revenue,CAHD,South - Commissioned Services,Other Small Contracts,Brunelcare,15360.39, 19-Jul-2022
804,Revenue,CAHD,South - Commissioned Services,Other Small Contracts,Brunelcare,15360.39, 21-Jul-2022
805,Revenue,CAHD,South - Commissioned Services,Other Small Contracts,Brunelcare,15360.39, 21-Jul-2022
806,Revenue,CAHD,North - S117,Permanent Residential,Buckland Care,3600.00, 26-Jul-2022
807,Revenue,CAHD,Early Years High Needs Support,Other Private Contractors,Busy Bees Day Nursery,758.39, 22-Jul-2022
808,Revenue,CAHD,CSC - Vinney Green Secure Unit,R & M by Departments,BWS Standfast Fire & Security Systems,1400.16, 29-Jul-2022
809,Revenue,CAHD,CSC - Asylum Seekers - Unaccompanied,Foster Parent Allowances,By the Bridge Ltd,4647.53, 01-Jul-2022
810,Revenue,CAHD,CSC - Asylum Seekers - Unaccompanied,Foster Parent Allowances,By the Bridge Ltd,4647.53, 01-Jul-2022
811,Revenue,CAHD,CSC - Asylum Seekers - Unaccompanied,Foster Parent Allowances,By the Bridge Ltd,4742.38, 01-Jul-2022
812,Revenue,CAHD,CSC - Agency Fostering,Foster Parent Allowances,By the Bridge Ltd,3321.34, 01-Jul-2022
813,Revenue,CAHD,CSC - Asylum Seekers - Unaccompanied,Foster Parent Allowances,By the Bridge Ltd,4497.61, 29-Jul-2022
814,Revenue,CAHD,CSC - Asylum Seekers - Unaccompanied,Foster Parent Allowances,By the Bridge Ltd,4497.61, 29-Jul-2022
815,Revenue,CAHD,CSC - Asylum Seekers - Unaccompanied,Foster Parent Allowances,By the Bridge Ltd,4589.40, 29-Jul-2022
816,Revenue,CAHD,CSC - Agency Fostering,Foster Parent Allowances,By the Bridge Ltd,3214.20, 29-Jul-2022
817,Revenue,CAHD,Social Lettings Agency,Rent,Individual,947.40, 13-Jul-2022
818,Revenue,CAHD,Social Lettings Agency,Fees & Charges Income - General,Individual,-94.74, 13-Jul-2022
819,Revenue,CAHD,CSC - Special Guardianship Orders,"Holidays, Outings & Visits",Individual,185.20, 01-Jul-2022
820,Revenue,CAHD,CSC - Special Guardianship Orders,Special Payments,Individual,185.20, 01-Jul-2022
821,Revenue,CAHD,CSC - Special Guardianship Orders,Band 1 Foster Care,Individual,170.00, 01-Jul-2022
822,Revenue,CAHD,High Risk Group Funding,Other Public Bodies,Cabot Learning Federation,3850.00, 29-Jul-2022
823,Revenue,CAHD,Schools Specific Grant Income,Other Public Bodies,Cabot Learning Federation,500.00, 08-Jul-2022
824,Revenue,CAHD,Schools Specific Grant Income,Other Public Bodies,Cabot Learning Federation,500.00, 08-Jul-2022
825,Revenue,CAHD,Support for Improving Educational Outcomes,Other Public Bodies,Cabot Learning Federation,6250.00, 26-Jul-2022
826,Revenue,CAHD,Support for Improving Educational Outcomes,Other Public Bodies,Cabot Learning Federation,3750.00, 26-Jul-2022
827,Revenue,CAHD,Statemented Support Academies,Other Public Bodies,Cabot Learning Federation,1019.33, 22-Jul-2022
828,Revenue,CAHD,Statemented Support Academies,Other Public Bodies,Cabot Learning Federation,1179.67, 22-Jul-2022
829,Revenue,CAHD,Statemented Support Academies,Other Public Bodies,Cabot Learning Federation,646.67, 22-Jul-2022
830,Revenue,CAHD,Statemented Support Academies,Other Public Bodies,Cabot Learning Federation,836.67, 22-Jul-2022
831,Revenue,CAHD,Statemented Support Academies,Other Public Bodies,Cabot Learning Federation,2227.06, 22-Jul-2022
832,Revenue,CAHD,Statemented Support Academies,Other Public Bodies,Cabot Learning Federation,1103.25, 22-Jul-2022
833,Revenue,CAHD,Statemented Support Academies,Other Public Bodies,Cabot Learning Federation,1899.58, 22-Jul-2022
834,Revenue,CAHD,Statemented Support Academies,Other Public Bodies,Cabot Learning Federation,1654.33, 22-Jul-2022
835,Revenue,CAHD,Statemented Support Academies,Other Public Bodies,Cabot Learning Federation,973.50, 22-Jul-2022
836,Revenue,CAHD,Statemented Support Academies,Other Public Bodies,Cabot Learning Federation,1816.00, 22-Jul-2022
837,Revenue,CAHD,Statemented Support Academies,Other Public Bodies,Cabot Learning Federation,632.67, 22-Jul-2022
838,Revenue,CAHD,Statemented Support Academies,Other Public Bodies,Cabot Learning Federation,695.61, 22-Jul-2022
839,Revenue,CAHD,Statemented Support Academies,Other Public Bodies,Cabot Learning Federation,918.75, 22-Jul-2022
840,Revenue,CAHD,Statemented Support Academies,Other Public Bodies,Cabot Learning Federation,975.58, 22-Jul-2022
841,Revenue,CAHD,Statemented Support Academies,Other Public Bodies,Cabot Learning Federation,705.00, 22-Jul-2022
842,Revenue,CAHD,Statemented Support Academies,Other Public Bodies,Cabot Learning Federation,2990.00, 22-Jul-2022
843,Revenue,CAHD,Statemented Support Academies,Other Public Bodies,Cabot Learning Federation,1084.17, 22-Jul-2022
844,Revenue,CAHD,Academy Resource Base Funding,Other Public Bodies,Cabot Learning Federation,5095.92, 25-Jul-2022
845,Revenue,CAHD,Academy Resource Base Funding,Other Public Bodies,Cabot Learning Federation,1702.96, 25-Jul-2022
846,Revenue,CAHD,Academy Resource Base Funding,Other Public Bodies,Cabot Learning Federation,1540.83, 25-Jul-2022
847,Revenue,CAHD,Academy Resource Base Funding,Other Public Bodies,Cabot Learning Federation,1540.83, 25-Jul-2022
848,Revenue,CAHD,Academy Resource Base Funding,Other Public Bodies,Cabot Learning Federation,1175.87, 25-Jul-2022
849,Revenue,CAHD,Academy Resource Base Funding,Other Public Bodies,Cabot Learning Federation,1175.87, 25-Jul-2022
850,Revenue,CAHD,Academy Resource Base Funding,Other Public Bodies,Cabot Learning Federation,1175.87, 25-Jul-2022
851,Revenue,CAHD,Academy Resource Base Funding,Other Public Bodies,Cabot Learning Federation,1540.83, 25-Jul-2022
852,Revenue,CAHD,Academy Resource Base Funding,Other Public Bodies,Cabot Learning Federation,1013.74, 25-Jul-2022
853,Revenue,CAHD,Academy Resource Base Funding,Other Public Bodies,Cabot Learning Federation,1702.96, 25-Jul-2022
854,Revenue,CAHD,Academy Resource Base Funding,Other Public Bodies,Cabot Learning Federation,1175.87, 25-Jul-2022
855,Revenue,CAHD,Academy Resource Base Funding,Other Public Bodies,Cabot Learning Federation,1175.87, 25-Jul-2022
856,Revenue,CAHD,Academy Resource Base Funding,Other Public Bodies,Cabot Learning Federation,1702.96, 25-Jul-2022
857,Revenue,CAHD,Academy Resource Base Funding,Other Public Bodies,Cabot Learning Federation,648.70, 25-Jul-2022
858,Revenue,CAHD,Academy Resource Base Funding,Other Public Bodies,Cabot Learning Federation,1175.87, 25-Jul-2022
859,Revenue,CAHD,Academy Resource Base Funding,Other Public Bodies,Cabot Learning Federation,2513.88, 25-Jul-2022
860,Revenue,CAHD,Academy Resource Base Funding,Other Public Bodies,Cabot Learning Federation,1702.96, 25-Jul-2022
861,Revenue,CAHD,Academy Resource Base Funding,Other Public Bodies,Cabot Learning Federation,1175.87, 25-Jul-2022
862,Revenue,CAHD,Academy Resource Base Funding,Other Public Bodies,Cabot Learning Federation,1702.96, 25-Jul-2022
863,Revenue,CAHD,Academy Resource Base Funding,Other Public Bodies,Cabot Learning Federation,1702.96, 25-Jul-2022
864,Revenue,CAHD,Academy Resource Base Funding,Other Public Bodies,Cabot Learning Federation,648.70, 25-Jul-2022
865,Revenue,CAHD,Academy Resource Base Funding,Other Public Bodies,Cabot Learning Federation,1540.83, 25-Jul-2022
866,Revenue,CAHD,Academy Resource Base Funding,Other Public Bodies,Cabot Learning Federation,4665.56, 25-Jul-2022
867,Revenue,CAHD,Academy Resource Base Funding,Other Public Bodies,Cabot Learning Federation,2189.53, 25-Jul-2022
868,Revenue,CAHD,Academy Resource Base Funding,Other Public Bodies,Cabot Learning Federation,4627.63, 25-Jul-2022
869,Revenue,CAHD,Academy Resource Base Funding,Other Public Bodies,Cabot Learning Federation,1175.87, 25-Jul-2022
870,Revenue,CAHD,Statemented Support Academies,Other Public Bodies,Cabot Learning Federation,1626.67, 22-Jul-2022
871,Revenue,CAHD,Statemented Support Academies,Other Public Bodies,Cabot Learning Federation,710.58, 22-Jul-2022
872,Revenue,CAHD,Statemented Support Academies,Other Public Bodies,Cabot Learning Federation,804.08, 22-Jul-2022
873,Revenue,CAHD,Statemented Support Academies,Other Public Bodies,Cabot Learning Federation,855.08, 22-Jul-2022
874,Revenue,CAHD,Statemented Support Academies,Other Public Bodies,Cabot Learning Federation,554.13, 22-Jul-2022
875,Revenue,CAHD,Statemented Support Academies,Other Public Bodies,Cabot Learning Federation,742.77, 22-Jul-2022
876,Revenue,CAHD,Statemented Support Academies,Other Public Bodies,Cabot Learning Federation,778.14, 22-Jul-2022
877,Revenue,CAHD,Statemented Support Academies,Other Public Bodies,Cabot Learning Federation,1202.67, 22-Jul-2022
878,Revenue,CAHD,Statemented Support Academies,Other Public Bodies,Cabot Learning Federation,813.51, 22-Jul-2022
879,Revenue,CAHD,Schools Specific Grant Income,Other Public Bodies,Cabot Learning Federation,500.00, 08-Jul-2022
880,Revenue,CAHD,Schools Specific Grant Income,Other Public Bodies,Cabot Learning Federation,500.00, 08-Jul-2022
881,Revenue,CAHD,Schools Specific Grant Income,Other Public Bodies,Cabot Learning Federation,500.00, 08-Jul-2022
882,Revenue,CAHD,Schools Specific Grant Income,Other Public Bodies,Cabot Learning Federation,500.00, 08-Jul-2022
883,Revenue,CAHD,Schools Specific Grant Income,Other Public Bodies,Cabot Learning Federation,500.00, 08-Jul-2022
884,Revenue,CAHD,Schools Specific Grant Income,Other Public Bodies,Cabot Learning Federation,500.00, 08-Jul-2022
885,Revenue,CAHD,Schools Specific Grant Income,Other Public Bodies,Cabot Learning Federation,1300.00, 26-Jul-2022
886,Revenue,CAHD,Schools Specific Grant Income,Other Public Bodies,Cabot Learning Federation,500.00, 08-Jul-2022
887,Revenue,CAHD,Schools Specific Grant Income,Other Public Bodies,Cabot Learning Federation,500.00, 08-Jul-2022
888,Revenue,CAHD,Schools Specific Grant Income,Other Public Bodies,Cabot Learning Federation,500.00, 08-Jul-2022
889,Revenue,CAHD,Statemented Support Payments to OLAs,Other L.A.s - General,Cabot Learning Federation,601.29, 22-Jul-2022
890,Revenue,CAHD,Statemented Support Academies,Other Public Bodies,Cabot Learning Federation,661.33, 22-Jul-2022
891,Revenue,CAHD,Statemented Support Academies,Other Public Bodies,Cabot Learning Federation,1131.84, 22-Jul-2022
892,Revenue,CAHD,Statemented Support Academies,Other Public Bodies,Cabot Learning Federation,1202.67, 22-Jul-2022
893,Revenue,CAHD,Statemented Support Academies,Other Public Bodies,Cabot Learning Federation,554.13, 22-Jul-2022
894,Revenue,CAHD,Statemented Support Academies,Other Public Bodies,Cabot Learning Federation,1028.08, 22-Jul-2022
895,Revenue,CAHD,Statemented Support Academies,Other Public Bodies,Cabot Learning Federation,1096.47, 22-Jul-2022
896,Revenue,CAHD,Statemented Support Academies,Other Public Bodies,Cabot Learning Federation,2292.42, 22-Jul-2022
897,Revenue,CAHD,Statemented Support Academies,Other Public Bodies,Cabot Learning Federation,1429.42, 22-Jul-2022
898,Revenue,CAHD,Statemented Support Academies,Other Public Bodies,Cabot Learning Federation,730.98, 22-Jul-2022
899,Revenue,CAHD,Statemented Support Academies,Other Public Bodies,Cabot Learning Federation,680.42, 22-Jul-2022
900,Revenue,CAHD,Statemented Support Academies,Other Public Bodies,Cabot Learning Federation,1150.25, 22-Jul-2022
901,Revenue,CAHD,Statemented Support Academies,Other Public Bodies,Cabot Learning Federation,685.33, 22-Jul-2022
902,Revenue,CAHD,Statemented Support Academies,Other Public Bodies,Cabot Learning Federation,530.55, 22-Jul-2022
903,Revenue,CAHD,Statemented Support Academies,Other Public Bodies,Cabot Learning Federation,896.46, 22-Jul-2022
904,Revenue,CAHD,Statemented Support Payments to OLAs,Other L.A.s - General,Cabot Learning Federation,1062.33, 22-Jul-2022
905,Revenue,CAHD,Statemented Support Payments to OLAs,Other L.A.s - General,Cabot Learning Federation,809.75, 22-Jul-2022
906,Revenue,CAHD,Statemented Support Payments to OLAs,Other L.A.s - General,Cabot Learning Federation,888.33, 22-Jul-2022
907,Revenue,CAHD,Statemented Support Payments to OLAs,Other L.A.s - General,Cabot Learning Federation,64575.00, 22-Jul-2022
908,Revenue,CAHD,Statemented Support Payments to OLAs,Other L.A.s - General,Cabot Learning Federation,1202.67, 22-Jul-2022
909,Revenue,CAHD,Statemented Support Academies,Other Public Bodies,Cabot Learning Federation,577.50, 22-Jul-2022
910,Revenue,CAHD,Statemented Support Academies,Other Public Bodies,Cabot Learning Federation,1297.08, 22-Jul-2022
911,Revenue,CAHD,Statemented Support Academies,Other Public Bodies,Cabot Learning Federation,966.83, 22-Jul-2022
912,Revenue,CAHD,Statemented Support Academies,Other Public Bodies,Cabot Learning Federation,526.00, 22-Jul-2022
913,Revenue,CAHD,Statemented Support Academies,Other Public Bodies,Cabot Learning Federation,671.71, 22-Jul-2022
914,Revenue,CAHD,Schools Specific Grant Income,Other Public Bodies,Cabot Learning Federation,500.00, 08-Jul-2022
915,Revenue,CAHD,Schools Specific Grant Income,Other Public Bodies,Cabot Learning Federation,500.00, 08-Jul-2022
916,Revenue,CAHD,Statemented Support Payments to OLAs,Other L.A.s - General,Cabot Learning Federation,665.33, 22-Jul-2022
917,Revenue,CAHD,Early Years High Needs Support,Other Private Contractors,Caerleon Childcare,515.71, 22-Jul-2022
918,Revenue,CAHD,South - Commissioned Services,Permanent Nursing,Caernarvon House,5761.29, 26-Jul-2022
919,Revenue,CAHD,South - Commissioned Services,Permanent Nursing,Caernarvon House,3469.49, 26-Jul-2022
920,Revenue,CAHD,South - Commissioned Services,Fees & Charges Income - General,Caernarvon House,19006.94, 26-Jul-2022
921,Revenue,CAHD,South - Commissioned Services,Fees & Charges Income - General,Caernarvon House,-773.60, 26-Jul-2022
922,Revenue,CAHD,North - Community based support,Permanent Nursing,Caernarvon House,357.14, 26-Jul-2022
923,Revenue,CAHD,North - Community based support,Permanent Nursing,Caernarvon House,5521.13, 26-Jul-2022
924,Revenue,CAHD,North - Community based support,Permanent Nursing,Caernarvon House,3913.85, 26-Jul-2022
925,Revenue,CAHD,North - Community based support,Fees & Charges Income - General,Caernarvon House,-627.80, 26-Jul-2022
926,Revenue,CAHD,North - Community based support,Fees & Charges Income - General,Caernarvon House,-1036.92, 26-Jul-2022
927,Revenue,CAHD,South - S117,Permanent Nursing,Caernarvon House,5761.29, 26-Jul-2022
928,Revenue,CAHD,North - S117,Permanent Nursing,Caernarvon House,4677.04, 26-Jul-2022
929,Revenue,CAHD,Works4Youth,Training Expenses,Call of the Wild Ltd,2340.00, 15-Jul-2022
930,Revenue,CAHD,Post 16 High Needs Placements,Other Private Contractors,Cambian Whinfell School Limited,70356.31, 14-Jul-2022
931,Revenue,CAHD,Early Years Development,External Lecturers Fees,Cambium Sustainable Landscapes & Training,1050.00, 07-Jul-2022
932,Revenue,CAHD,MH Purchasing - Younger,Permanent Residential,Canonbury Residential Home,3400.00, 26-Jul-2022
933,Revenue,CAHD,MH Purchasing - Younger,Fees & Charges Income - General,Canonbury Residential Home,-627.80, 26-Jul-2022
934,Revenue,CAHD,CSC - Agency Fostering,Foster Parent Allowances,Capstone Foster Care (South West) Limited,3572.10, 01-Jul-2022
935,Revenue,CAHD,CSC - Agency Fostering,Foster Parent Allowances,Capstone Foster Care (South West) Limited,3572.10, 01-Jul-2022
936,Revenue,CAHD,North - Community based support,Other Small Contracts,Care 1st Homecare,632.84, 19-Jul-2022
937,Revenue,CAHD,Central - Commissioned Services,Other Small Contracts,Care 1st Homecare,3734.65, 19-Jul-2022
938,Revenue,CAHD,North - Community based support,Other Small Contracts,Care 1st Homecare,632.84, 19-Jul-2022
939,Revenue,CAHD,Central - Commissioned Services,Other Small Contracts,Care 1st Homecare,3734.65, 19-Jul-2022
940,Revenue,CAHD,North - Community based support,Other Small Contracts,Care 1st Homecare,632.84, 19-Jul-2022
941,Revenue,CAHD,Central - Commissioned Services,Other Small Contracts,Care 1st Homecare,3734.65, 19-Jul-2022
942,Revenue,CAHD,North - Community based support,Other Small Contracts,Care 1st Homecare,632.84, 21-Jul-2022
943,Revenue,CAHD,Central - Commissioned Services,Other Small Contracts,Care 1st Homecare,3734.65, 21-Jul-2022
944,Revenue,CAHD,North - Community based support,Other Small Contracts,Care 1st Homecare,632.84, 21-Jul-2022
945,Revenue,CAHD,Central - Commissioned Services,Other Small Contracts,Care 1st Homecare,3734.65, 21-Jul-2022
946,Revenue,CAHD,Market sustainability and fair cost of care,Interpreting & Translation,Care and Support West,4000.00, 21-Jul-2022
947,Revenue,CAHD,North - Community based support,Respite Care,Care Horizons,0.00, 26-Jul-2022
948,Revenue,CAHD,North - Community based support,Respite Care,Care Horizons,0.00, 26-Jul-2022
949,Revenue,CAHD,North - Community based support,Supported Living,Care Horizons,5727.08, 26-Jul-2022
950,Revenue,CAHD,North - Community based support,Supported Living,Care Horizons,5727.08, 26-Jul-2022
951,Revenue,CAHD,North - Community based support,Other Small Contracts,Care Horizons Limited,3687.94, 06-Jul-2022
952,Revenue,CAHD,Central - Commissioned Services,Other Small Contracts,Care Horizons Limited,5063.87, 06-Jul-2022
953,Revenue,CAHD,North - Community based support,Other Small Contracts,Care Horizons Limited,3687.94, 06-Jul-2022
954,Revenue,CAHD,Central - Commissioned Services,Other Small Contracts,Care Horizons Limited,5063.87, 06-Jul-2022
955,Revenue,CAHD,North - Community based support,Other Small Contracts,Care Horizons Limited,3687.94, 06-Jul-2022
956,Revenue,CAHD,Central - Commissioned Services,Other Small Contracts,Care Horizons Limited,5063.87, 06-Jul-2022
957,Revenue,CAHD,North - Community based support,Other Small Contracts,Care Horizons Limited,3687.94, 21-Jul-2022
958,Revenue,CAHD,Central - Commissioned Services,Other Small Contracts,Care Horizons Limited,5063.87, 21-Jul-2022
959,Revenue,CAHD,North - Community based support,Other Small Contracts,Care Horizons Limited,3687.94, 21-Jul-2022
960,Revenue,CAHD,Central - Commissioned Services,Other Small Contracts,Care Horizons Limited,5063.87, 21-Jul-2022
961,Revenue,CAHD,South - Commissioned Services,Other Small Contracts,Care Unite Ltd t/a Home Instead Senior Care,850.08, 07-Jul-2022
962,Revenue,CAHD,South - Commissioned Services,Other Small Contracts,Care Unite Ltd t/a Home Instead Senior Care,971.52, 07-Jul-2022
963,Revenue,CAHD,SLA Grants - Support Serv,Grants to Voluntary Bodies,Carers Support Centre,12275.00, 04-Jul-2022
964,Revenue,CAHD,SLA Grants - Support Serv,Grants to Voluntary Bodies,Carers Support Centre,25275.00, 04-Jul-2022
965,Revenue,CAHD,Mental Health and Community Engagement,Other Small Contracts,Carers Support Centre,60477.00, 04-Jul-2022
966,Revenue,CAHD,CSC - Care Leavers Support Costs,Adults - Family Support,Caring for Communities and People,2325.00, 01-Jul-2022
967,Revenue,CAHD,CSC - Care Leavers Independent Living,Independent Living,Caring for Communities and People,3917.14, 18-Jul-2022
968,Revenue,CAHD,Supporting People Programme,Grants to Voluntary Bodies,Caring for Communities and People,12501.83, 04-Jul-2022
969,Revenue,CAHD,Statemented Support Academies,Other Public Bodies,Castle School Education Trust,530.55, 22-Jul-2022
970,Revenue,CAHD,Statemented Support Academies,Other Public Bodies,Castle School Education Trust,778.14, 22-Jul-2022
971,Revenue,CAHD,Statemented Support Academies,Other Public Bodies,Castle School Education Trust,821.50, 22-Jul-2022
972,Revenue,CAHD,Statemented Support Academies,Other Public Bodies,Castle School Education Trust,947.08, 22-Jul-2022
973,Revenue,CAHD,Statemented Support Academies,Other Public Bodies,Castle School Education Trust,577.71, 22-Jul-2022
974,Revenue,CAHD,Statemented Support Academies,Other Public Bodies,Castle School Education Trust,505.08, 22-Jul-2022
975,Revenue,CAHD,Statemented Support Academies,Other Public Bodies,Castle School Education Trust,515.08, 22-Jul-2022
976,Revenue,CAHD,Statemented Support Academies,Other Public Bodies,Castle School Education Trust,672.03, 22-Jul-2022
977,Revenue,CAHD,Statemented Support Academies,Other Public Bodies,Castle School Education Trust,636.66, 22-Jul-2022
978,Revenue,CAHD,Statemented Support Academies,Other Public Bodies,Castle School Education Trust,554.13, 22-Jul-2022
979,Revenue,CAHD,Statemented Support Academies,Other Public Bodies,Castle School Education Trust,543.42, 22-Jul-2022
980,Revenue,CAHD,Statemented Support Academies,Other Public Bodies,Castle School Education Trust,954.99, 22-Jul-2022
981,Revenue,CAHD,Statemented Support Academies,Other Public Bodies,Castle School Education Trust,577.71, 22-Jul-2022
982,Revenue,CAHD,Statemented Support Academies,Other Public Bodies,Castle School Education Trust,1248.33, 22-Jul-2022
983,Revenue,CAHD,Statemented Support Academies,Other Public Bodies,Castle School Education Trust,1190.79, 22-Jul-2022
984,Revenue,CAHD,Statemented Support Academies,Other Public Bodies,Castle School Education Trust,691.92, 22-Jul-2022
985,Revenue,CAHD,Statemented Support Academies,Other Public Bodies,Castle School Education Trust,1071.67, 22-Jul-2022
986,Revenue,CAHD,Statemented Support Academies,Other Public Bodies,Castle School Education Trust,1061.10, 22-Jul-2022
987,Revenue,CAHD,Statemented Support Academies,Other Public Bodies,Castle School Education Trust,577.71, 22-Jul-2022
988,Revenue,CAHD,Statemented Support Academies,Other Public Bodies,Castle School Education Trust,1143.63, 22-Jul-2022
989,Revenue,CAHD,Statemented Support Academies,Other Public Bodies,Castle School Education Trust,943.33, 22-Jul-2022
990,Revenue,CAHD,Statemented Support Academies,Other Public Bodies,Castle School Education Trust,754.25, 22-Jul-2022
991,Revenue,CAHD,Statemented Support Academies,Other Public Bodies,Castle School Education Trust,906.75, 22-Jul-2022
992,Revenue,CAHD,Statemented Support Academies,Other Public Bodies,Castle School Education Trust,1202.67, 22-Jul-2022
993,Revenue,CAHD,Statemented Support Academies,Other Public Bodies,Castle School Education Trust,1485.54, 22-Jul-2022
994,Revenue,CAHD,Statemented Support Academies,Other Public Bodies,Castle School Education Trust,888.75, 22-Jul-2022
995,Revenue,CAHD,Statemented Support Academies,Other Public Bodies,Castle School Education Trust,1261.75, 22-Jul-2022
996,Revenue,CAHD,Statemented Support Academies,Other Public Bodies,Castle School Education Trust,1202.92, 22-Jul-2022
997,Revenue,CAHD,Statemented Support Academies,Other Public Bodies,Castle School Education Trust,642.50, 22-Jul-2022
998,Revenue,CAHD,Statemented Support Academies,Other Public Bodies,Castle School Education Trust,896.08, 22-Jul-2022
999,Revenue,CAHD,Statemented Support Academies,Other Public Bodies,Castle School Education Trust,1244.58, 22-Jul-2022
1000,Revenue,CAHD,Statemented Support Academies,Other Public Bodies,Castle School Education Trust,908.00, 22-Jul-2022
1001,Revenue,CAHD,Statemented Support Academies,Other Public Bodies,Castle School Education Trust,801.92, 22-Jul-2022
1002,Revenue,CAHD,Statemented Support Academies,Other Public Bodies,Castle School Education Trust,943.17, 22-Jul-2022
1003,Revenue,CAHD,Statemented Support Academies,Other Public Bodies,Castle School Education Trust,1267.50, 22-Jul-2022
1004,Revenue,CAHD,Academy Resource Base Funding,Other Public Bodies,Castle School Education Trust,3397.28, 25-Jul-2022
1005,Revenue,CAHD,Academy Resource Base Funding,Other Public Bodies,Castle School Education Trust,1702.96, 25-Jul-2022
1006,Revenue,CAHD,Academy Resource Base Funding,Other Public Bodies,Castle School Education Trust,2513.88, 25-Jul-2022
1007,Revenue,CAHD,Academy Resource Base Funding,Other Public Bodies,Castle School Education Trust,1702.96, 25-Jul-2022
1008,Revenue,CAHD,Academy Resource Base Funding,Other Public Bodies,Castle School Education Trust,1702.96, 25-Jul-2022
1009,Revenue,CAHD,Academy Resource Base Funding,Other Public Bodies,Castle School Education Trust,1702.96, 25-Jul-2022
1010,Revenue,CAHD,Academy Resource Base Funding,Other Public Bodies,Castle School Education Trust,2513.88, 25-Jul-2022
1011,Revenue,CAHD,Academy Resource Base Funding,Other Public Bodies,Castle School Education Trust,2513.88, 25-Jul-2022
1012,Revenue,CAHD,Academy Resource Base Funding,Other Public Bodies,Castle School Education Trust,2513.88, 25-Jul-2022
1013,Revenue,CAHD,Academy Resource Base Funding,Other Public Bodies,Castle School Education Trust,1702.96, 25-Jul-2022
1014,Revenue,CAHD,Academy Resource Base Funding,Other Public Bodies,Castle School Education Trust,1702.96, 25-Jul-2022
1015,Revenue,CAHD,Academy Resource Base Funding,Other Public Bodies,Castle School Education Trust,1702.96, 25-Jul-2022
1016,Revenue,CAHD,Academy Resource Base Funding,Other Public Bodies,Castle School Education Trust,1702.96, 25-Jul-2022
1017,Revenue,CAHD,Academy Resource Base Funding,Other Public Bodies,Castle School Education Trust,1702.96, 25-Jul-2022
1018,Revenue,CAHD,Academy Resource Base Funding,Other Public Bodies,Castle School Education Trust,1702.96, 25-Jul-2022
1019,Revenue,CAHD,Academy Resource Base Funding,Other Public Bodies,Castle School Education Trust,2189.53, 25-Jul-2022
1020,Revenue,CAHD,Schools Block Growth Contingency,Other Public Bodies,Castle School Education Trust,39037.50, 11-Jul-2022
1021,Revenue,CAHD,Statemented Support Academies,Other Public Bodies,Castle School Education Trust,672.03, 22-Jul-2022
1022,Revenue,CAHD,Statemented Support Academies,Other Public Bodies,Castle School Education Trust,822.50, 22-Jul-2022
1023,Revenue,CAHD,Statemented Support Academies,Other Public Bodies,Castle School Education Trust,872.46, 22-Jul-2022
1024,Revenue,CAHD,Statemented Support Academies,Other Public Bodies,Castle School Education Trust,848.88, 22-Jul-2022
1025,Revenue,CAHD,Statemented Support Academies,Other Public Bodies,Castle School Education Trust,740.00, 22-Jul-2022
1026,Revenue,CAHD,Statemented Support Academies,Other Public Bodies,Castle School Education Trust,541.58, 22-Jul-2022
1027,Revenue,CAHD,Statemented Support Academies,Other Public Bodies,Castle School Education Trust,723.17, 22-Jul-2022
1028,Revenue,CAHD,Statemented Support Academies,Other Public Bodies,Castle School Education Trust,956.00, 22-Jul-2022
1029,Revenue,CAHD,Statemented Support Academies,Other Public Bodies,Castle School Education Trust,560.17, 22-Jul-2022
1030,Revenue,CAHD,Schools Specific Grant Income,Other Public Bodies,Castle School Education Trust,500.00, 08-Jul-2022
1031,Revenue,CAHD,Schools Specific Grant Income,Other Public Bodies,Castle School Education Trust,500.00, 08-Jul-2022
1032,Revenue,CAHD,Schools Specific Grant Income,Other Public Bodies,Castle School Education Trust,500.00, 08-Jul-2022
1033,Revenue,CAHD,Statemented Support Academies,Other Public Bodies,Castle School Education Trust,1202.67, 22-Jul-2022
1034,Revenue,CAHD,Statemented Support Academies,Other Public Bodies,Castle School Education Trust,630.58, 22-Jul-2022
1035,Revenue,CAHD,Statemented Support Academies,Other Public Bodies,Castle School Education Trust,778.14, 22-Jul-2022
1036,Revenue,CAHD,Statemented Support Academies,Other Public Bodies,Castle School Education Trust,941.58, 22-Jul-2022
1037,Revenue,CAHD,Schools Specific Grant Income,Other Public Bodies,Castle School Education Trust,500.00, 08-Jul-2022
1038,Revenue,CAHD,Schools Specific Grant Income,Other Public Bodies,Castle School Education Trust,500.00, 08-Jul-2022
1039,Revenue,CAHD,Schools Specific Grant Income,Other Public Bodies,Castle School Education Trust,500.00, 08-Jul-2022
1040,Revenue,CAHD,Schools Specific Grant Income,Other Public Bodies,Castle School Education Trust,500.00, 08-Jul-2022
1041,Revenue,CAHD,Schools Specific Grant Income,Other Public Bodies,Castle School Education Trust,500.00, 08-Jul-2022
1042,Revenue,CAHD,Schools Specific Grant Income,Other Public Bodies,Castle School Education Trust,500.00, 08-Jul-2022
1043,Revenue,CAHD,Statemented Support Academies,Other Public Bodies,Castle School Educational Academy Trust,1129.92, 22-Jul-2022
1044,Revenue,CAHD,Statemented Support Academies,Other Public Bodies,Castle School Educational Academy Trust,854.00, 22-Jul-2022
1045,Revenue,CAHD,Statemented Support Academies,Other Public Bodies,Castle School Educational Academy Trust,2005.17, 22-Jul-2022
1046,Revenue,CAHD,Statemented Support Academies,Other Public Bodies,Castle School Educational Academy Trust,940.75, 22-Jul-2022
1047,Revenue,CAHD,Statemented Support Academies,Other Public Bodies,Castle School Educational Academy Trust,790.58, 22-Jul-2022
1048,Revenue,CAHD,Statemented Support Academies,Other Public Bodies,Castle School Educational Academy Trust,508.67, 22-Jul-2022
1049,Revenue,CAHD,Statemented Support Academies,Other Public Bodies,Castle School Educational Academy Trust,1148.20, 22-Jul-2022
1050,Revenue,CAHD,Statemented Support Academies,Other Public Bodies,Castle School Educational Academy Trust,1097.25, 22-Jul-2022
1051,Revenue,CAHD,Statemented Support Academies,Other Public Bodies,Castle School Educational Academy Trust,580.67, 22-Jul-2022
1052,Revenue,CAHD,Statemented Support Academies,Other Public Bodies,Castle School Educational Academy Trust,925.08, 22-Jul-2022
1053,Revenue,CAHD,Statemented Support Academies,Other Public Bodies,Castle School Educational Academy Trust,652.58, 22-Jul-2022
1054,Revenue,CAHD,Schools Specific Grant Income,Other Public Bodies,Castle School Educational Academy Trust,500.00, 08-Jul-2022
1055,Revenue,CAHD,Social Lettings Agency,Rent,Individual,658.30, 01-Jul-2022
1056,Revenue,CAHD,Social Lettings Agency,Fees & Charges Income - General,Individual,-52.66, 01-Jul-2022
1057,Revenue,CAHD,CSC - CLA Placements,Client Transport,Cathedral Cars Ltd,3230.00, 22-Jul-2022
1058,Revenue,CAHD,18-25 Year Olds,Day Care / Social Activities,Causeway House,4744.80, 26-Jul-2022
1059,Revenue,CAHD,Central - Commissioned Services,Day Care / Social Activities,Causeway House,3925.40, 26-Jul-2022
1060,Revenue,CAHD,Central - Commissioned Services,Day Care / Social Activities,Causeway House,4182.60, 26-Jul-2022
1061,Revenue,CAHD,South - Commissioned Services,Day Care / Social Activities,Causeway House,5646.00, 26-Jul-2022
1062,Revenue,CAHD,North - Community based support,Day Care / Social Activities,Causeway House,5165.80, 26-Jul-2022
1063,Revenue,CAHD,North - Community based support,Day Care / Social Activities,Causeway House,610.80, 26-Jul-2022
1064,Revenue,CAHD,North - Community based support,Day Care / Social Activities,Causeway House,3467.40, 26-Jul-2022
1065,Revenue,CAHD,North - Community based support,Day Care / Social Activities,Causeway House,3384.60, 26-Jul-2022
1066,Revenue,CAHD,Central - Commissioned Services,Permanent Residential,Cavendish Care Home,5464.29, 26-Jul-2022
1067,Revenue,CAHD,North - S117,Permanent Residential,Cavendish Care Home,-2868.93, 26-Jul-2022
1068,Revenue,CAHD,Jointly Funded H&SC Packages,Permanent Residential,Cavendish Care Home,6967.45, 26-Jul-2022
1069,Revenue,CAHD,Central - Commissioned Services,Permanent Nursing,Cedar Court Care Home,4000.00, 26-Jul-2022
1070,Revenue,CAHD,Central - Commissioned Services,Fees & Charges Income - General,Cedar Court Care Home,-404.12, 26-Jul-2022
1071,Revenue,CAHD,Training - Adult Services,Training Expenses,Central Consultancy & Training,2053.75, 07-Jul-2022
1072,Revenue,CAHD,CSC - Care Leavers Independent Living,Independent Living,Centrepeacehomes Ltd,7400.00, 21-Jul-2022
1073,Revenue,CAHD,CSC - Care Leavers Independent Living,Independent Living,Centrepeacehomes Ltd,21500.00, 25-Jul-2022
1074,Revenue,CAHD,South - Commissioned Services,Permanent Residential,Challenge House,2894.80, 26-Jul-2022
1075,Revenue,CAHD,Central - Commissioned Services,Permanent Residential,Challenge House,8491.17, 26-Jul-2022
1076,Revenue,CAHD,Central - Commissioned Services,Permanent Residential,Challenge House,2819.84, 26-Jul-2022
1077,Revenue,CAHD,Central - Commissioned Services,Fees & Charges Income - General,Challenge House,-865.72, 26-Jul-2022
1078,Revenue,CAHD,Central - Commissioned Services,Fees & Charges Income - General,Challenge House,-833.52, 26-Jul-2022
1079,Revenue,CAHD,North - Community based support,Permanent Residential,Challenge House,2314.96, 26-Jul-2022
1080,Revenue,CAHD,North - Community based support,Permanent Residential,Challenge House,2902.76, 26-Jul-2022
1081,Revenue,CAHD,North - Community based support,Fees & Charges Income - General,Challenge House,-664.56, 26-Jul-2022
1082,Revenue,CAHD,North - Community based support,Permanent Residential,Challenge House,2894.76, 26-Jul-2022
1083,Revenue,CAHD,North - Community based support,Fees & Charges Income - General,Challenge House,-1057.80, 26-Jul-2022
1084,Revenue,CAHD,North - Community based support,Permanent Nursing,Challenge House,2505.52, 26-Jul-2022
1085,Revenue,CAHD,North - Community based support,Permanent Nursing,Challenge House,3205.48, 26-Jul-2022
1086,Revenue,CAHD,North - Community based support,Fees & Charges Income - General,Challenge House,-627.80, 26-Jul-2022
1087,Revenue,CAHD,North - Community based support,Fees & Charges Income - General,Challenge House,-627.80, 26-Jul-2022
1088,Revenue,CAHD,North - S117,Permanent Nursing,Challenge House,2505.52, 26-Jul-2022
1089,Revenue,CAHD,North - bed purchasing and direct  payments,Fees & Charges Income - General,Challenge House,23632.88, 26-Jul-2022
1090,Revenue,CAHD,South Glos Users in South Glos Homes,Permanent Nursing,Challenge House,836.76, 26-Jul-2022
1091,Revenue,CAHD,South Glos Users in South Glos Homes,Permanent Nursing,Challenge House,836.76, 26-Jul-2022
1092,Revenue,CAHD,South Glos Users in South Glos Homes,Permanent Nursing,Challenge House,836.76, 26-Jul-2022
1093,Revenue,CAHD,South Glos Users in South Glos Homes,Permanent Nursing,Challenge House,-717.23, 26-Jul-2022
1094,Revenue,CAHD,South Glos Users in South Glos Homes,Permanent Nursing,Challenge House,836.76, 26-Jul-2022
1095,Revenue,CAHD,South Glos Users in South Glos Homes,Permanent Nursing,Challenge House,836.76, 26-Jul-2022
1096,Revenue,CAHD,South Glos Users in South Glos Homes,Permanent Nursing,Challenge House,836.76, 26-Jul-2022
1097,Revenue,CAHD,South Glos Users in South Glos Homes,Permanent Nursing,Challenge House,836.76, 26-Jul-2022
1098,Revenue,CAHD,South Glos Users in South Glos Homes,Permanent Nursing,Challenge House,836.76, 26-Jul-2022
1099,Revenue,CAHD,South Glos Users in South Glos Homes,Permanent Nursing,Challenge House,836.76, 26-Jul-2022
1100,Revenue,CAHD,South Glos Users in South Glos Homes,Permanent Nursing,Challenge House,836.76, 26-Jul-2022
1101,Revenue,CAHD,South Glos Users in South Glos Homes,Permanent Nursing,Challenge House,836.76, 26-Jul-2022
1102,Revenue,CAHD,South Glos Users in South Glos Homes,Permanent Nursing,Challenge House,836.76, 26-Jul-2022
1103,Revenue,CAHD,South Glos Users in South Glos Homes,Permanent Nursing,Challenge House,836.76, 26-Jul-2022
1104,Revenue,CAHD,South Glos Users in South Glos Homes,Permanent Nursing,Challenge House,836.76, 26-Jul-2022
1105,Revenue,CAHD,South Glos Users in South Glos Homes,Permanent Nursing,Challenge House,836.76, 26-Jul-2022
1106,Revenue,CAHD,South Glos Users in South Glos Homes,Permanent Nursing,Challenge House,836.76, 26-Jul-2022
1107,Revenue,CAHD,South Glos Users in South Glos Homes,Permanent Nursing,Challenge House,836.76, 26-Jul-2022
1108,Revenue,CAHD,Central - Commissioned Services,Respite Planned - Residential,Challenge House,4500.00, 26-Jul-2022
1109,Revenue,CAHD,Central - Commissioned Services,Respite Planned - Residential,Challenge House,728.57, 26-Jul-2022
1110,Revenue,CAHD,South - Commissioned Services,Permanent Residential,Challenge House,3604.00, 26-Jul-2022
1111,Revenue,CAHD,South - Commissioned Services,Permanent Residential,Challenge House,3816.00, 26-Jul-2022
1112,Revenue,CAHD,South - Commissioned Services,Permanent Nursing,Challenge House,8104.00, 26-Jul-2022
1113,Revenue,CAHD,South - Commissioned Services,Permanent Nursing,Challenge House,2174.64, 26-Jul-2022
1114,Revenue,CAHD,South - Commissioned Services,Fees & Charges Income - General,Challenge House,-1993.08, 26-Jul-2022
1115,Revenue,CAHD,South - Commissioned Services,Fees & Charges Income - General,Challenge House,-627.80, 26-Jul-2022
1116,Revenue,CAHD,North - Community based support,Permanent Residential,Challenge House,3384.56, 26-Jul-2022
1117,Revenue,CAHD,North - Community based support,Permanent Residential,Challenge House,3400.00, 26-Jul-2022
1118,Revenue,CAHD,North - Community based support,Permanent Residential,Challenge House,3700.00, 26-Jul-2022
1119,Revenue,CAHD,North - Community based support,Permanent Residential,Challenge House,3392.00, 26-Jul-2022
1120,Revenue,CAHD,North - Community based support,Permanent Residential,Challenge House,3710.00, 26-Jul-2022
1121,Revenue,CAHD,North - Community based support,Permanent Residential,Challenge House,3604.00, 26-Jul-2022
1122,Revenue,CAHD,North - Community based support,Permanent Residential,Challenge House,9714.29, 26-Jul-2022
1123,Revenue,CAHD,North - Community based support,Permanent Residential,Challenge House,3710.00, 26-Jul-2022
1124,Revenue,CAHD,North - Community based support,Permanent Residential,Challenge House,4028.00, 26-Jul-2022
1125,Revenue,CAHD,North - Community based support,Permanent Residential,Challenge House,3400.00, 26-Jul-2022
1126,Revenue,CAHD,North - Community based support,Permanent Residential,Challenge House,3604.00, 26-Jul-2022
1127,Revenue,CAHD,North - Community based support,Permanent Residential,Challenge House,4028.00, 26-Jul-2022
1128,Revenue,CAHD,North - Community based support,Permanent Nursing,Challenge House,3686.88, 26-Jul-2022
1129,Revenue,CAHD,North - Community based support,Permanent Nursing,Challenge House,7097.60, 26-Jul-2022
1130,Revenue,CAHD,North - Community based support,Permanent Nursing,Challenge House,3400.00, 26-Jul-2022
1131,Revenue,CAHD,North - Community based support,Permanent Nursing,Challenge House,3604.00, 26-Jul-2022
1132,Revenue,CAHD,North - Community based support,Permanent Nursing,Challenge House,3127.44, 26-Jul-2022
1133,Revenue,CAHD,North - Community based support,Permanent Nursing,Challenge House,3517.28, 26-Jul-2022
1134,Revenue,CAHD,North - Community based support,Fees & Charges Income - General,Challenge House,-747.96, 26-Jul-2022
1135,Revenue,CAHD,North - Community based support,Fees & Charges Income - General,Challenge House,-782.40, 26-Jul-2022
1136,Revenue,CAHD,North - Community based support,Fees & Charges Income - General,Challenge House,-1060.52, 26-Jul-2022
1137,Revenue,CAHD,North - Community based support,Fees & Charges Income - General,Challenge House,-795.72, 26-Jul-2022
1138,Revenue,CAHD,North - Community based support,Fees & Charges Income - General,Challenge House,-731.28, 26-Jul-2022
1139,Revenue,CAHD,North - Community based support,Fees & Charges Income - General,Challenge House,1015.48, 26-Jul-2022
1140,Revenue,CAHD,North - Community based support,Fees & Charges Income - General,Challenge House,-631.80, 26-Jul-2022
1141,Revenue,CAHD,North - Community based support,Fees & Charges Income - General,Challenge House,-27027.59, 26-Jul-2022
1142,Revenue,CAHD,North - Community based support,Fees & Charges Income - General,Challenge House,-2495.89, 26-Jul-2022
1143,Revenue,CAHD,North - Community based support,Fees & Charges Income - General,Challenge House,-627.80, 26-Jul-2022
1144,Revenue,CAHD,North - Community based support,Fees & Charges Income - General,Challenge House,-1338.84, 26-Jul-2022
1145,Revenue,CAHD,North - Community based support,Fees & Charges Income - General,Challenge House,-1037.92, 26-Jul-2022
1146,Revenue,CAHD,North - Community based support,Fees & Charges Income - General,Challenge House,-1410.80, 26-Jul-2022
1147,Revenue,CAHD,North - Community based support,Fees & Charges Income - General,Challenge House,-883.96, 26-Jul-2022
1148,Revenue,CAHD,North - Community based support,Fees & Charges Income - General,Challenge House,-863.20, 26-Jul-2022
1149,Revenue,CAHD,North - Community based support,Fees & Charges Income - General,Challenge House,-747.68, 26-Jul-2022
1150,Revenue,CAHD,North - Community based support,Fees & Charges Income - General,Challenge House,-920.88, 26-Jul-2022
1151,Revenue,CAHD,North - Community based support,Fees & Charges Income - General,Challenge House,-1140.52, 26-Jul-2022
1152,Revenue,CAHD,Central - Commissioned Services,Permanent Nursing,Challenge House,2720.00, 26-Jul-2022
1153,Revenue,CAHD,Central - Commissioned Services,Permanent Nursing,Challenge House,2490.00, 26-Jul-2022
1154,Revenue,CAHD,Central - Commissioned Services,Permanent Nursing,Challenge House,3200.00, 26-Jul-2022
1155,Revenue,CAHD,Central - Commissioned Services,Fees & Charges Income - General,Challenge House,-997.40, 26-Jul-2022
1156,Revenue,CAHD,Central - Commissioned Services,Fees & Charges Income - General,Challenge House,-1230.56, 26-Jul-2022
1157,Revenue,CAHD,Central - Commissioned Services,Fees & Charges Income - General,Challenge House,-987.40, 26-Jul-2022
1158,Revenue,CAHD,North - Community based support,Permanent Residential,Challenge House,2600.00, 26-Jul-2022
1159,Revenue,CAHD,North - Community based support,Permanent Residential,Challenge House,3136.52, 26-Jul-2022
1160,Revenue,CAHD,North - Community based support,Respite Planned - Nursing,Challenge House,1786.46, 26-Jul-2022
1161,Revenue,CAHD,North - Community based support,Fees & Charges Income - General,Challenge House,-928.88, 26-Jul-2022
1162,Revenue,CAHD,North - Community based support,Fees & Charges Income - General,Challenge House,-933.68, 26-Jul-2022
1163,Revenue,CAHD,CSC - Age Related Allowances,"Holidays, Outings & Visits",Individual,177.00, 01-Jul-2022
1164,Revenue,CAHD,CSC - Age Related Allowances,Foster Parent Allowances,Individual,177.00, 01-Jul-2022
1165,Revenue,CAHD,CSC - Professional Fees Foster Carers,Band 1 Foster Care,Individual,390.00, 01-Jul-2022
1166,Revenue,CAHD,CSC - Professional Fees Foster Carers,Therapeutic Fostering Fee,Individual,577.00, 01-Jul-2022
1167,Revenue,CAHD,CSC - Age Related Allowances,Foster Parent Allowances,Individual,177.00, 08-Jul-2022
1168,Revenue,CAHD,CSC - Professional Fees Foster Carers,Band 1 Foster Care,Individual,390.00, 08-Jul-2022
1169,Revenue,CAHD,CSC - Professional Fees Foster Carers,Therapeutic Fostering Fee,Individual,577.00, 08-Jul-2022
1170,Revenue,CAHD,CSC - Age Related Allowances,Foster Parent Allowances,Individual,177.00, 15-Jul-2022
1171,Revenue,CAHD,CSC - Professional Fees Foster Carers,Band 1 Foster Care,Individual,390.00, 15-Jul-2022
1172,Revenue,CAHD,CSC - Professional Fees Foster Carers,Therapeutic Fostering Fee,Individual,577.00, 15-Jul-2022
1173,Revenue,CAHD,CSC - Age Related Allowances,Foster Parent Allowances,Individual,177.00, 22-Jul-2022
1174,Revenue,CAHD,CSC - Professional Fees Foster Carers,Band 1 Foster Care,Individual,390.00, 22-Jul-2022
1175,Revenue,CAHD,CSC - Professional Fees Foster Carers,Therapeutic Fostering Fee,Individual,577.00, 22-Jul-2022
1176,Revenue,CAHD,CSC - Age Related Allowances,Foster Parent Allowances,Individual,177.00, 29-Jul-2022
1177,Revenue,CAHD,CSC - Professional Fees Foster Carers,Band 1 Foster Care,Individual,390.00, 29-Jul-2022
1178,Revenue,CAHD,CSC - Professional Fees Foster Carers,Therapeutic Fostering Fee,Individual,577.00, 29-Jul-2022
1179,Revenue,CAHD,CSC - Vinney Green Secure Unit,Advertising for Recruitment,Charles Hunter Associates,3891.60, 04-Jul-2022
1180,Revenue,CAHD,Training - Adult Services,Training Expenses,Individual,1400.00, 06-Jul-2022
1181,Revenue,CAHD,High Risk Group Funding,Other Public Bodies,Charlton Wood Primary Academy,6592.50, 01-Jul-2022
1182,Revenue,CAHD,Schools Specific Grant Income,Other Public Bodies,Charlton Wood Primary Academy,500.00, 08-Jul-2022
1183,Revenue,CAHD,Schools Block Growth Contingency,Other Public Bodies,Charlton Wood Primary Academy,20833.33, 11-Jul-2022
1184,Revenue,CAHD,Statemented Support Academies,Other Public Bodies,Charlton Wood Primary Academy,1202.67, 22-Jul-2022
1185,Revenue,CAHD,Statemented Support Academies,Other Public Bodies,Charlton Wood Primary Academy,1202.67, 22-Jul-2022
1186,Revenue,CAHD,Statemented Support Academies,Other Public Bodies,Charlton Wood Primary Academy,702.17, 22-Jul-2022
1187,Revenue,CAHD,Statemented Support Academies,Other Public Bodies,Charlton Wood Primary Academy,1202.67, 22-Jul-2022
1188,Revenue,CAHD,North - Community based support,Other Small Contracts,Cherish Able Care Limited,686.06, 19-Jul-2022
1189,Revenue,CAHD,South - Commissioned Services,Other Small Contracts,Cherish Able Care Limited,9494.18, 19-Jul-2022
1190,Revenue,CAHD,Central - Commissioned Services,Other Small Contracts,Cherish Able Care Limited,675.21, 19-Jul-2022
1191,Revenue,CAHD,North - Community based support,Other Small Contracts,Cherish Able Care Limited,686.06, 19-Jul-2022
1192,Revenue,CAHD,South - Commissioned Services,Other Small Contracts,Cherish Able Care Limited,9494.18, 19-Jul-2022
1193,Revenue,CAHD,Central - Commissioned Services,Other Small Contracts,Cherish Able Care Limited,675.21, 19-Jul-2022
1194,Revenue,CAHD,North - Community based support,Other Small Contracts,Cherish Able Care Limited,686.06, 19-Jul-2022
1195,Revenue,CAHD,South - Commissioned Services,Other Small Contracts,Cherish Able Care Limited,9494.18, 19-Jul-2022
1196,Revenue,CAHD,Central - Commissioned Services,Other Small Contracts,Cherish Able Care Limited,675.21, 19-Jul-2022
1197,Revenue,CAHD,North - Community based support,Other Small Contracts,Cherish Able Care Limited,686.06, 21-Jul-2022
1198,Revenue,CAHD,South - Commissioned Services,Other Small Contracts,Cherish Able Care Limited,9494.18, 21-Jul-2022
1199,Revenue,CAHD,Central - Commissioned Services,Other Small Contracts,Cherish Able Care Limited,675.21, 21-Jul-2022
1200,Revenue,CAHD,North - Community based support,Other Small Contracts,Cherish Able Care Limited,686.06, 21-Jul-2022
1201,Revenue,CAHD,South - Commissioned Services,Other Small Contracts,Cherish Able Care Limited,9494.18, 21-Jul-2022
1202,Revenue,CAHD,Central - Commissioned Services,Other Small Contracts,Cherish Able Care Limited,675.21, 21-Jul-2022
1203,Revenue,CAHD,CSC - Age Related Allowances,"Holidays, Outings & Visits",Individual,438.00, 01-Jul-2022
1204,Revenue,CAHD,CSC - Age Related Allowances,Xmas / Birthday Allowances,Individual,141.00, 01-Jul-2022
1205,Revenue,CAHD,CSC - Age Related Allowances,Children - Family Support,Individual,438.00, 01-Jul-2022
1206,Revenue,CAHD,CSC - Professional Fees Foster Carers,Children - Family Support,Individual,510.00, 01-Jul-2022
1207,Revenue,CAHD,CSC - CLA Placements,"Holidays, Outings & Visits",Individual,117.00, 08-Jul-2022
1208,Revenue,CAHD,CSC - Age Related Allowances,Children - Family Support,Individual,442.28, 08-Jul-2022
1209,Revenue,CAHD,CSC - Professional Fees Foster Carers,Children - Family Support,Individual,510.00, 08-Jul-2022
1210,Revenue,CAHD,CSC - Age Related Allowances,Children - Family Support,Individual,453.00, 15-Jul-2022
1211,Revenue,CAHD,CSC - Fostering Carer Support,Payments to Carers,Individual,140.00, 15-Jul-2022
1212,Revenue,CAHD,CSC - Professional Fees Foster Carers,Children - Family Support,Individual,510.00, 15-Jul-2022
1213,Revenue,CAHD,CSC - Age Related Allowances,Children - Family Support,Individual,453.00, 22-Jul-2022
1214,Revenue,CAHD,CSC - Professional Fees Foster Carers,Children - Family Support,Individual,510.00, 22-Jul-2022
1215,Revenue,CAHD,CSC - Age Related Allowances,Children - Family Support,Individual,453.00, 29-Jul-2022
1216,Revenue,CAHD,CSC - Professional Fees Foster Carers,Children - Family Support,Individual,510.00, 29-Jul-2022
1217,Revenue,CAHD,Central - Commissioned Services,Supported Living,Cherry Orchards,2164.12, 20-Jul-2022
1218,Revenue,CAHD,North - Community based support,Other Small Contracts,Cherry Orchards,7042.56, 20-Jul-2022
1219,Revenue,CAHD,18-25 Year Olds,Respite Care,Cherry Orchards,0.00, 26-Jul-2022
1220,Revenue,CAHD,Central - Commissioned Services,Respite Care,Cherry Orchards,0.00, 26-Jul-2022
1221,Revenue,CAHD,Central - Commissioned Services,Supported Living,Cherry Orchards,2016.88, 26-Jul-2022
1222,Revenue,CAHD,South - Commissioned Services,Respite Care,Cherry Orchards,0.00, 26-Jul-2022
1223,Revenue,CAHD,South - Commissioned Services,Respite Care,Cherry Orchards,0.00, 26-Jul-2022
1224,Revenue,CAHD,South - Commissioned Services,Supported Living,Cherry Orchards,1098.96, 26-Jul-2022
1225,Revenue,CAHD,South - Commissioned Services,Supported Living,Cherry Orchards,1996.68, 26-Jul-2022
1226,Revenue,CAHD,South - Commissioned Services,Supported Living,Cherry Orchards,2139.56, 26-Jul-2022
1227,Revenue,CAHD,North - Community based support,Respite Care,Cherry Orchards,0.00, 26-Jul-2022
1228,Revenue,CAHD,North - Community based support,Respite Care,Cherry Orchards,0.00, 26-Jul-2022
1229,Revenue,CAHD,North - Community based support,Supported Living,Cherry Orchards,1080.56, 26-Jul-2022
1230,Revenue,CAHD,North - Community based support,Supported Living,Cherry Orchards,1996.68, 26-Jul-2022
1231,Revenue,CAHD,South - S117,Supported Living,Cherry Orchards,2438.96, 26-Jul-2022
1232,Revenue,CAHD,Younger MH non-res purchasing,Respite Care,Cherry Orchards,0.00, 26-Jul-2022
1233,Revenue,CAHD,Central - Commissioned Services,Permanent Residential,Chescombe Trust Ltd,9445.12, 26-Jul-2022
1234,Revenue,CAHD,Central - Commissioned Services,Fees & Charges Income - General,Chescombe Trust Ltd,-438.80, 26-Jul-2022
1235,Revenue,CAHD,S28A cases,Permanent Residential,Chescombe Trust Ltd,10494.48, 26-Jul-2022
1236,Revenue,CAHD,S28A cases,Fees & Charges Income - General,Chescombe Trust Ltd,-438.80, 26-Jul-2022
1237,Revenue,CAHD,CSC - CLA Placements,"Holidays, Outings & Visits",Childrens Contact Services Ltd,8547.90, 25-Jul-2022
1238,Revenue,CAHD,CSC - Emergency Duty Team,Preventative Assistance,Childrens Contact Services Ltd,1632.98, 08-Jul-2022
1239,Revenue,CAHD,CSC - Emergency Duty Team,Preventative Assistance,Childrens Contact Services Ltd,1440.00, 08-Jul-2022
1240,Revenue,CAHD,Childrens - Safeguarding Board,Training Expenses,Individual,875.00, 04-Jul-2022
1241,Revenue,CAHD,CSC - Child Arrangement Orders (prev RO),"Holidays, Outings & Visits",Individual,325.10, 15-Jul-2022
1242,Revenue,CAHD,CSC - Child Arrangement Orders (prev RO),Residence Order Allowances,Individual,1351.59, 15-Jul-2022
1243,Revenue,CAHD,CSC - Child Arrangement Orders (prev RO),Residence Order Allowances,Individual,510.30, 22-Jul-2022
1244,Revenue,CAHD,CSC - Child Arrangement Orders (prev RO),Residence Order Allowances,Individual,510.30, 29-Jul-2022
1245,Revenue,CAHD,North - Community based support,One-off Planned Direct Payment,Individual,500.00, 08-Jul-2022
1246,Revenue,CAHD,Statemented Support Payments to OLAs,Other L.A.s - General,Churchill Academy,1085.75, 22-Jul-2022
1247,Revenue,CAHD,Community Support - South,Preventative Assistance,Cintre,1995.28, 12-Jul-2022
1248,Revenue,CAHD,Community Support - South,Preventative Assistance,Cintre,1547.36, 12-Jul-2022
1249,Revenue,CAHD,Community Support - South,Preventative Assistance,Cintre,814.40, 12-Jul-2022
1250,Revenue,CAHD,Community Support - South,Preventative Assistance,Cintre,1018.00, 12-Jul-2022
1251,Revenue,CAHD,Community Support - South,Preventative Assistance,Cintre,814.40, 12-Jul-2022
1252,Revenue,CAHD,South - Commissioned Services,Other Small Contracts,Cintre,1268.71, 19-Jul-2022
1253,Revenue,CAHD,Younger MH non-res purchasing,Other Small Contracts,Cintre,972.90, 19-Jul-2022
1254,Revenue,CAHD,South - Commissioned Services,Other Small Contracts,Cintre,1268.71, 19-Jul-2022
1255,Revenue,CAHD,Younger MH non-res purchasing,Other Small Contracts,Cintre,972.90, 19-Jul-2022
1256,Revenue,CAHD,South - Commissioned Services,Other Small Contracts,Cintre,1268.71, 19-Jul-2022
1257,Revenue,CAHD,Younger MH non-res purchasing,Other Small Contracts,Cintre,972.90, 19-Jul-2022
1258,Revenue,CAHD,South - Commissioned Services,Other Small Contracts,Cintre,1268.71, 21-Jul-2022
1259,Revenue,CAHD,Younger MH non-res purchasing,Other Small Contracts,Cintre,972.90, 21-Jul-2022
1260,Revenue,CAHD,South - Commissioned Services,Other Small Contracts,Cintre,1268.71, 21-Jul-2022
1261,Revenue,CAHD,Younger MH non-res purchasing,Other Small Contracts,Cintre,972.90, 21-Jul-2022
1262,Revenue,CAHD,18-25 Year Olds,Permanent Residential,Cintre,6188.60, 26-Jul-2022
1263,Revenue,CAHD,18-25 Year Olds,Fees & Charges Income - General,Cintre,-53.96, 26-Jul-2022
1264,Revenue,CAHD,Learning Difficulties Development Fund,Other Supplies & Services,Circles South West Ltd,4500.00, 01-Jul-2022
1265,Revenue,CAHD,Training - Adult Services,Training Expenses,City & Guilds,3420.84, 25-Jul-2022
1266,Revenue,CAHD,Placements OLA Special Schools and RB,Other L.A.s - General,Claremont School,1981.43, 22-Jul-2022
1267,Revenue,CAHD,Placements OLA Special Schools and RB,Other L.A.s - General,Claremont School,646.00, 22-Jul-2022
1268,Revenue,CAHD,Placements OLA Special Schools and RB,Other L.A.s - General,Claremont School,2774.72, 22-Jul-2022
1269,Revenue,CAHD,Placements OLA Special Schools and RB,Other L.A.s - General,Claremont School,646.00, 22-Jul-2022
1270,Revenue,CAHD,Placements OLA Special Schools and RB,Other L.A.s - General,Claremont School,1981.43, 22-Jul-2022
1271,Revenue,CAHD,Placements OLA Special Schools and RB,Other L.A.s - General,Claremont School,646.00, 22-Jul-2022
1272,Revenue,CAHD,Placements OLA Special Schools and RB,Other L.A.s - General,Claremont School,1981.43, 22-Jul-2022
1273,Revenue,CAHD,Placements OLA Special Schools and RB,Other L.A.s - General,Claremont School,646.00, 22-Jul-2022
1274,Revenue,CAHD,Placements OLA Special Schools and RB,Other L.A.s - General,Claremont School,792.58, 22-Jul-2022
1275,Revenue,CAHD,Placements OLA Special Schools and RB,Other L.A.s - General,Claremont School,2774.72, 22-Jul-2022
1276,Revenue,CAHD,Placements OLA Special Schools and RB,Other L.A.s - General,Claremont School,1981.43, 22-Jul-2022
1277,Revenue,CAHD,Placements OLA Special Schools and RB,Other L.A.s - General,Claremont School,646.00, 22-Jul-2022
1278,Revenue,CAHD,Placements OLA Special Schools and RB,Other L.A.s - General,Claremont School,2774.72, 22-Jul-2022
1279,Revenue,CAHD,Placements OLA Special Schools and RB,Other L.A.s - General,Claremont School,646.00, 22-Jul-2022
1280,Revenue,CAHD,Placements OLA Special Schools and RB,Other L.A.s - General,Claremont School,1585.16, 22-Jul-2022
1281,Revenue,CAHD,Placements OLA Special Schools and RB,Other L.A.s - General,Claremont School,516.77, 22-Jul-2022
1282,Revenue,CAHD,Placements OLA Special Schools and RB,Other L.A.s - General,Claremont School,1981.43, 22-Jul-2022
1283,Revenue,CAHD,Placements OLA Special Schools and RB,Other L.A.s - General,Claremont School,646.00, 22-Jul-2022
1284,Revenue,CAHD,Central - Commissioned Services,Permanent Residential,Cleeve Lodge,3470.00, 26-Jul-2022
1285,Revenue,CAHD,Central - Commissioned Services,Fees & Charges Income - General,Cleeve Lodge,-1063.72, 26-Jul-2022
1286,Revenue,CAHD,South - Commissioned Services,Permanent Residential,Cleeve Lodge,4740.32, 26-Jul-2022
1287,Revenue,CAHD,South - Commissioned Services,Permanent Residential,Cleeve Lodge,5057.72, 26-Jul-2022
1288,Revenue,CAHD,South - Commissioned Services,Permanent Residential,Cleeve Lodge,3964.16, 26-Jul-2022
1289,Revenue,CAHD,South - Commissioned Services,Permanent Residential,Cleeve Lodge,4771.28, 26-Jul-2022
1290,Revenue,CAHD,South - Commissioned Services,Permanent Residential,Cleeve Lodge,3199.88, 26-Jul-2022
1291,Revenue,CAHD,South - Commissioned Services,Permanent Nursing,Cleeve Lodge,3470.00, 26-Jul-2022
1292,Revenue,CAHD,South - Commissioned Services,Fees & Charges Income - General,Cleeve Lodge,-751.88, 26-Jul-2022
1293,Revenue,CAHD,South - Commissioned Services,Fees & Charges Income - General,Cleeve Lodge,-875.20, 26-Jul-2022
1294,Revenue,CAHD,South - Commissioned Services,Fees & Charges Income - General,Cleeve Lodge,-632.52, 26-Jul-2022
1295,Revenue,CAHD,South - Commissioned Services,Fees & Charges Income - General,Cleeve Lodge,-18499.00, 26-Jul-2022
1296,Revenue,CAHD,South - Commissioned Services,Fees & Charges Income - General,Cleeve Lodge,-929.16, 26-Jul-2022
1297,Revenue,CAHD,South - Commissioned Services,Fees & Charges Income - General,Cleeve Lodge,-659.60, 26-Jul-2022
1298,Revenue,CAHD,North - S117,Permanent Residential,Cleeve Lodge,3470.00, 26-Jul-2022
1299,Revenue,CAHD,North - Community based support,Permanent Nursing,Clevedon Court Nursing Home,3448.16, 26-Jul-2022
1300,Revenue,CAHD,North - Community based support,Fees & Charges Income - General,Clevedon Court Nursing Home,-1043.00, 26-Jul-2022
1301,Revenue,CAHD,Central - Commissioned Services,Other Small Contracts,Clover Health and Home Care Ltd,931.52, 20-Jul-2022
1302,Revenue,CAHD,Central - Commissioned Services,Other Small Contracts,Clover Health and Home Care Ltd,1590.40, 20-Jul-2022
1303,Revenue,CAHD,Central - Commissioned Services,Other Small Contracts,Clover Health and Home Care Ltd,937.20, 20-Jul-2022
1304,Revenue,CAHD,Central - Commissioned Services,Other Small Contracts,Clover Health and Home Care Ltd,6367.84, 20-Jul-2022
1305,Revenue,CAHD,Central - Commissioned Services,Other Small Contracts,Clover Health and Home Care Ltd,272.64, 20-Jul-2022
1306,Revenue,CAHD,South - Commissioned Services,Permanent Residential,Collingwood Care Home,3710.00, 26-Jul-2022
1307,Revenue,CAHD,South - Commissioned Services,Permanent Residential,Collingwood Care Home,3392.00, 26-Jul-2022
1308,Revenue,CAHD,South - Commissioned Services,Permanent Residential,Collingwood Care Home,3540.00, 26-Jul-2022
1309,Revenue,CAHD,South - Commissioned Services,Permanent Residential,Collingwood Care Home,3794.80, 26-Jul-2022
1310,Revenue,CAHD,South - Commissioned Services,Fees & Charges Income - General,Collingwood Care Home,-1114.40, 26-Jul-2022
1311,Revenue,CAHD,South - Commissioned Services,Fees & Charges Income - General,Collingwood Care Home,-1063.37, 26-Jul-2022
1312,Revenue,CAHD,South - Commissioned Services,Fees & Charges Income - General,Collingwood Care Home,-862.72, 26-Jul-2022
1313,Revenue,CAHD,South - Commissioned Services,Fees & Charges Income - General,Collingwood Care Home,-674.76, 26-Jul-2022
1314,Revenue,CAHD,South - Commissioned Services,Fees & Charges Income - General,Collingwood Care Home,-710.36, 26-Jul-2022
1315,Revenue,CAHD,North - Community based support,Permanent Residential,Collingwood Care Home,3253.12, 26-Jul-2022
1316,Revenue,CAHD,North - Community based support,Fees & Charges Income - General,Collingwood Care Home,-1000.36, 26-Jul-2022
1317,Revenue,CAHD,Statemented Support Payments to OLAs,Other L.A.s - General,Colston`s Girls School Trust,1582.50, 22-Jul-2022
1318,Revenue,CAHD,South - Commissioned Services,Permanent Residential,Community Theraputic Services,7776.36, 26-Jul-2022
1319,Revenue,CAHD,South - Commissioned Services,Fees & Charges Income - General,Community Theraputic Services,-438.80, 26-Jul-2022
1320,Revenue,CAHD,North - Community based support,Permanent Residential,Community Theraputic Services,8071.08, 26-Jul-2022
1321,Revenue,CAHD,North - Community based support,Fees & Charges Income - General,Community Theraputic Services,-627.80, 26-Jul-2022
1322,Revenue,CAHD,Jointly Funded H&SC Packages,Permanent Residential,Community Theraputic Services,4992.88, 26-Jul-2022
1323,Revenue,CAHD,Jointly Funded H&SC Packages,Permanent Residential,Community Theraputic Services,2076.20, 26-Jul-2022
1324,Revenue,CAHD,CSC - Agency Fostering,Foster Parent Allowances,Compass Fostering West Ltd,3540.82, 27-Jul-2022
1325,Revenue,CAHD,CSC - Vinney Green Secure Unit,Service Contracts (Premises),Complete Weed Control (North Wessex) Ltd,622.00, 18-Jul-2022
1326,Revenue,CAHD,CSC - Vinney Green Secure Unit,Service Contracts (Premises),Complete Weed Control (North Wessex) Ltd,672.00, 08-Jul-2022
1327,Revenue,CAHD,Statemented Support Equipment,Educational Supplies & Equipment,Connevans Limited,1655.75, 22-Jul-2022
1328,Revenue,CAHD,Statemented Support Equipment,Educational Supplies & Equipment,Connevans Limited,3606.23, 28-Jul-2022
1329,Revenue,CAHD,Statemented Support Equipment,Educational Supplies & Equipment,Connevans Limited,1508.80, 28-Jul-2022
1330,Revenue,CAHD,Statemented Support Equipment,Educational Supplies & Equipment,Connevans Limited,560.00, 29-Jul-2022
1331,Revenue,CAHD,Statemented Support Equipment,Educational Supplies & Equipment,Connevans Limited,1590.25, 29-Jul-2022
1332,Revenue,CAHD,Statemented Support Equipment,Educational Supplies & Equipment,Connevans Limited,1040.00, 29-Jul-2022
1333,Revenue,CAHD,Bed and Breakfast,Bed & Breakfast,Connolly & Callaghan Limited,548.80, 18-Jul-2022
1334,Revenue,CAHD,Bed and Breakfast,Bed & Breakfast,Connolly & Callaghan Limited,522.27, 19-Jul-2022
1335,Revenue,CAHD,Bed and Breakfast,Bed & Breakfast,Connolly & Callaghan Limited,422.80, 22-Jul-2022
1336,Revenue,CAHD,Bed and Breakfast,Bed & Breakfast,Connolly & Callaghan Limited,562.80, 21-Jul-2022
1337,Revenue,CAHD,Bed and Breakfast,Bed & Breakfast,Connolly & Callaghan Limited,508.20, 19-Jul-2022
1338,Revenue,CAHD,Bed and Breakfast,Bed & Breakfast,Connolly & Callaghan Limited,548.80, 04-Jul-2022
1339,Revenue,CAHD,Bed and Breakfast,Bed & Breakfast,Connolly & Callaghan Limited,422.80, 04-Jul-2022
1340,Revenue,CAHD,Bed and Breakfast,Bed & Breakfast,Connolly & Callaghan Limited,548.80, 04-Jul-2022
1341,Revenue,CAHD,Bed and Breakfast,Bed & Breakfast,Connolly & Callaghan Limited,733.60, 04-Jul-2022
1342,Revenue,CAHD,Bed and Breakfast,Bed & Breakfast,Connolly & Callaghan Limited,562.80, 04-Jul-2022
1343,Revenue,CAHD,Bed and Breakfast,Bed & Breakfast,Connolly & Callaghan Limited,422.80, 04-Jul-2022
1344,Revenue,CAHD,Bed and Breakfast,Bed & Breakfast,Connolly & Callaghan Limited,548.80, 04-Jul-2022
1345,Revenue,CAHD,Bed and Breakfast,Bed & Breakfast,Connolly & Callaghan Limited,422.80, 04-Jul-2022
1346,Revenue,CAHD,Bed and Breakfast,Bed & Breakfast,Connolly & Callaghan Limited,548.80, 04-Jul-2022
1347,Revenue,CAHD,Bed and Breakfast,Bed & Breakfast,Connolly & Callaghan Limited,597.80, 22-Jul-2022
1348,Revenue,CAHD,Bed and Breakfast,Bed & Breakfast,Connolly & Callaghan Limited,641.90, 04-Jul-2022
1349,Revenue,CAHD,Bed and Breakfast,Bed & Breakfast,Connolly & Callaghan Limited,422.80, 04-Jul-2022
1350,Revenue,CAHD,Bed and Breakfast,Bed & Breakfast,Connolly & Callaghan Limited,548.80, 04-Jul-2022
1351,Revenue,CAHD,Bed and Breakfast,Bed & Breakfast,Connolly & Callaghan Limited,641.90, 04-Jul-2022
1352,Revenue,CAHD,Bed and Breakfast,Bed & Breakfast,Connolly & Callaghan Limited,833.70, 22-Jul-2022
1353,Revenue,CAHD,Bed and Breakfast,Bed & Breakfast,Connolly & Callaghan Limited,686.70, 19-Jul-2022
1354,Revenue,CAHD,Bed and Breakfast,Bed & Breakfast,Connolly & Callaghan Limited,422.80, 04-Jul-2022
1355,Revenue,CAHD,Bed and Breakfast,Bed & Breakfast,Connolly & Callaghan Limited,529.20, 04-Jul-2022
1356,Revenue,CAHD,Bed and Breakfast,Bed & Breakfast,Connolly & Callaghan Limited,548.80, 04-Jul-2022
1357,Revenue,CAHD,Bed and Breakfast,Bed & Breakfast,Connolly & Callaghan Limited,733.60, 04-Jul-2022
1358,Revenue,CAHD,Bed and Breakfast,Bed & Breakfast,Connolly & Callaghan Limited,641.90, 04-Jul-2022
1359,Revenue,CAHD,Bed and Breakfast,Bed & Breakfast,Connolly & Callaghan Limited,833.70, 04-Jul-2022
1360,Revenue,CAHD,Bed and Breakfast,Bed & Breakfast,Connolly & Callaghan Limited,529.20, 04-Jul-2022
1361,Revenue,CAHD,Bed and Breakfast,Bed & Breakfast,Connolly & Callaghan Limited,422.80, 04-Jul-2022
1362,Revenue,CAHD,Bed and Breakfast,Bed & Breakfast,Connolly & Callaghan Limited,529.20, 04-Jul-2022
1363,Revenue,CAHD,Bed and Breakfast,Other Supplies & Services,Connolly & Callaghan Limited,546.70, 21-Jul-2022
1364,Revenue,CAHD,Bed and Breakfast,Bed & Breakfast,Connolly & Callaghan Limited,548.80, 04-Jul-2022
1365,Revenue,CAHD,Bed and Breakfast,Bed & Breakfast,Connolly & Callaghan Limited,597.80, 21-Jul-2022
1366,Revenue,CAHD,Bed and Breakfast,Bed & Breakfast,Connolly & Callaghan Limited,733.60, 04-Jul-2022
1367,Revenue,CAHD,Bed and Breakfast,Bed & Breakfast,Connolly & Callaghan Limited,641.90, 04-Jul-2022
1368,Revenue,CAHD,Bed and Breakfast,Bed & Breakfast,Connolly & Callaghan Limited,833.70, 04-Jul-2022
1369,Revenue,CAHD,Bed and Breakfast,Bed & Breakfast,Connolly & Callaghan Limited,529.20, 04-Jul-2022
1370,Revenue,CAHD,Bed and Breakfast,Bed & Breakfast,Connolly & Callaghan Limited,422.80, 04-Jul-2022
1371,Revenue,CAHD,Bed and Breakfast,Bed & Breakfast,Connolly & Callaghan Limited,529.20, 04-Jul-2022
1372,Revenue,CAHD,Bed and Breakfast,Bed & Breakfast,Connolly & Callaghan Limited,548.80, 04-Jul-2022
1373,Revenue,CAHD,Bed and Breakfast,Bed & Breakfast,Connolly & Callaghan Limited,597.80, 21-Jul-2022
1374,Revenue,CAHD,Bed and Breakfast,Bed & Breakfast,Connolly & Callaghan Limited,733.60, 04-Jul-2022
1375,Revenue,CAHD,Bed and Breakfast,Bed & Breakfast,Connolly & Callaghan Limited,641.90, 04-Jul-2022
1376,Revenue,CAHD,Bed and Breakfast,Bed & Breakfast,Connolly & Callaghan Limited,733.60, 04-Jul-2022
1377,Revenue,CAHD,Bed and Breakfast,Bed & Breakfast,Connolly & Callaghan Limited,833.70, 04-Jul-2022
1378,Revenue,CAHD,Bed and Breakfast,Bed & Breakfast,Connolly & Callaghan Limited,508.20, 04-Jul-2022
1379,Revenue,CAHD,Bed and Breakfast,Bed & Breakfast,Connolly & Callaghan Limited,427.00, 04-Jul-2022
1380,Revenue,CAHD,Bed and Breakfast,Bed & Breakfast,Connolly & Callaghan Limited,686.70, 20-Jul-2022
1381,Revenue,CAHD,Bed and Breakfast,Bed & Breakfast,Connolly & Callaghan Limited,422.80, 04-Jul-2022
1382,Revenue,CAHD,Bed and Breakfast,Bed & Breakfast,Connolly & Callaghan Limited,529.20, 04-Jul-2022
1383,Revenue,CAHD,Bed and Breakfast,Bed & Breakfast,Connolly & Callaghan Limited,546.70, 20-Jul-2022
1384,Revenue,CAHD,Bed and Breakfast,Bed & Breakfast,Connolly & Callaghan Limited,733.60, 04-Jul-2022
1385,Revenue,CAHD,Bed and Breakfast,Bed & Breakfast,Connolly & Callaghan Limited,641.90, 04-Jul-2022
1386,Revenue,CAHD,Bed and Breakfast,Bed & Breakfast,Connolly & Callaghan Limited,733.60, 01-Jul-2022
1387,Revenue,CAHD,Bed and Breakfast,Bed & Breakfast,Connolly & Callaghan Limited,833.70, 04-Jul-2022
1388,Revenue,CAHD,Bed and Breakfast,Bed & Breakfast,Connolly & Callaghan Limited,529.20, 04-Jul-2022
1389,Revenue,CAHD,Bed and Breakfast,Bed & Breakfast,Connolly & Callaghan Limited,427.00, 04-Jul-2022
1390,Revenue,CAHD,Bed and Breakfast,Bed & Breakfast,Connolly & Callaghan Limited,756.70, 01-Jul-2022
1391,Revenue,CAHD,Bed and Breakfast,Bed & Breakfast,Connolly & Callaghan Limited,422.80, 08-Jul-2022
1392,Revenue,CAHD,Bed and Breakfast,Bed & Breakfast,Connolly & Callaghan Limited,548.80, 08-Jul-2022
1393,Revenue,CAHD,Bed and Breakfast,Bed & Breakfast,Connolly & Callaghan Limited,443.80, 08-Jul-2022
1394,Revenue,CAHD,Bed and Breakfast,Bed & Breakfast,Connolly & Callaghan Limited,529.20, 19-Jul-2022
1395,Revenue,CAHD,Bed and Breakfast,Bed & Breakfast,Connolly & Callaghan Limited,422.80, 11-Jul-2022
1396,Revenue,CAHD,Bed and Breakfast,Bed & Breakfast,Connolly & Callaghan Limited,546.70, 11-Jul-2022
1397,Revenue,CAHD,Bed and Breakfast,Bed & Breakfast,Connolly & Callaghan Limited,733.60, 08-Jul-2022
1398,Revenue,CAHD,Bed and Breakfast,Bed & Breakfast,Connolly & Callaghan Limited,597.80, 19-Jul-2022
1399,Revenue,CAHD,Bed and Breakfast,Bed & Breakfast,Connolly & Callaghan Limited,733.60, 08-Jul-2022
1400,Revenue,CAHD,Bed and Breakfast,Bed & Breakfast,Connolly & Callaghan Limited,641.90, 08-Jul-2022
1401,Revenue,CAHD,Bed and Breakfast,Bed & Breakfast,Connolly & Callaghan Limited,562.80, 11-Jul-2022
1402,Revenue,CAHD,Bed and Breakfast,Bed & Breakfast,Connolly & Callaghan Limited,733.60, 18-Jul-2022
1403,Revenue,CAHD,Bed and Breakfast,Bed & Breakfast,Connolly & Callaghan Limited,508.20, 11-Jul-2022
1404,Revenue,CAHD,Bed and Breakfast,Bed & Breakfast,Connolly & Callaghan Limited,529.20, 19-Jul-2022
1405,Revenue,CAHD,Bed and Breakfast,Bed & Breakfast,Connolly & Callaghan Limited,629.30, 08-Jul-2022
1406,Revenue,CAHD,Bed and Breakfast,Bed & Breakfast,Connolly & Callaghan Limited,449.50, 11-Jul-2022
1407,Revenue,CAHD,Bed and Breakfast,Bed & Breakfast,Connolly & Callaghan Limited,443.80, 11-Jul-2022
1408,Revenue,CAHD,Bed and Breakfast,Bed & Breakfast,Connolly & Callaghan Limited,756.70, 11-Jul-2022
1409,Revenue,CAHD,CSC - Care Leavers Independent Living,Adults - Family Support,Connolly & Callaghan Limited,436.80, 11-Jul-2022
1410,Revenue,CAHD,Bed and Breakfast,Bed & Breakfast,Connolly & Callaghan Limited,422.80, 22-Jul-2022
1411,Revenue,CAHD,Bed and Breakfast,Bed & Breakfast,Connolly & Callaghan Limited,548.80, 22-Jul-2022
1412,Revenue,CAHD,Bed and Breakfast,Bed & Breakfast,Connolly & Callaghan Limited,443.80, 22-Jul-2022
1413,Revenue,CAHD,Bed and Breakfast,Bed & Breakfast,Connolly & Callaghan Limited,546.70, 21-Jul-2022
1414,Revenue,CAHD,Bed and Breakfast,Bed & Breakfast,Connolly & Callaghan Limited,733.60, 22-Jul-2022
1415,Revenue,CAHD,Bed and Breakfast,Bed & Breakfast,Connolly & Callaghan Limited,733.60, 22-Jul-2022
1416,Revenue,CAHD,Bed and Breakfast,Bed & Breakfast,Connolly & Callaghan Limited,641.90, 22-Jul-2022
1417,Revenue,CAHD,Bed and Breakfast,Bed & Breakfast,Connolly & Callaghan Limited,733.60, 21-Jul-2022
1418,Revenue,CAHD,Bed and Breakfast,Bed & Breakfast,Connolly & Callaghan Limited,443.80, 22-Jul-2022
1419,Revenue,CAHD,Bed and Breakfast,Bed & Breakfast,Connolly & Callaghan Limited,629.30, 21-Jul-2022
1420,Revenue,CAHD,Bed and Breakfast,Bed & Breakfast,Connolly & Callaghan Limited,629.30, 22-Jul-2022
1421,Revenue,CAHD,Bed and Breakfast,Bed & Breakfast,Connolly & Callaghan Limited,443.80, 22-Jul-2022
1422,Revenue,CAHD,Bed and Breakfast,Bed & Breakfast,Connolly & Callaghan Limited,756.70, 21-Jul-2022
1423,Revenue,CAHD,North - Community based support,Non Residential Care Income,Individual,-234.90, 08-Jul-2022
1424,Revenue,CAHD,North - Community based support,Non Residential Care Income,Individual,-234.90, 22-Jul-2022
1425,Revenue,CAHD,Schools Specific Grant Income,Other Public Bodies,Cotswold Chine School,500.00, 08-Jul-2022
1426,Revenue,CAHD,Alexandra Way,Cleaning & Domestic Services,Countrywide Healthcare Supplies Ltd,6344.42, 18-Jul-2022
1427,Revenue,CAHD,North - Community based support,Permanent Residential,Court House Residential C.H.,3604.00, 26-Jul-2022
1428,Revenue,CAHD,North - Community based support,Fees & Charges Income - General,Court House Residential C.H.,-677.72, 26-Jul-2022
1429,Revenue,CAHD,North - Community based support,Permanent Residential,Court House Retirement Home,3600.00, 26-Jul-2022
1430,Revenue,CAHD,North - Community based support,Fees & Charges Income - General,Court House Retirement Home,-875.20, 26-Jul-2022
1431,Revenue,CAHD,S28A cases,Permanent Residential,Creedy Court,10597.96, 26-Jul-2022
1432,Revenue,CAHD,S28A cases,Fees & Charges Income - General,Creedy Court,-627.80, 26-Jul-2022
1433,Revenue,CAHD,North - Community based support,Permanent Residential,Creedy Court,14054.00, 26-Jul-2022
1434,Revenue,CAHD,North - Community based support,Fees & Charges Income - General,Creedy Court,-438.80, 26-Jul-2022
1435,Revenue,CAHD,Next Steps Accommodation Programme,Other Small Contracts,Curo Care & Support,3000.00, 21-Jul-2022
1436,Revenue,CAHD,Supporting People Programme,Grants to Voluntary Bodies,Curo Housing Group,501.42, 01-Jul-2022
1437,Revenue,CAHD,South - Commissioned Services,Permanent Residential,Daneswood,14386.46, 26-Jul-2022
1438,Revenue,CAHD,South - Commissioned Services,Fees & Charges Income - General,Daneswood,-438.80, 26-Jul-2022
1439,Revenue,CAHD,North - Community based support,Permanent Residential,Daneswood,15311.13, 26-Jul-2022
1440,Revenue,CAHD,North - Community based support,Fees & Charges Income - General,Daneswood,-438.80, 26-Jul-2022
1441,Revenue,CAHD,Adult & Community Learning Employability 21/22,Training Expenses,Daniel Thwaites PLC,5650.00, 29-Jul-2022
1442,Revenue,CAHD,Learning Difficulties PSL,Rent,Individual,2400.00, 22-Jul-2022
1443,Revenue,CAHD,CSC - Age Related Allowances,"Holidays, Outings & Visits",Individual,282.00, 01-Jul-2022
1444,Revenue,CAHD,CSC - Age Related Allowances,Foster Parent Allowances,Individual,282.00, 01-Jul-2022
1445,Revenue,CAHD,CSC - Professional Fees Foster Carers,Children - Family Support,Individual,340.00, 01-Jul-2022
1446,Revenue,CAHD,CSC - Age Related Allowances,Foster Parent Allowances,Individual,282.00, 08-Jul-2022
1447,Revenue,CAHD,CSC - Professional Fees Foster Carers,Children - Family Support,Individual,340.00, 08-Jul-2022
1448,Revenue,CAHD,CSC - Age Related Allowances,Foster Parent Allowances,Individual,282.00, 15-Jul-2022
1449,Revenue,CAHD,CSC - Professional Fees Foster Carers,Children - Family Support,Individual,340.00, 15-Jul-2022
1450,Revenue,CAHD,CSC - Age Related Allowances,Foster Parent Allowances,Individual,282.00, 22-Jul-2022
1451,Revenue,CAHD,CSC - Professional Fees Foster Carers,Children - Family Support,Individual,340.00, 22-Jul-2022
1452,Revenue,CAHD,CSC - Age Related Allowances,Foster Parent Allowances,Individual,282.00, 29-Jul-2022
1453,Revenue,CAHD,CSC - Professional Fees Foster Carers,Children - Family Support,Individual,340.00, 29-Jul-2022
1454,Revenue,CAHD,Central - Commissioned Services,Permanent Residential,Debt Recovery,4786.48, 26-Jul-2022
1455,Revenue,CAHD,Central - Commissioned Services,Permanent Residential,Debt Recovery,4326.88, 26-Jul-2022
1456,Revenue,CAHD,Central - Commissioned Services,Fees & Charges Income - General,Debt Recovery,-438.80, 26-Jul-2022
1457,Revenue,CAHD,Central - Commissioned Services,Fees & Charges Income - General,Debt Recovery,-627.80, 26-Jul-2022
1458,Revenue,CAHD,South - Commissioned Services,Permanent Residential,Debt Recovery,4422.88, 26-Jul-2022
1459,Revenue,CAHD,South - Commissioned Services,Fees & Charges Income - General,Debt Recovery,-438.80, 26-Jul-2022
1460,Revenue,CAHD,North - Community based support,Permanent Nursing,Debt Recovery,3822.52, 26-Jul-2022
1461,Revenue,CAHD,North - Community based support,Permanent Nursing,Debt Recovery,4642.48, 26-Jul-2022
1462,Revenue,CAHD,North - Community based support,Fees & Charges Income - General,Debt Recovery,-367.80, 26-Jul-2022
1463,Revenue,CAHD,North - Community based support,Fees & Charges Income - General,Debt Recovery,-438.80, 26-Jul-2022
1464,Revenue,CAHD,North - Community based support,Permanent Residential,Debt Recovery,3702.24, 26-Jul-2022
1465,Revenue,CAHD,North - Community based support,Permanent Nursing,Debt Recovery,4187.16, 26-Jul-2022
1466,Revenue,CAHD,North - Community based support,Permanent Nursing,Debt Recovery,3643.52, 26-Jul-2022
1467,Revenue,CAHD,North - Community based support,Permanent Nursing,Debt Recovery,5735.40, 26-Jul-2022
1468,Revenue,CAHD,North - Community based support,Fees & Charges Income - General,Debt Recovery,-511.92, 26-Jul-2022
1469,Revenue,CAHD,North - Community based support,Fees & Charges Income - General,Debt Recovery,-438.80, 26-Jul-2022
1470,Revenue,CAHD,North - Community based support,Fees & Charges Income - General,Debt Recovery,-462.88, 26-Jul-2022
1471,Revenue,CAHD,North - Community based support,Fees & Charges Income - General,Debt Recovery,-438.80, 26-Jul-2022
1472,Revenue,CAHD,North - Community based support,Permanent Nursing,Debt Recovery,5723.32, 26-Jul-2022
1473,Revenue,CAHD,North - Community based support,Fees & Charges Income - General,Debt Recovery,-858.12, 26-Jul-2022
1474,Revenue,CAHD,Jointly Funded H&SC Packages,Permanent Nursing,Debt Recovery,393.48, 26-Jul-2022
1475,Revenue,CAHD,South Glos Users in South Glos Homes,Permanent Nursing,Deerhurst Nursing Home,836.76, 26-Jul-2022
1476,Revenue,CAHD,South Glos Users in South Glos Homes,Permanent Nursing,Deerhurst Nursing Home,836.76, 26-Jul-2022
1477,Revenue,CAHD,South Glos Users in South Glos Homes,Permanent Nursing,Deerhurst Nursing Home,836.76, 26-Jul-2022
1478,Revenue,CAHD,South Glos Users in South Glos Homes,Permanent Nursing,Deerhurst Nursing Home,836.76, 26-Jul-2022
1479,Revenue,CAHD,South Glos Users in South Glos Homes,Permanent Nursing,Deerhurst Nursing Home,836.76, 26-Jul-2022
1480,Revenue,CAHD,South Glos Users in South Glos Homes,Permanent Nursing,Deerhurst Nursing Home,836.76, 26-Jul-2022
1481,Revenue,CAHD,South Glos Users in South Glos Homes,Permanent Nursing,Deerhurst Nursing Home,836.76, 26-Jul-2022
1482,Revenue,CAHD,South Glos Users in South Glos Homes,Permanent Nursing,Deerhurst Nursing Home,836.76, 26-Jul-2022
1483,Revenue,CAHD,South Glos Users in South Glos Homes,Permanent Nursing,Deerhurst Nursing Home,836.76, 26-Jul-2022
1484,Revenue,CAHD,South Glos Users in South Glos Homes,Permanent Nursing,Deerhurst Nursing Home,836.76, 26-Jul-2022
1485,Revenue,CAHD,South Glos Users in South Glos Homes,Permanent Nursing,Deerhurst Nursing Home,836.76, 26-Jul-2022
1486,Revenue,CAHD,South Glos Users in South Glos Homes,Permanent Nursing,Deerhurst Nursing Home,836.76, 26-Jul-2022
1487,Revenue,CAHD,South Glos Users in South Glos Homes,Permanent Nursing,Deerhurst Nursing Home,836.76, 26-Jul-2022
1488,Revenue,CAHD,South Glos Users in South Glos Homes,Permanent Nursing,Deerhurst Nursing Home,12335.32, 26-Jul-2022
1489,Revenue,CAHD,South Glos Users in South Glos Homes,Permanent Nursing,Deerhurst Nursing Home,836.76, 26-Jul-2022
1490,Revenue,CAHD,South Glos Users in South Glos Homes,Permanent Nursing,Deerhurst Nursing Home,836.76, 26-Jul-2022
1491,Revenue,CAHD,South Glos Users in South Glos Homes,Permanent Nursing,Deerhurst Nursing Home,836.76, 26-Jul-2022
1492,Revenue,CAHD,South Glos Users in South Glos Homes,Permanent Nursing,Deerhurst Nursing Home,836.76, 26-Jul-2022
1493,Revenue,CAHD,South Glos Users in South Glos Homes,Permanent Nursing,Deerhurst Nursing Home,836.76, 26-Jul-2022
1494,Revenue,CAHD,South Glos Users in South Glos Homes,Permanent Nursing,Deerhurst Nursing Home,836.76, 26-Jul-2022
1495,Revenue,CAHD,South Glos Users in South Glos Homes,Permanent Nursing,Deerhurst Nursing Home,6401.07, 26-Jul-2022
1496,Revenue,CAHD,South Glos Users in South Glos Homes,Permanent Nursing,Deerhurst Nursing Home,836.76, 26-Jul-2022
1497,Revenue,CAHD,South Glos Users in South Glos Homes,Permanent Nursing,Deerhurst Nursing Home,836.76, 26-Jul-2022
1498,Revenue,CAHD,South Glos Users in South Glos Homes,Permanent Nursing,Deerhurst Nursing Home,836.76, 26-Jul-2022
1499,Revenue,CAHD,South Glos Users in South Glos Homes,Permanent Nursing,Deerhurst Nursing Home,836.76, 26-Jul-2022
1500,Revenue,CAHD,South Glos Users in South Glos Homes,Permanent Nursing,Deerhurst Nursing Home,836.76, 26-Jul-2022
1501,Revenue,CAHD,South Glos Users in South Glos Homes,Permanent Nursing,Deerhurst Nursing Home,836.76, 26-Jul-2022
1502,Revenue,CAHD,South Glos Users in South Glos Homes,Permanent Nursing,Deerhurst Nursing Home,836.76, 26-Jul-2022
1503,Revenue,CAHD,South Glos Users in South Glos Homes,Permanent Nursing,Deerhurst Nursing Home,836.76, 26-Jul-2022
1504,Revenue,CAHD,South Glos Users in South Glos Homes,Permanent Nursing,Deerhurst Nursing Home,836.76, 26-Jul-2022
1505,Revenue,CAHD,South Glos Users in South Glos Homes,Permanent Nursing,Deerhurst Nursing Home,836.76, 26-Jul-2022
1506,Revenue,CAHD,South Glos Users in South Glos Homes,Permanent Nursing,Deerhurst Nursing Home,836.76, 26-Jul-2022
1507,Revenue,CAHD,South Glos Users in South Glos Homes,Permanent Nursing,Deerhurst Nursing Home,836.76, 26-Jul-2022
1508,Revenue,CAHD,South Glos Users in South Glos Homes,Permanent Nursing,Deerhurst Nursing Home,836.76, 26-Jul-2022
1509,Revenue,CAHD,South Glos Users in South Glos Homes,Permanent Nursing,Deerhurst Nursing Home,836.76, 26-Jul-2022
1510,Revenue,CAHD,South Glos Users in South Glos Homes,Permanent Nursing,Deerhurst Nursing Home,836.76, 26-Jul-2022
1511,Revenue,CAHD,South Glos Users in South Glos Homes,Permanent Nursing,Deerhurst Nursing Home,836.76, 26-Jul-2022
1512,Revenue,CAHD,South Glos Users in South Glos Homes,Permanent Nursing,Deerhurst Nursing Home,836.76, 26-Jul-2022
1513,Revenue,CAHD,South Glos Users in South Glos Homes,Permanent Nursing,Deerhurst Nursing Home,836.76, 26-Jul-2022
1514,Revenue,CAHD,South Glos Users in South Glos Homes,Permanent Nursing,Deerhurst Nursing Home,836.76, 26-Jul-2022
1515,Revenue,CAHD,South Glos Users in South Glos Homes,Permanent Nursing,Deerhurst Nursing Home,836.76, 26-Jul-2022
1516,Revenue,CAHD,South Glos Users in South Glos Homes,Permanent Nursing,Deerhurst Nursing Home,836.76, 26-Jul-2022
1517,Revenue,CAHD,South Glos Users in South Glos Homes,Permanent Nursing,Deerhurst Nursing Home,836.76, 26-Jul-2022
1518,Revenue,CAHD,Central - Commissioned Services,Permanent Nursing,Deerhurst Nursing Home,5049.84, 26-Jul-2022
1519,Revenue,CAHD,Central - Commissioned Services,Permanent Nursing,Deerhurst Nursing Home,3665.52, 26-Jul-2022
1520,Revenue,CAHD,Central - Commissioned Services,Fees & Charges Income - General,Deerhurst Nursing Home,-968.40, 26-Jul-2022
1521,Revenue,CAHD,South - Commissioned Services,Respite Planned - Residential,Deerhurst Nursing Home,1050.00, 26-Jul-2022
1522,Revenue,CAHD,South - Commissioned Services,Permanent Nursing,Deerhurst Nursing Home,4208.92, 26-Jul-2022
1523,Revenue,CAHD,South - Commissioned Services,Permanent Nursing,Deerhurst Nursing Home,7331.04, 26-Jul-2022
1524,Revenue,CAHD,South - Commissioned Services,Permanent Nursing,Deerhurst Nursing Home,4771.28, 26-Jul-2022
1525,Revenue,CAHD,South - Commissioned Services,Permanent Nursing,Deerhurst Nursing Home,5048.56, 26-Jul-2022
1526,Revenue,CAHD,South - Commissioned Services,Permanent Nursing,Deerhurst Nursing Home,4433.04, 26-Jul-2022
1527,Revenue,CAHD,South - Commissioned Services,Permanent Nursing,Deerhurst Nursing Home,4430.84, 26-Jul-2022
1528,Revenue,CAHD,South - Commissioned Services,Permanent Nursing,Deerhurst Nursing Home,4303.92, 26-Jul-2022
1529,Revenue,CAHD,South - Commissioned Services,Permanent Nursing,Deerhurst Nursing Home,5045.60, 26-Jul-2022
1530,Revenue,CAHD,South - Commissioned Services,Permanent Nursing,Deerhurst Nursing Home,5045.60, 26-Jul-2022
1531,Revenue,CAHD,South - Commissioned Services,Permanent Nursing,Deerhurst Nursing Home,5048.56, 26-Jul-2022
1532,Revenue,CAHD,South - Commissioned Services,Respite Planned - Nursing,Deerhurst Nursing Home,916.38, 26-Jul-2022
1533,Revenue,CAHD,South - Commissioned Services,Respite Planned - Nursing,Deerhurst Nursing Home,1200.00, 26-Jul-2022
1534,Revenue,CAHD,South - Commissioned Services,Fees & Charges Income - General,Deerhurst Nursing Home,-674.84, 26-Jul-2022
1535,Revenue,CAHD,South - Commissioned Services,Fees & Charges Income - General,Deerhurst Nursing Home,-641.24, 26-Jul-2022
1536,Revenue,CAHD,South - Commissioned Services,Fees & Charges Income - General,Deerhurst Nursing Home,-627.80, 26-Jul-2022
1537,Revenue,CAHD,South - Commissioned Services,Fees & Charges Income - General,Deerhurst Nursing Home,3952.32, 26-Jul-2022
1538,Revenue,CAHD,South - Commissioned Services,Fees & Charges Income - General,Deerhurst Nursing Home,-1265.72, 26-Jul-2022
1539,Revenue,CAHD,South - Commissioned Services,Fees & Charges Income - General,Deerhurst Nursing Home,-6005.42, 26-Jul-2022
1540,Revenue,CAHD,South - Commissioned Services,Fees & Charges Income - General,Deerhurst Nursing Home,-627.80, 26-Jul-2022
1541,Revenue,CAHD,South - Commissioned Services,Fees & Charges Income - General,Deerhurst Nursing Home,-627.80, 26-Jul-2022
1542,Revenue,CAHD,South - Commissioned Services,Fees & Charges Income - General,Deerhurst Nursing Home,-1085.44, 26-Jul-2022
1543,Revenue,CAHD,North - Community based support,Permanent Nursing,Deerhurst Nursing Home,3458.04, 26-Jul-2022
1544,Revenue,CAHD,South - Commissioned Services,Day Care / Social Activities,Deerhurst Nursing Home,598.72, 26-Jul-2022
1545,Revenue,CAHD,South - Commissioned Services,Day Care / Social Activities,Deerhurst Nursing Home,748.40, 26-Jul-2022
1546,Revenue,CAHD,South - Commissioned Services,Permanent Residential,Deerhurst Nursing Home,4129.00, 26-Jul-2022
1547,Revenue,CAHD,South - Commissioned Services,Permanent Residential,Deerhurst Nursing Home,3891.20, 26-Jul-2022
1548,Revenue,CAHD,South - Commissioned Services,Permanent Nursing,Deerhurst Nursing Home,4006.00, 26-Jul-2022
1549,Revenue,CAHD,South - Commissioned Services,Permanent Nursing,Deerhurst Nursing Home,4129.40, 26-Jul-2022
1550,Revenue,CAHD,South - Commissioned Services,Permanent Nursing,Deerhurst Nursing Home,4596.36, 26-Jul-2022
1551,Revenue,CAHD,South - Commissioned Services,Permanent Nursing,Deerhurst Nursing Home,4006.00, 26-Jul-2022
1552,Revenue,CAHD,South - Commissioned Services,Fees & Charges Income - General,Deerhurst Nursing Home,-1344.60, 26-Jul-2022
1553,Revenue,CAHD,South - Commissioned Services,Fees & Charges Income - General,Deerhurst Nursing Home,-792.34, 26-Jul-2022
1554,Revenue,CAHD,South - Commissioned Services,Fees & Charges Income - General,Deerhurst Nursing Home,-857.92, 26-Jul-2022
1555,Revenue,CAHD,South - Commissioned Services,Fees & Charges Income - General,Deerhurst Nursing Home,-627.80, 26-Jul-2022
1556,Revenue,CAHD,South - Commissioned Services,Fees & Charges Income - General,Deerhurst Nursing Home,-945.24, 26-Jul-2022
1557,Revenue,CAHD,North - Community based support,Permanent Nursing,Deerhurst Nursing Home,4140.00, 26-Jul-2022
1558,Revenue,CAHD,North - Community based support,Fees & Charges Income - General,Deerhurst Nursing Home,-643.80, 26-Jul-2022
1559,Revenue,CAHD,South - Commissioned Services,Permanent Nursing,Deerhurst Nursing Home,3965.12, 26-Jul-2022
1560,Revenue,CAHD,South - Commissioned Services,Fees & Charges Income - General,Deerhurst Nursing Home,-116.64, 26-Jul-2022
1561,Revenue,CAHD,North - Community based support,Permanent Nursing,Deerhurst Nursing Home,3891.20, 26-Jul-2022
1562,Revenue,CAHD,North - Community based support,Fees & Charges Income - General,Deerhurst Nursing Home,-1067.12, 26-Jul-2022
1563,Revenue,CAHD,North - Community based support,Permanent Residential,Deerhurst Nursing Home,9221.16, 26-Jul-2022
1564,Revenue,CAHD,North - Community based support,Fees & Charges Income - General,Deerhurst Nursing Home,-438.80, 26-Jul-2022
1565,Revenue,CAHD,Schools Specific Grant Income,Other Public Bodies,Dene Magna School,500.00, 08-Jul-2022
1566,Revenue,CAHD,CSC - Section 17 0-25,Preventative Assistance,Descare Ltd,2016.00, 12-Jul-2022
1567,Revenue,CAHD,CSC - Section 17 0-25,Preventative Assistance,Descare Ltd,1625.00, 08-Jul-2022
1568,Revenue,CAHD,CSC - Section 17 0-25,Preventative Assistance,Descare Ltd,960.00, 12-Jul-2022
1569,Revenue,CAHD,CSC - Section 17 0-25,Preventative Assistance,Descare Ltd,1344.00, 11-Jul-2022
1570,Revenue,CAHD,CSC - Section 17 0-25,Preventative Assistance,Descare Ltd,1344.00, 11-Jul-2022
1571,Revenue,CAHD,Central - Commissioned Services,Day Care / Social Activities,Design House,3152.00, 26-Jul-2022
1572,Revenue,CAHD,South - Commissioned Services,Day Care / Social Activities,Design House,555.04, 26-Jul-2022
1573,Revenue,CAHD,18-25 Year Olds,Respite Care,Design House,0.00, 26-Jul-2022
1574,Revenue,CAHD,18-25 Year Olds,Respite Care,Design House,0.00, 26-Jul-2022
1575,Revenue,CAHD,18-25 Year Olds,Respite Care,Design House,0.00, 26-Jul-2022
1576,Revenue,CAHD,18-25 Year Olds,Respite Care,Design House,0.00, 26-Jul-2022
1577,Revenue,CAHD,South - Commissioned Services,Respite Care,Design House,0.00, 26-Jul-2022
1578,Revenue,CAHD,South - Commissioned Services,Respite Care,Design House,0.00, 26-Jul-2022
1579,Revenue,CAHD,South - Commissioned Services,Respite Care,Design House,0.00, 26-Jul-2022
1580,Revenue,CAHD,South - Commissioned Services,Respite Care,Design House,0.00, 26-Jul-2022
1581,Revenue,CAHD,South - Commissioned Services,Respite Care,Design House,0.00, 26-Jul-2022
1582,Revenue,CAHD,South - Commissioned Services,Respite Care,Design House,0.00, 26-Jul-2022
1583,Revenue,CAHD,South - Commissioned Services,Respite Care,Design House,0.00, 26-Jul-2022
1584,Revenue,CAHD,South - Commissioned Services,Respite Care,Design House,0.00, 26-Jul-2022
1585,Revenue,CAHD,South - Commissioned Services,Respite Care,Design House,0.00, 26-Jul-2022
1586,Revenue,CAHD,South - Commissioned Services,Respite Care,Design House,0.00, 26-Jul-2022
1587,Revenue,CAHD,South - Commissioned Services,Respite Care,Design House,0.00, 26-Jul-2022
1588,Revenue,CAHD,South - Commissioned Services,Respite Care,Design House,0.00, 26-Jul-2022
1589,Revenue,CAHD,South - Commissioned Services,Respite Care,Design House,0.00, 26-Jul-2022
1590,Revenue,CAHD,South - Commissioned Services,Supported Living,Design House,2835.88, 26-Jul-2022
1591,Revenue,CAHD,South - Commissioned Services,Supported Living,Design House,4217.60, 26-Jul-2022
1592,Revenue,CAHD,South - Commissioned Services,Supported Living,Design House,2732.88, 26-Jul-2022
1593,Revenue,CAHD,South - Commissioned Services,Supported Living,Design House,2426.28, 26-Jul-2022
1594,Revenue,CAHD,South - Commissioned Services,Supported Living,Design House,2835.88, 26-Jul-2022
1595,Revenue,CAHD,South - Commissioned Services,Supported Living,Design House,3292.00, 26-Jul-2022
1596,Revenue,CAHD,South - Commissioned Services,Supported Living,Design House,4217.60, 26-Jul-2022
1597,Revenue,CAHD,South - Commissioned Services,Supported Living,Design House,2730.84, 26-Jul-2022
1598,Revenue,CAHD,South - Commissioned Services,Supported Living,Design House,3175.72, 26-Jul-2022
1599,Revenue,CAHD,South - Commissioned Services,Supported Living,Design House,2860.20, 26-Jul-2022
1600,Revenue,CAHD,South - Commissioned Services,Supported Living,Design House,3143.32, 26-Jul-2022
1601,Revenue,CAHD,South - Commissioned Services,Supported Living,Design House,2038.28, 26-Jul-2022
1602,Revenue,CAHD,South - Commissioned Services,Supported Living,Design House,4629.16, 26-Jul-2022
1603,Revenue,CAHD,South - Commissioned Services,Supported Living,Design House,3537.04, 26-Jul-2022
1604,Revenue,CAHD,South - Commissioned Services,Supported Living,Design House,3200.24, 26-Jul-2022
1605,Revenue,CAHD,South - Commissioned Services,Supported Living,Design House,2426.28, 26-Jul-2022
1606,Revenue,CAHD,South - Commissioned Services,Supported Living,Design House,2704.72, 26-Jul-2022
1607,Revenue,CAHD,North - Community based support,Respite Care,Design House,0.00, 26-Jul-2022
1608,Revenue,CAHD,North - Community based support,Supported Living,Design House,2310.04, 26-Jul-2022
1609,Revenue,CAHD,Bed and Breakfast,Bed & Breakfast,Designz Limited,882.00, 19-Jul-2022
1610,Revenue,CAHD,Bed and Breakfast,Bed & Breakfast,Designz Limited,1344.00, 19-Jul-2022
1611,Revenue,CAHD,Bed and Breakfast,Bed & Breakfast,Designz Limited,1190.00, 19-Jul-2022
1612,Revenue,CAHD,North - Community based support,Permanent Nursing,Douglas House,3599.80, 26-Jul-2022
1613,Revenue,CAHD,North - Community based support,Fees & Charges Income - General,Douglas House,-367.92, 26-Jul-2022
1614,Revenue,CAHD,Statemented Support Academies,Other Public Bodies,Downend School,1544.42, 22-Jul-2022
1615,Revenue,CAHD,Statemented Support Academies,Other Public Bodies,Downend School,660.24, 22-Jul-2022
1616,Revenue,CAHD,Statemented Support Academies,Other Public Bodies,Downend School,1025.73, 22-Jul-2022
1617,Revenue,CAHD,Statemented Support Academies,Other Public Bodies,Downend School,1108.26, 22-Jul-2022
1618,Revenue,CAHD,Statemented Support Academies,Other Public Bodies,Downend School,554.13, 22-Jul-2022
1619,Revenue,CAHD,Statemented Support Academies,Other Public Bodies,Downend School,666.00, 22-Jul-2022
1620,Revenue,CAHD,Statemented Support Academies,Other Public Bodies,Downend School,822.83, 22-Jul-2022
1621,Revenue,CAHD,Statemented Support Academies,Other Public Bodies,Downend School,1079.67, 22-Jul-2022
1622,Revenue,CAHD,Statemented Support Academies,Other Public Bodies,Downend School,1438.38, 22-Jul-2022
1623,Revenue,CAHD,Statemented Support Academies,Other Public Bodies,Downend School,1709.55, 22-Jul-2022
1624,Revenue,CAHD,Statemented Support Academies,Other Public Bodies,Downend School,1192.50, 22-Jul-2022
1625,Revenue,CAHD,Statemented Support Academies,Other Public Bodies,Downend School,1544.49, 22-Jul-2022
1626,Revenue,CAHD,Statemented Support Academies,Other Public Bodies,Downend School,966.92, 22-Jul-2022
1627,Revenue,CAHD,Social Lettings Agency,Rent,Individual,822.73, 22-Jul-2022
1628,Revenue,CAHD,Social Lettings Agency,Fees & Charges Income - General,Individual,-65.82, 22-Jul-2022
1629,Revenue,CAHD,Schools Specific Grant Income,Other Public Bodies,Durham School,500.00, 08-Jul-2022
1630,Revenue,CAHD,CSC - Age Related Allowances,Client Transport,Individual,24.84, 01-Jul-2022
1631,Revenue,CAHD,CSC - Age Related Allowances,Respite Care,Individual,356.57, 01-Jul-2022
1632,Revenue,CAHD,CSC - Professional Fees Foster Carers,Respite Care,Individual,388.57, 01-Jul-2022
1633,Revenue,CAHD,CSC - Age Related Allowances,Respite Care,Individual,312.01, 15-Jul-2022
1634,Revenue,CAHD,CSC - Professional Fees Foster Carers,Respite Care,Individual,340.01, 15-Jul-2022
1635,Revenue,CAHD,CSC - Age Related Allowances,"Holidays, Outings & Visits",Individual,177.00, 01-Jul-2022
1636,Revenue,CAHD,CSC - Age Related Allowances,Foster Parent Allowances,Individual,177.00, 01-Jul-2022
1637,Revenue,CAHD,CSC - Professional Fees Foster Carers,Fostering Plus Enhanced Fee,Individual,1327.00, 01-Jul-2022
1638,Revenue,CAHD,CSC - Asylum Seekers - Unaccompanied,"Holidays, Outings & Visits",Individual,177.00, 01-Jul-2022
1639,Revenue,CAHD,CSC - Asylum Seekers - Unaccompanied,Foster Parent Allowances,Individual,177.00, 01-Jul-2022
1640,Revenue,CAHD,CSC - Asylum Seekers - Unaccompanied,Band 3 Foster Care,Individual,243.00, 01-Jul-2022
1641,Revenue,CAHD,CSC - Age Related Allowances,Foster Parent Allowances,Individual,177.00, 08-Jul-2022
1642,Revenue,CAHD,CSC - Professional Fees Foster Carers,Fostering Plus Enhanced Fee,Individual,1327.00, 08-Jul-2022
1643,Revenue,CAHD,CSC - Asylum Seekers - Unaccompanied,Foster Parent Allowances,Individual,177.00, 08-Jul-2022
1644,Revenue,CAHD,CSC - Asylum Seekers - Unaccompanied,Band 3 Foster Care,Individual,243.00, 08-Jul-2022
1645,Revenue,CAHD,CSC - Age Related Allowances,Foster Parent Allowances,Individual,177.00, 15-Jul-2022
1646,Revenue,CAHD,CSC - Professional Fees Foster Carers,Fostering Plus Enhanced Fee,Individual,1327.00, 15-Jul-2022
1647,Revenue,CAHD,CSC - Asylum Seekers - Unaccompanied,Foster Parent Allowances,Individual,177.00, 15-Jul-2022
1648,Revenue,CAHD,CSC - Asylum Seekers - Unaccompanied,Band 3 Foster Care,Individual,243.00, 15-Jul-2022
1649,Revenue,CAHD,CSC - Age Related Allowances,Foster Parent Allowances,Individual,177.00, 22-Jul-2022
1650,Revenue,CAHD,CSC - Professional Fees Foster Carers,Fostering Plus Enhanced Fee,Individual,1327.00, 22-Jul-2022
1651,Revenue,CAHD,CSC - Asylum Seekers - Unaccompanied,Foster Parent Allowances,Individual,177.00, 22-Jul-2022
1652,Revenue,CAHD,CSC - Asylum Seekers - Unaccompanied,Band 3 Foster Care,Individual,243.00, 22-Jul-2022
1653,Revenue,CAHD,CSC - Age Related Allowances,Foster Parent Allowances,Individual,177.00, 29-Jul-2022
1654,Revenue,CAHD,CSC - Professional Fees Foster Carers,Fostering Plus Enhanced Fee,Individual,1327.00, 29-Jul-2022
1655,Revenue,CAHD,CSC - Asylum Seekers - Unaccompanied,Foster Parent Allowances,Individual,177.00, 29-Jul-2022
1656,Revenue,CAHD,CSC - Asylum Seekers - Unaccompanied,Band 3 Foster Care,Individual,243.00, 29-Jul-2022
1657,Revenue,CAHD,North - Community based support,Permanent Residential,East Court,2763.56, 26-Jul-2022
1658,Revenue,CAHD,North - Community based support,Fees & Charges Income - General,East Court,-438.80, 26-Jul-2022
1659,Revenue,CAHD,Community Support - Central,Preventative Assistance,Easylink UK,521.17, 22-Jul-2022
1660,Revenue,CAHD,Community Support - North,Preventative Assistance,Easylink UK,657.25, 22-Jul-2022
1661,Revenue,CAHD,CSC - Asylum Seekers - Unaccompanied,Independent Living,Eclipse Properties Limited,5940.00, 01-Jul-2022
1662,Revenue,CAHD,CSC - Asylum Seekers - Unaccompanied,Independent Living,Eclipse Properties Limited,3820.00, 14-Jul-2022
1663,Revenue,CAHD,CSC - Asylum Seekers - Unaccompanied,Independent Living,Eclipse Properties Limited,5940.00, 01-Jul-2022
1664,Revenue,CAHD,Central - Commissioned Services,Permanent Residential,Edgemont House Ltd,3392.00, 26-Jul-2022
1665,Revenue,CAHD,Central - Commissioned Services,Fees & Charges Income - General,Edgemont House Ltd,-864.16, 26-Jul-2022
1666,Revenue,CAHD,South - Commissioned Services,Permanent Residential,Edgemont House Ltd,3470.00, 26-Jul-2022
1667,Revenue,CAHD,South - Commissioned Services,Permanent Residential,Edgemont House Ltd,3539.44, 26-Jul-2022
1668,Revenue,CAHD,South - Commissioned Services,Permanent Residential,Edgemont House Ltd,3318.24, 26-Jul-2022
1669,Revenue,CAHD,South - Commissioned Services,Permanent Residential,Edgemont House Ltd,3392.00, 26-Jul-2022
1670,Revenue,CAHD,South - Commissioned Services,Fees & Charges Income - General,Edgemont House Ltd,-1715.20, 26-Jul-2022
1671,Revenue,CAHD,South - Commissioned Services,Fees & Charges Income - General,Edgemont House Ltd,-637.52, 26-Jul-2022
1672,Revenue,CAHD,South - Commissioned Services,Fees & Charges Income - General,Edgemont House Ltd,-3318.24, 26-Jul-2022
1673,Revenue,CAHD,North - Community based support,Respite Planned - Residential,Edgemont House Ltd,6273.04, 26-Jul-2022
1674,Revenue,CAHD,South Glos Users in South Glos Homes,Permanent Nursing,Edgemont View Ltd,836.76, 26-Jul-2022
1675,Revenue,CAHD,South Glos Users in South Glos Homes,Permanent Nursing,Edgemont View Ltd,836.76, 26-Jul-2022
1676,Revenue,CAHD,South Glos Users in South Glos Homes,Permanent Nursing,Edgemont View Ltd,836.76, 26-Jul-2022
1677,Revenue,CAHD,South Glos Users in South Glos Homes,Permanent Nursing,Edgemont View Ltd,836.76, 26-Jul-2022
1678,Revenue,CAHD,South Glos Users in South Glos Homes,Permanent Nursing,Edgemont View Ltd,836.76, 26-Jul-2022
1679,Revenue,CAHD,South Glos Users in South Glos Homes,Permanent Nursing,Edgemont View Ltd,836.76, 26-Jul-2022
1680,Revenue,CAHD,South Glos Users in South Glos Homes,Permanent Nursing,Edgemont View Ltd,836.76, 26-Jul-2022
1681,Revenue,CAHD,South Glos Users in South Glos Homes,Permanent Nursing,Edgemont View Ltd,-1225.26, 26-Jul-2022
1682,Revenue,CAHD,South Glos Users in South Glos Homes,Permanent Nursing,Edgemont View Ltd,836.76, 26-Jul-2022
1683,Revenue,CAHD,South Glos Users in South Glos Homes,Permanent Nursing,Edgemont View Ltd,836.76, 26-Jul-2022
1684,Revenue,CAHD,South Glos Users in South Glos Homes,Permanent Nursing,Edgemont View Ltd,836.76, 26-Jul-2022
1685,Revenue,CAHD,South Glos Users in South Glos Homes,Permanent Nursing,Edgemont View Ltd,-158.67, 26-Jul-2022
1686,Revenue,CAHD,South Glos Users in South Glos Homes,Permanent Nursing,Edgemont View Ltd,836.76, 26-Jul-2022
1687,Revenue,CAHD,South Glos Users in South Glos Homes,Permanent Nursing,Edgemont View Ltd,836.76, 26-Jul-2022
1688,Revenue,CAHD,Central - Commissioned Services,Respite Planned - Nursing,Edgemont View Ltd,4800.00, 26-Jul-2022
1689,Revenue,CAHD,Central - Commissioned Services,Respite Planned - Nursing,Edgemont View Ltd,6470.46, 26-Jul-2022
1690,Revenue,CAHD,South - Commissioned Services,Permanent Nursing,Edgemont View Ltd,3964.16, 26-Jul-2022
1691,Revenue,CAHD,South - Commissioned Services,Permanent Nursing,Edgemont View Ltd,3795.36, 26-Jul-2022
1692,Revenue,CAHD,South - Commissioned Services,Permanent Nursing,Edgemont View Ltd,3686.88, 26-Jul-2022
1693,Revenue,CAHD,South - Commissioned Services,Permanent Nursing,Edgemont View Ltd,3760.64, 26-Jul-2022
1694,Revenue,CAHD,South - Commissioned Services,Permanent Nursing,Edgemont View Ltd,3760.64, 26-Jul-2022
1695,Revenue,CAHD,South - Commissioned Services,Permanent Nursing,Edgemont View Ltd,-662.50, 26-Jul-2022
1696,Revenue,CAHD,South - Commissioned Services,Fees & Charges Income - General,Edgemont View Ltd,-743.28, 26-Jul-2022
1697,Revenue,CAHD,South - Commissioned Services,Fees & Charges Income - General,Edgemont View Ltd,-690.16, 26-Jul-2022
1698,Revenue,CAHD,South - Commissioned Services,Fees & Charges Income - General,Edgemont View Ltd,-702.16, 26-Jul-2022
1699,Revenue,CAHD,South - Commissioned Services,Fees & Charges Income - General,Edgemont View Ltd,-847.24, 26-Jul-2022
1700,Revenue,CAHD,South - Commissioned Services,Fees & Charges Income - General,Edgemont View Ltd,-627.80, 26-Jul-2022
1701,Revenue,CAHD,South - Commissioned Services,Fees & Charges Income - General,Edgemont View Ltd,7589.19, 26-Jul-2022
1702,Revenue,CAHD,CSC - Fostering Carer Support,Care Mgt/Asesmnt Staff Pay,Individual,2011.25, 28-Jul-2022
1703,Revenue,CAHD,CSC - Fostering Carer Support,Care Mgt/Asesmnt Staff Pay,Individual,2025.65, 28-Jul-2022
1704,Revenue,CAHD,CSC - Post Ofsted Implementation,Other Supplies & Services,Elia International Ltd,5840.00, 28-Jul-2022
1705,Revenue,CAHD,Supporting People Programme,Grants to Voluntary Bodies,Elim Housing Association Limited,5522.83, 01-Jul-2022
1706,Revenue,CAHD,Social Lettings Agency,Rent,Individual,1321.36, 13-Jul-2022
1707,Revenue,CAHD,Social Lettings Agency,Fees & Charges Income - General,Individual,-79.30, 13-Jul-2022
1708,Revenue,CAHD,North - Community based support,Permanent Residential,Ellsworth House,10016.24, 26-Jul-2022
1709,Revenue,CAHD,North - Community based support,Fees & Charges Income - General,Ellsworth House,-438.80, 26-Jul-2022
1710,Revenue,CAHD,Placements OLA Special Schools and RB,Other L.A.s - General,Elmfield School for Deaf Children,1268.03, 22-Jul-2022
1711,Revenue,CAHD,Placements OLA Special Schools and RB,Other L.A.s - General,Elmfield School for Deaf Children,1268.03, 22-Jul-2022
1712,Revenue,CAHD,Placements OLA Special Schools and RB,Other L.A.s - General,Elmfield School for Deaf Children,1268.03, 22-Jul-2022
1713,Revenue,CAHD,Placements OLA Special Schools and RB,Other L.A.s - General,Elmfield School for Deaf Children,1268.03, 22-Jul-2022
1714,Revenue,CAHD,Placements OLA Special Schools and RB,Other L.A.s - General,Elmfield School for Deaf Children,792.40, 22-Jul-2022
1715,Revenue,CAHD,Placements OLA Special Schools and RB,Other L.A.s - General,Elmfield School for Deaf Children,1268.03, 22-Jul-2022
1716,Revenue,CAHD,Placements OLA Special Schools and RB,Other L.A.s - General,Elmfield School for Deaf Children,1268.03, 22-Jul-2022
1717,Revenue,CAHD,South - Commissioned Services,Non Residential Care Income,Individual,-2976.00, 08-Jul-2022
1718,Revenue,CAHD,CSC - Age Related Allowances,"Holidays, Outings & Visits",Individual,282.00, 01-Jul-2022
1719,Revenue,CAHD,CSC - Age Related Allowances,ADPN Allowances,Individual,282.00, 01-Jul-2022
1720,Revenue,CAHD,CSC - Professional Fees Foster Carers,Children - Family Support,Individual,340.00, 01-Jul-2022
1721,Revenue,CAHD,CSC - Age Related Allowances,ADPN Allowances,Individual,282.00, 08-Jul-2022
1722,Revenue,CAHD,CSC - Professional Fees Foster Carers,Children - Family Support,Individual,340.00, 08-Jul-2022
1723,Revenue,CAHD,CSC - Age Related Allowances,ADPN Allowances,Individual,282.00, 15-Jul-2022
1724,Revenue,CAHD,CSC - Professional Fees Foster Carers,Children - Family Support,Individual,340.00, 15-Jul-2022
1725,Revenue,CAHD,CSC - Age Related Allowances,ADPN Allowances,Individual,282.00, 22-Jul-2022
1726,Revenue,CAHD,CSC - Professional Fees Foster Carers,Children - Family Support,Individual,340.00, 22-Jul-2022
1727,Revenue,CAHD,CSC - Age Related Allowances,ADPN Allowances,Individual,282.00, 29-Jul-2022
1728,Revenue,CAHD,CSC - Professional Fees Foster Carers,Children - Family Support,Individual,340.00, 29-Jul-2022
1729,Revenue,CAHD,CSC - Age Related Allowances,"Holidays, Outings & Visits",Individual,207.00, 01-Jul-2022
1730,Revenue,CAHD,CSC - Age Related Allowances,Foster Parent Allowances,Individual,207.00, 01-Jul-2022
1731,Revenue,CAHD,CSC - Professional Fees Foster Carers,Band 1 Foster Care,Individual,170.00, 01-Jul-2022
1732,Revenue,CAHD,CSC - Age Related Allowances,Foster Parent Allowances,Individual,586.28, 15-Jul-2022
1733,Revenue,CAHD,CSC - Age Related Allowances,Xmas / Birthday Allowances,Individual,177.00, 15-Jul-2022
1734,Revenue,CAHD,CSC - Age Related Allowances,Respite Care,Individual,50.57, 15-Jul-2022
1735,Revenue,CAHD,CSC - Professional Fees Foster Carers,Respite Care,Individual,48.57, 15-Jul-2022
1736,Revenue,CAHD,CSC - Professional Fees Foster Carers,Band 1 Foster Care,Individual,752.86, 15-Jul-2022
1737,Revenue,CAHD,CSC - Age Related Allowances,Foster Parent Allowances,Individual,384.00, 22-Jul-2022
1738,Revenue,CAHD,CSC - Professional Fees Foster Carers,Band 1 Foster Care,Individual,340.00, 22-Jul-2022
1739,Revenue,CAHD,CSC - Age Related Allowances,Foster Parent Allowances,Individual,384.00, 29-Jul-2022
1740,Revenue,CAHD,CSC - Professional Fees Foster Carers,Band 1 Foster Care,Individual,340.00, 29-Jul-2022
1741,Revenue,CAHD,Special ISB,Other Public Bodies,Enable Trust,8493.20, 25-Jul-2022
1742,Revenue,CAHD,Special ISB,Other Public Bodies,Enable Trust,1175.87, 25-Jul-2022
1743,Revenue,CAHD,Special ISB,Other Public Bodies,Enable Trust,1175.87, 25-Jul-2022
1744,Revenue,CAHD,Special ISB,Other Public Bodies,Enable Trust,1540.83, 25-Jul-2022
1745,Revenue,CAHD,Special ISB,Other Public Bodies,Enable Trust,1175.87, 25-Jul-2022
1746,Revenue,CAHD,Special ISB,Other Public Bodies,Enable Trust,892.05, 25-Jul-2022
1747,Revenue,CAHD,Special ISB,Other Public Bodies,Enable Trust,1175.87, 25-Jul-2022
1748,Revenue,CAHD,Special ISB,Other Public Bodies,Enable Trust,1175.87, 25-Jul-2022
1749,Revenue,CAHD,Special ISB,Other Public Bodies,Enable Trust,892.05, 25-Jul-2022
1750,Revenue,CAHD,Special ISB,Other Public Bodies,Enable Trust,7910.54, 25-Jul-2022
1751,Revenue,CAHD,Special ISB,Other Public Bodies,Enable Trust,1540.83, 25-Jul-2022
1752,Revenue,CAHD,Special ISB,Other Public Bodies,Enable Trust,1175.87, 25-Jul-2022
1753,Revenue,CAHD,Special ISB,Other Public Bodies,Enable Trust,1175.87, 25-Jul-2022
1754,Revenue,CAHD,Special ISB,Other Public Bodies,Enable Trust,1540.83, 25-Jul-2022
1755,Revenue,CAHD,Special ISB,Other Public Bodies,Enable Trust,1540.83, 25-Jul-2022
1756,Revenue,CAHD,Special ISB,Other Public Bodies,Enable Trust,2189.53, 25-Jul-2022
1757,Revenue,CAHD,Special ISB,Other Public Bodies,Enable Trust,1175.87, 25-Jul-2022
1758,Revenue,CAHD,Special ISB,Other Public Bodies,Enable Trust,1175.87, 25-Jul-2022
1759,Revenue,CAHD,Special ISB,Other Public Bodies,Enable Trust,1175.87, 25-Jul-2022
1760,Revenue,CAHD,Special ISB,Other Public Bodies,Enable Trust,1175.87, 25-Jul-2022
1761,Revenue,CAHD,Special ISB,Other Public Bodies,Enable Trust,648.70, 25-Jul-2022
1762,Revenue,CAHD,Special ISB,Other Public Bodies,Enable Trust,892.05, 25-Jul-2022
1763,Revenue,CAHD,Special ISB,Other Public Bodies,Enable Trust,892.05, 25-Jul-2022
1764,Revenue,CAHD,Special ISB,Other Public Bodies,Enable Trust,2189.53, 25-Jul-2022
1765,Revenue,CAHD,Special ISB,Other Public Bodies,Enable Trust,1175.87, 25-Jul-2022
1766,Revenue,CAHD,Special ISB,Other Public Bodies,Enable Trust,1175.87, 25-Jul-2022
1767,Revenue,CAHD,Special ISB,Other Public Bodies,Enable Trust,1175.87, 25-Jul-2022
1768,Revenue,CAHD,Special ISB,Other Public Bodies,Enable Trust,1175.87, 25-Jul-2022
1769,Revenue,CAHD,Special ISB,Other Public Bodies,Enable Trust,1175.87, 25-Jul-2022
1770,Revenue,CAHD,Special ISB,Other Public Bodies,Enable Trust,1175.87, 25-Jul-2022
1771,Revenue,CAHD,Special ISB,Other Public Bodies,Enable Trust,1540.83, 25-Jul-2022
1772,Revenue,CAHD,Special ISB,Other Public Bodies,Enable Trust,1540.83, 25-Jul-2022
1773,Revenue,CAHD,Special ISB,Other Public Bodies,Enable Trust,1175.87, 25-Jul-2022
1774,Revenue,CAHD,Special ISB,Other Public Bodies,Enable Trust,1175.87, 25-Jul-2022
1775,Revenue,CAHD,Special ISB,Other Public Bodies,Enable Trust,2189.53, 25-Jul-2022
1776,Revenue,CAHD,Special ISB,Other Public Bodies,Enable Trust,1175.87, 25-Jul-2022
1777,Revenue,CAHD,Special ISB,Other Public Bodies,Enable Trust,2189.53, 25-Jul-2022
1778,Revenue,CAHD,Special ISB,Other Public Bodies,Enable Trust,1175.87, 25-Jul-2022
1779,Revenue,CAHD,Special ISB,Other Public Bodies,Enable Trust,1175.87, 25-Jul-2022
